﻿Body Name,Supplier ID,Supplier Name,Transaction Number,Their Ref,Date,Gross Value ,VAT Amount,Service Label,Service Code,Expenditure Code,Expenditure Category,Service Division Label
Blackpool Council,1064012,Trueform Engineering Ltd,480342,TRUE003333,04/05/2018,4320,720,TRB,Maintenance & Works,4501,Private Contractors,Community & Env Services
Blackpool Council,1009009,Hermolle Associates Ltd,482056,9344,18/05/2018,468,78,FMAA,Retail Units,1064,Delegated Maintenance,Resources
Blackpool Council,1057663,Wilde Recruitment Ltd,482284,32603,03/05/2018,525.6,87.6,CTAHHA,Tramway Emergency Works,6501,Contract Payments,Capital - Comm & Environ
Blackpool Council,1114704,Morson Human Resources Ltd,482793,HS167548,03/05/2018,1980,330,CTAHHA,Tramway Emergency Works,6506,Consultants Fees,Capital - Comm & Environ
Blackpool Council,1017744,Xpress Software Solutions Ltd,483374,2018111,01/05/2018,15006,2501,BGA,Electoral Services,3532,Comp-Running & License Costs,Governance & Partnerships
Blackpool Council,1015695,Demco Europe Ltd T/A Gresswell,483385,3123172,09/05/2018,286.08,47.68,LBC,Branch Libraries,3020,Furniture - Purchase,Places
Blackpool Council,1057663,Wilde Recruitment Ltd,483460,32649,03/05/2018,517.86,86.31,CTAHHA,Tramway Emergency Works,6501,Contract Payments,Capital - Comm & Environ
Blackpool Council,1114036,Odlings Ltd T/A The Columbaria Co,483463,INV0059592,14/05/2018,522,87,CEMCRE,Cems Crems Etc,3454,Remove And Refix Memorials,Governance & Partnerships
Blackpool Council,1102823,Wilde Consultants Limited,483508,WPCON15928,11/05/2018,590.4,98.4,CGOAAA,Quality Corridor,6501,Contract Payments,Capital - Places
Blackpool Council,1102823,Wilde Consultants Limited,483510,WPCON15930,11/05/2018,1929.97,321.66,CGOAAA,Quality Corridor,6501,Contract Payments,Capital - Places
Blackpool Council,1102823,Wilde Consultants Limited,483511,WPCON15931,11/05/2018,1050.1,175.02,CGOAAA,Quality Corridor,6501,Contract Payments,Capital - Places
Blackpool Council,1102823,Wilde Consultants Limited,483512,WPCON15932,11/05/2018,9342.64,1557.11,CGOAAA,Quality Corridor,6501,Contract Payments,Capital - Places
Blackpool Council,1102823,Wilde Consultants Limited,483513,WPCON15933,11/05/2018,908.4,151.4,CGOAAA,Quality Corridor,6501,Contract Payments,Capital - Places
Blackpool Council,1102823,Wilde Consultants Limited,483514,WPCON15934,11/05/2018,335.1,55.85,CGOAAA,Quality Corridor,6501,Contract Payments,Capital - Places
Blackpool Council,1102823,Wilde Consultants Limited,483515,WPCON15935,11/05/2018,1012.47,168.76,CGOAAA,Quality Corridor,6501,Contract Payments,Capital - Places
Blackpool Council,1093815,Raydar Safety Ltd,483525,SI-248,04/05/2018,1800,300,TRB,Maintenance & Works,4501,Private Contractors,Community & Env Services
Blackpool Council,1114704,Morson Human Resources Ltd,483553,HS168627,03/05/2018,1980,330,CTAHHA,Tramway Emergency Works,6506,Consultants Fees,Capital - Comm & Environ
Blackpool Council,1011121,Fylde Coast Gate Ltd,483589,27718,14/05/2018,3005.05,500.84,ALLEY,Alley Gates,3041,Other Materials,Community & Env Services
Blackpool Council,1011121,Fylde Coast Gate Ltd,483591,27717,14/05/2018,1093.99,182.33,ALLEY,Alley Gates,3041,Other Materials,Community & Env Services
Blackpool Council,1011121,Fylde Coast Gate Ltd,483592,27716,14/05/2018,5234.11,872.35,ALLEY,Alley Gates,3041,Other Materials,Community & Env Services
Blackpool Council,1115302,Catch 22 Charity Ltd,483596,56945,24/05/2018,3474,579,VA0010,Vah Management & Admin,3711,Subscriptions,Children'S Services
Blackpool Council,1076555,Uk Container Maintenance Limited,483658,32365,24/05/2018,1320.36,220.06,CWASTE,Commercial Waste,3041,Other Materials,Community & Env Services
Blackpool Council,1049385,Fylde Coast Ymca,483678,9419,09/05/2018,392.4,65.4,CWAN,Children With Additional Needs,0911,Training Expenses,Children'S Services
Blackpool Council,1105990,Fylde Environmental Services Ltd,483685,BC/118/2018,01/05/2018,1779,0,SCLEAN,Street Cleaning,4501,Private Contractors,Community & Env Services
Blackpool Council,1057663,Wilde Recruitment Ltd,483707,32686,03/05/2018,517.86,86.31,CTAHHA,Tramway Emergency Works,6501,Contract Payments,Capital - Comm & Environ
Blackpool Council,1013705,Stadia Sports/ Broxap Limited,483714,INV225673,24/05/2018,2583,0,ZM0018,Highways & Engineering,9773,Orders Received Not Invoiced,Blackpool Services
Blackpool Council,1013705,Stadia Sports/ Broxap Limited,483714,INV225673,24/05/2018,3099.6,516.6,ZM0018,Highways & Engineering,9511A,Stocks Efin,Blackpool Services
Blackpool Council,1008039,Woodswaste Ltd,483724,028419,22/05/2018,324,54,CEMCRE,Cems Crems Etc,3454,Remove And Refix Memorials,Governance & Partnerships
Blackpool Council,1009223,Ggp Systems Limited,483775,323,04/05/2018,37469.78,6244.97,FGAB,Ict E-Government,3532,Comp-Running & License Costs,Resources
Blackpool Council,1102823,Wilde Consultants Limited,483785,WPCON 15955,04/05/2018,4937.22,822.87,CGOAAA,Quality Corridor,6501,Contract Payments,Capital - Places
Blackpool Council,1044756,Northgate Public Services (Uk) Ltd,483790,91404912,01/05/2018,1407.6,234.6,FC1404,Blue Badge Reform,3401,General Services,Resources
Blackpool Council,1094355,Les Mills Fitness Uk Ltd,483807,SIV236757,04/05/2018,318.28,53.05,LEISUR,Leisure Management,2008,Running Costs-Licences,Community & Env Services
Blackpool Council,1076695,Learning Pool Limited,483812,INV-013508,03/05/2018,62604,10434,FK0071,Corporate Training,3532,Comp-Running & License Costs,Chief Executive
Blackpool Council,1114704,Morson Human Resources Ltd,483813,HS169862,03/05/2018,1584,264,CTAHHA,Tramway Emergency Works,6506,Consultants Fees,Capital - Comm & Environ
Blackpool Council,1005071,Blackpool Transport Services Limited,483815,I0000325,01/05/2018,828,138,PJHA,"Depot, Management & Admin",0911,Training Expenses,Community & Env Services
Blackpool Council,1060236,Nelson Microfilm Limited,483885,1152,09/05/2018,1597.68,0,AHH,Heritage,3306,Micro-Filming,Places
Blackpool Council,1006576,The Helping Hand Company,484009,315631,03/05/2018,6460.8,1076.8,MTE,Undefined Age Group,5401,Aids To Daily Living,Adult & Families
Blackpool Council,1016649,Iems Services,484052,2224,02/05/2018,600,100,PJLA,Maintenance,3041,Other Materials,Community & Env Services
Blackpool Council,1016649,Iems Services,484052,2224,02/05/2018,300,50,PJNA,New Features / Schemes - C & E,3041,Other Materials,Community & Env Services
Blackpool Council,1016649,Iems Services,484053,2225,02/05/2018,480,80,PJNA,New Features / Schemes - C & E,3041,Other Materials,Community & Env Services
Blackpool Council,1016649,Iems Services,484054,2223,02/05/2018,702,117,PJRA,Electrical Infra - Places,3041,Other Materials,Community & Env Services
Blackpool Council,1011121,Fylde Coast Gate Ltd,484069,27691,16/05/2018,995.04,165.84,ALLEY,Alley Gates,3041,Other Materials,Community & Env Services
Blackpool Council,1008135,Marshalls,484105,Z000019397,24/05/2018,445.44,0,ZM0018,Highways & Engineering,9773,Orders Received Not Invoiced,Blackpool Services
Blackpool Council,1008135,Marshalls,484105,Z000019397,24/05/2018,534.53,89.09,ZM0018,Highways & Engineering,9511A,Stocks Efin,Blackpool Services
Blackpool Council,1008135,Marshalls,484106,Z000019385,15/05/2018,1713.28,0,ZM0018,Highways & Engineering,9773,Orders Received Not Invoiced,Blackpool Services
Blackpool Council,1008135,Marshalls,484106,Z000019385,15/05/2018,2055.94,342.66,ZM0018,Highways & Engineering,9511A,Stocks Efin,Blackpool Services
Blackpool Council,1014996,Peters Ltd T/A Peters Bookselling Svces,484108,1689835,09/05/2018,488.58,0,LBB,Central Library,3304,Books And Periodicals,Places
Blackpool Council,1014996,Peters Ltd T/A Peters Bookselling Svces,484109,1689964,09/05/2018,510.62,0,LBB,Central Library,3304,Books And Periodicals,Places
Blackpool Council,1010667,Argos Business Solutions Ltd,484113,01638893,09/05/2018,1852.34,308.5,FC1802,Social Fund - Client,5210,Community Care Support,Resources
Blackpool Council,1014996,Peters Ltd T/A Peters Bookselling Svces,484116,1689965,09/05/2018,705.94,0,LBB,Central Library,3304,Books And Periodicals,Places
Blackpool Council,1006576,The Helping Hand Company,484117,315803,04/05/2018,1255.56,209.26,APCBAA,Coopers Way,3408,Services To Clients,Adult & Families
Blackpool Council,1012105,S & S Timber Supplies Ltd,484121,I0012886,10/05/2018,1152.85,192.14,ENGINE,Engineering,3041,Other Materials,Community & Env Services
Blackpool Council,1009980,Choices Furniture Ltd,484125,10367,10/05/2018,258,43,JBR,Lac - Placements,4812,Initial Loan Equipment,Children'S Services
Blackpool Council,1009980,Choices Furniture Ltd,484126,10368,11/05/2018,290,48.33,JBR,Lac - Placements,4812,Initial Loan Equipment,Children'S Services
Blackpool Council,1021686,North West Tree Services,484127,B480,02/05/2018,706.2,117.7,PRKOP1,Parks Operational Manager  1,3041,Other Materials,Community & Env Services
Blackpool Council,1112619,The Frontline Organisation,484128,146,11/05/2018,5800,0,JA0505,Children'S Training,0911,Training Expenses,Children'S Services
Blackpool Council,1015695,Demco Europe Ltd T/A Gresswell,484129,3124682,09/05/2018,366.85,61.14,LBC,Branch Libraries,3001,Office Equipment Purchase,Places
Blackpool Council,1006586,H Jenkinson & Co Ltd,484131,SINV00800414,04/05/2018,480,80,AEB,Buildings,3302,Stationery,Resources
Blackpool Council,1007385,R S Components Ltd,484133,289564144,03/05/2018,400.42,66.74,FMAK,Acquisitions 9/10,1131,Electrical Equipment - Repairs,Places
Blackpool Council,1114832,Able 2 Occupational Therapy Services Ltd,484135,17597,04/05/2018,444.64,0,FC1404,Blue Badge Reform,3401,General Services,Resources
Blackpool Council,1058510,Lifeline Language Services Ltd,484138,0718001,10/05/2018,320.64,53.44,JAB,Locality,5507,Personal,Children'S Services
Blackpool Council,1085660,Bisset Adams Ltd,484139,07197,25/05/2018,630.88,105.15,FMAK,Acquisitions 9/10,3801,Other Expenses,Places
Blackpool Council,1012789,Advanced Business Solutions (Fka Coa),484176,ARXI/00002896,04/05/2018,670.78,111.8,FBBCA,Accountancy,3532,Comp-Running & License Costs,Resources
Blackpool Council,1046723,Brightprint (Fac008 Payment Only),484181,25549,24/05/2018,325,0,EP8006,Directory Of Services Project,7189,Other Misc Income - No Orders,Children'S Services
Blackpool Council,1079992,J Fisher & Sons Ltd,484185,48066,09/05/2018,1974,329,SCHEME,Highways Schemes,1012,Premises Maint-Priv.Contractor,Community & Env Services
Blackpool Council,1053261,Ad Systems (Uk) Limited,484189,4155,08/05/2018,3900,650,CCTV,Cctv,2002,Repairs And Maintenance,Places
Blackpool Council,1053261,Ad Systems (Uk) Limited,484192,4154,10/05/2018,964.8,160.8,CCTV,Cctv,2002,Repairs And Maintenance,Places
Blackpool Council,1057663,Wilde Recruitment Ltd,484207,32714,03/05/2018,517.86,86.31,CTAHHA,Tramway Emergency Works,6501,Contract Payments,Capital - Comm & Environ
Blackpool Council,1023406,Roy Sadurskis Limited,484209,00043,03/05/2018,400,0,PRKOP1,Parks Operational Manager  1,4501,Private Contractors,Community & Env Services
Blackpool Council,1076264,Alliance Disposables Ltd,484211,I6699906,14/05/2018,299.6,0,ZM0018,Highways & Engineering,9773,Orders Received Not Invoiced,Blackpool Services
Blackpool Council,1076264,Alliance Disposables Ltd,484211,I6699906,14/05/2018,657.84,109.64,ZM0018,Highways & Engineering,9511A,Stocks Efin,Blackpool Services
Blackpool Council,1076264,Alliance Disposables Ltd,484213,I6699905,14/05/2018,749,0,ZM0018,Highways & Engineering,9773,Orders Received Not Invoiced,Blackpool Services
Blackpool Council,1076264,Alliance Disposables Ltd,484213,I6699905,14/05/2018,898.8,149.8,ZM0018,Highways & Engineering,9511A,Stocks Efin,Blackpool Services
Blackpool Council,1076913,Local Government Association,484214,40158297,10/05/2018,2616,436,BCA,Corp And Member Services,0911,Training Expenses,Governance & Partnerships
Blackpool Council,1076913,Local Government Association,484215,40158296,10/05/2018,654,109,PAAA,C.E. Management,3605,Confs & Short Courses,Chief Executive
Blackpool Council,1076913,Local Government Association,484215,40158296,10/05/2018,654,109,PBC,Strategy Team,3605,Confs & Short Courses,Chief Executive
Blackpool Council,1114541,Integrity Print Ltd,484230,1217980,02/05/2018,1338.24,223.04,PARADM,Parking Administration,3041,Other Materials,Budgets Outside Cash Limits
Blackpool Council,1114541,Integrity Print Ltd,484231,1216426,02/05/2018,627.6,104.6,PARADM,Parking Administration,3041,Other Materials,Budgets Outside Cash Limits
Blackpool Council,1049842,Campbell Associates Limited,484237,20585,04/05/2018,10710,1785,PYEP,Environmental Protection,3001,Office Equipment Purchase,Community & Env Services
Blackpool Council,1094424,The Networking People,484253,SI104967,04/05/2018,1567.36,261.23,FGAA,Ict Corporate Services,3532,Comp-Running & License Costs,Resources
Blackpool Council,1058510,Lifeline Language Services Ltd,484257,0718005,04/05/2018,269.28,44.88,SBOARD,Springboard,4501,Private Contractors,Children'S Services
Blackpool Council,1058510,Lifeline Language Services Ltd,484258,0718011,09/05/2018,268.2,44.7,SBOARD,Springboard,4501,Private Contractors,Children'S Services
Blackpool Council,1080575,Eps Supplies Ltd,484265,INV-16940,11/05/2018,352.84,58.81,JAB,Locality,5507,Personal,Children'S Services
Blackpool Council,1115153,David Holloway-  The Foodbank Cookbook Unltd,484373,BLAC1002,09/05/2018,900,0,FCACA,Benefits - Admin,3532,Comp-Running & License Costs,Resources
Blackpool Council,1033140,P J Combustion Solutions,484429,3706,11/05/2018,510,85,CEMCRE,Cems Crems Etc,1111,Cremators,Governance & Partnerships
Blackpool Council,1115480,Seating Matters Ltd,484446,25395,16/05/2018,3547.2,591.2,MTE,Undefined Age Group,5401,Aids To Daily Living,Adult & Families
Blackpool Council,1049942,Quest 88 Limited,484448,87862,10/05/2018,829.2,138.2,MTE,Undefined Age Group,5401,Aids To Daily Living,Adult & Families
Blackpool Council,1049942,Quest 88 Limited,484451,87882,11/05/2018,981.6,163.6,MTE,Undefined Age Group,5401,Aids To Daily Living,Adult & Families
Blackpool Council,1091465,Dm Orthotics Limited,484452,DM137245,11/05/2018,288.47,0,MTE,Undefined Age Group,5401,Aids To Daily Living,Adult & Families
Blackpool Council,1036301,4imprint Direct Ltd,484462,1302615,04/05/2018,1584.48,264.08,PU0001,Public Health Team,4501,Private Contractors,Public Health
Blackpool Council,1027942,Printacom,484477,021023,16/05/2018,420,70,CWASTE,Commercial Waste,3041,Other Materials,Community & Env Services
Blackpool Council,1011121,Fylde Coast Gate Ltd,484492,27739,16/05/2018,1939.64,323.27,ALLEY,Alley Gates,3041,Other Materials,Community & Env Services
Blackpool Council,1011121,Fylde Coast Gate Ltd,484493,27738,16/05/2018,2062.2,343.7,ALLEY,Alley Gates,3041,Other Materials,Community & Env Services
Blackpool Council,1102823,Wilde Consultants Limited,484497,WPCON 15956,11/05/2018,5661,943.5,CGOAAA,Quality Corridor,6501,Contract Payments,Capital - Places
Blackpool Council,1059927,The Document Management Group,484500,14615,09/05/2018,1620,270,BGA,Electoral Services,3401,General Services,Governance & Partnerships
Blackpool Council,1082146,Ascentis,484530,57835,10/05/2018,697,0,ALEARN,Adult Learning,3801,Other Expenses,Places
Blackpool Council,1049304,Insight Direct (Uk) Ltd,484531,3838064,11/05/2018,75691.87,12615.31,CS0739,Ict Refresh,6525,I.T. Hardware Purchase,Capital - Resources
Blackpool Council,1008775,J P Lennard Ltd,484553,888714,10/05/2018,800.63,133.45,LEISUR,Leisure Management,3007,Recreational Equipment,Community & Env Services
Blackpool Council,1115476,REDACTED PERSONAL DATA,484578,VOSSGRUNDY02,10/05/2018,750,0,AHG,Art Gallery Summary,3456,Payment To Artists,Places
Blackpool Council,1008525,Kingswood Office Supplies Limited,484580,317815,10/05/2018,283.2,47.2,PRC,Visitor Services,3302,Stationery,Places
Blackpool Council,1028179,Caci Ltd,484581,ES09879,11/05/2018,12813.19,2135.53,VA0010,Vah Management & Admin,3711,Subscriptions,Children'S Services
Blackpool Council,1100195,Banking Automation Limited,484591,SI-081350,04/05/2018,3416.4,569.4,FC1211,Cashiers,3532,Comp-Running & License Costs,Resources
Blackpool Council,1087683,A & C Weber Uk Ltd,484596,2018-010137,16/05/2018,938.4,156.4,SCLEAN,Street Cleaning,3070,Wheely Bins,Community & Env Services
Blackpool Council,1092426,University Of Derby,484597,DER-00073228,11/05/2018,700,0,PYEP,Environmental Protection,3605,Confs & Short Courses,Community & Env Services
Blackpool Council,1013064,Tarmac Lafarge Trading Limited,484600,9037889754,04/05/2018,379.77,63.29,ENGINE,Engineering,3041,Other Materials,Community & Env Services
Blackpool Council,1013064,Tarmac Lafarge Trading Limited,484601,9037889755,04/05/2018,426,71,ENGINE,Engineering,3041,Other Materials,Community & Env Services
Blackpool Council,1013064,Tarmac Lafarge Trading Limited,484602,9037896330,04/05/2018,271.36,45.22,ENGINE,Engineering,3041,Other Materials,Community & Env Services
Blackpool Council,1013064,Tarmac Lafarge Trading Limited,484603,9037896331,04/05/2018,275.92,45.98,ENGINE,Engineering,3041,Other Materials,Community & Env Services
Blackpool Council,1110733,Aps Marketing & Consultancy,484605,2883,14/05/2018,574.2,95.7,FK0071,Corporate Training,3304,Books And Periodicals,Chief Executive
Blackpool Council,1007228,Rigby Taylor Ltd,484608,RSIN0254876,15/05/2018,3060,0,ZM0018,Highways & Engineering,9773,Orders Received Not Invoiced,Blackpool Services
Blackpool Council,1007228,Rigby Taylor Ltd,484608,RSIN0254876,15/05/2018,3672,612,ZM0018,Highways & Engineering,9511A,Stocks Efin,Blackpool Services
Blackpool Council,1007439,Preston City Council,484620,01897319,24/05/2018,808.44,134.74,EP8006,Directory Of Services Project,7189,Other Misc Income - No Orders,Children'S Services
Blackpool Council,1006292,Vodafone Corporate Ltd,484627,KZ07260,04/05/2018,888,148,FGAA,Ict Corporate Services,3531,Computer-H'Ware Purchase,Resources
Blackpool Council,1006586,H Jenkinson & Co Ltd,484628,SINV00801429,11/05/2018,2301.5,383.58,AEB,Buildings,3020,Furniture - Purchase,Resources
Blackpool Council,1006586,H Jenkinson & Co Ltd,484629,SINV00801428,11/05/2018,501.67,83.61,AEB,Buildings,3020,Furniture - Purchase,Resources
Blackpool Council,1049304,Insight Direct (Uk) Ltd,484630,3833768,04/05/2018,1634.03,272.33,FGAA,Ict Corporate Services,3532,Comp-Running & License Costs,Resources
Blackpool Council,1098897,Mike Kidd Horse Power Ltd,484631,1042,01/05/2018,5500,0,EDDIV,Education Diversity,4101,Other Local Authorities,Children'S Services
Blackpool Council,1115631,Yorkshire Carnival Association,484632,110418,11/05/2018,1500,0,PTC,"A.C.E. Regen, Tourism & Cultur",3816,Sponsorship,Places
Blackpool Council,1049304,Insight Direct (Uk) Ltd,484635,3837915,11/05/2018,75140.4,12523.4,CS0739,Ict Refresh,6525,I.T. Hardware Purchase,Capital - Resources
Blackpool Council,1049304,Insight Direct (Uk) Ltd,484637,3837956,11/05/2018,75140.4,12523.4,CS0739,Ict Refresh,6525,I.T. Hardware Purchase,Capital - Resources
Blackpool Council,1049304,Insight Direct (Uk) Ltd,484639,3837940,11/05/2018,75140.4,12523.4,CS0739,Ict Refresh,6525,I.T. Hardware Purchase,Capital - Resources
Blackpool Council,1058510,Lifeline Language Services Ltd,484719,0718056,16/05/2018,328.8,54.8,JEA,Senior Management,5507,Personal,Children'S Services
Blackpool Council,1086156,Water Saving Techniques Limited,484725,3787,09/05/2018,3360,560,PARADE,Parades & Sea Wall,1012,Premises Maint-Priv.Contractor,Community & Env Services
Blackpool Council,1086156,Water Saving Techniques Limited,484726,3786,09/05/2018,332.88,55.48,ENGINE,Engineering,1012,Premises Maint-Priv.Contractor,Community & Env Services
Blackpool Council,1086156,Water Saving Techniques Limited,484727,3785,09/05/2018,7200,1200,PARADE,Parades & Sea Wall,1012,Premises Maint-Priv.Contractor,Community & Env Services
Blackpool Council,1086156,Water Saving Techniques Limited,484729,3789,09/05/2018,5126.4,854.4,PARADE,Parades & Sea Wall,1012,Premises Maint-Priv.Contractor,Community & Env Services
Blackpool Council,1093034,Sports Bulk Suppliers,484743,31279,08/05/2018,324,54,PESPRT,Pe And Sport Team,3201,Clothing & Uniforms,Community & Env Services
Blackpool Council,1008775,J P Lennard Ltd,484756,889486,11/05/2018,1444.8,240.8,LEISUR,Leisure Management,3012,Other Equipment,Community & Env Services
Blackpool Council,1051151,Fisc Healthcare Llp,484766,224361,02/05/2018,574.8,95.8,MTE,Undefined Age Group,3006,Hire Of Equipment,Adult & Families
Blackpool Council,1114704,Morson Human Resources Ltd,484777,HS170913,03/05/2018,1584,264,CTAHHA,Tramway Emergency Works,6506,Consultants Fees,Capital - Comm & Environ
Blackpool Council,1114036,Odlings Ltd T/A The Columbaria Co,484786,INV0059898,11/05/2018,522,87,CEMCRE,Cems Crems Etc,3454,Remove And Refix Memorials,Governance & Partnerships
Blackpool Council,1048978,Environmental Leadership Limited,484921,6895,04/05/2018,260.03,43.34,SCLEAN,Street Cleaning,4501,Private Contractors,Community & Env Services
Blackpool Council,1009004,Bemrose Booth Limited,484962,452794,14/05/2018,302.4,50.4,PARADM,Parking Administration,3302,Stationery,Budgets Outside Cash Limits
Blackpool Council,1006940,Smiths Equipment Hire Ltd,484977,V07-610301,02/05/2018,288,48,PJHA,"Depot, Management & Admin",3041,Other Materials,Community & Env Services
Blackpool Council,1023161,Suez Recycling And Recovery Uk Ltd,485008,80100808,11/05/2018,3756.48,626.08,CWASTE,Commercial Waste,4514,Contract 'E',Community & Env Services
Blackpool Council,1069873,U-Save Ltd,485018,14610,02/05/2018,312,52,PBF,Communications,3806,Advertising-General,Chief Executive
Blackpool Council,1057663,Wilde Recruitment Ltd,485021,32756,04/05/2018,517.86,86.31,CTAHHA,Tramway Emergency Works,6501,Contract Payments,Capital - Comm & Environ
Blackpool Council,1038314,Century Plastics Ltd,485036,96017808,18/05/2018,4478.59,746.43,TRB,Maintenance & Works,4501,Private Contractors,Community & Env Services
Blackpool Council,1114704,Morson Human Resources Ltd,485037,HS171811,03/05/2018,1980,330,CTAHHA,Tramway Emergency Works,6506,Consultants Fees,Capital - Comm & Environ
Blackpool Council,1082721,Duxburys Commercial Ltd,485039,21893,02/05/2018,960,160,HJA,Growth,3413,Consultants,Places
Blackpool Council,1009009,Hermolle Associates Ltd,485040,9403,02/05/2018,1584,264,HJA,Growth,3413,Consultants,Places
Blackpool Council,1025240,Key Engineering Supplies Ltd,485041,3922,18/05/2018,265.44,44.24,APCBCA,Langdale,3066,Personal Needs Of Clients,Adult & Families
Blackpool Council,1025240,Key Engineering Supplies Ltd,485042,3921,18/05/2018,666,111,APCBCA,Langdale,3066,Personal Needs Of Clients,Adult & Families
Blackpool Council,1007823,Northern Housing Consortium Ltd,485046,55227,03/05/2018,1062,177,FB0001,Business Services Team,3711,Subscriptions,Resources
Blackpool Council,1010229,British Destinations,485051,1962,18/05/2018,4320,720,PPA,Head Of Tourism Services,3711,Subscriptions,Places
Blackpool Council,1024604,The Dartington Hall Trust,485060,R 2310,10/05/2018,11016.6,341.6,JA0505,Children'S Training,3711,Subscriptions,Children'S Services
Blackpool Council,1020816,Stephen Padgett Ltd,485069,10565,03/05/2018,740,123.32,APCBAA,Coopers Way,3030,Domestic Equipment - Purchase,Adult & Families
Blackpool Council,1006449,Tmp (Uk) Ltd,485082,100001177061,04/05/2018,283.97,47.33,TRA,Traffic Management,4501,Private Contractors,Community & Env Services
Blackpool Council,1006449,Tmp (Uk) Ltd,485084,100001177062,04/05/2018,780.91,130.15,TRA,Traffic Management,4501,Private Contractors,Community & Env Services
Blackpool Council,1006449,Tmp (Uk) Ltd,485085,100001177402,11/05/2018,283.97,47.33,TRA,Traffic Management,4501,Private Contractors,Community & Env Services
Blackpool Council,1068172,Northern Print Distribution Ltd,485093,10103,18/05/2018,360,60,PRG,Tourism General,3301,Printing,Places
Blackpool Council,1044756,Northgate Public Services (Uk) Ltd,485094,91405689,23/05/2018,600,100,PARADM,Parking Administration,3532,Comp-Running & License Costs,Budgets Outside Cash Limits
Blackpool Council,1079017,Building Software Ltd  (Measure 2 Improve),485096,5750,16/05/2018,15720,2620,CTABWA,Ltp Scheme 17/18,6501,Contract Payments,Capital - Places
Blackpool Council,1045303,Version One Limited,485097,ARCMIN/00038834,18/05/2018,622.1,103.68,FB0062,Payments & Processing,3532,Comp-Running & License Costs,Resources
Blackpool Council,1026811,Stannah Lift Services Ltd,485104,C040107513,04/05/2018,701.57,116.93,CXAAA,Local Authority Dwellings,6501,Contract Payments,Capital - Places
Blackpool Council,1026811,Stannah Lift Services Ltd,485107,C040107514,04/05/2018,3152.23,525.37,MVB,65-74,5401,Aids To Daily Living,Adult & Families
Blackpool Council,1026811,Stannah Lift Services Ltd,485111,C040107515,04/05/2018,507.6,84.6,MVB,65-74,5401,Aids To Daily Living,Adult & Families
Blackpool Council,1026811,Stannah Lift Services Ltd,485115,P040195010,04/05/2018,516,86,CXAAA,Local Authority Dwellings,6501,Contract Payments,Capital - Places
Blackpool Council,1026811,Stannah Lift Services Ltd,485169,P040195009,04/05/2018,4353.6,725.6,MVB,65-74,5401,Aids To Daily Living,Adult & Families
Blackpool Council,1094424,The Networking People,485182,SI105014,17/05/2018,3389.86,564.98,FGAA,Ict Corporate Services,3531,Computer-H'Ware Purchase,Resources
Blackpool Council,1094424,The Networking People,485183,SI104995,11/05/2018,23733.2,3955.53,FGAA,Ict Corporate Services,3527,Communication Lines,Resources
Blackpool Council,1094424,The Networking People,485184,SI104996,11/05/2018,21120,3520,FGAA,Ict Corporate Services,3527,Communication Lines,Resources
Blackpool Council,1094424,The Networking People,485185,SI105001,11/05/2018,8022.9,1337.15,FGAA,Ict Corporate Services,3527,Communication Lines,Resources
Blackpool Council,1006292,Vodafone Corporate Ltd,485187,KZ24828,09/05/2018,444,74,FGAA,Ict Corporate Services,3531,Computer-H'Ware Purchase,Resources
Blackpool Council,1011970,A1 Streamline Road Markings Ltd,485201,2682,17/05/2018,1080.32,180.06,TRB,Maintenance & Works,4501,Private Contractors,Community & Env Services
Blackpool Council,1010619,Askews And Holts Library Services Ltd,485245,5685447,03/05/2018,250.72,0,LBB,Central Library,3304,Books And Periodicals,Places
Blackpool Council,1010619,Askews And Holts Library Services Ltd,485246,5681629,04/05/2018,295.96,0,LBB,Central Library,3304,Books And Periodicals,Places
Blackpool Council,1010619,Askews And Holts Library Services Ltd,485247,5687235,04/05/2018,280.46,0,LBB,Central Library,3304,Books And Periodicals,Places
Blackpool Council,1010619,Askews And Holts Library Services Ltd,485248,5687295,04/05/2018,304.63,0,LBB,Central Library,3304,Books And Periodicals,Places
Blackpool Council,1088639,Browns Ctp Limited,485263,47609,16/05/2018,645.6,107.6,PPA,Head Of Tourism Services,3301,Printing,Places
Blackpool Council,1006586,H Jenkinson & Co Ltd,485265,SINV00801767,29/05/2018,480,80,AEB,Buildings,3302,Stationery,Resources
Blackpool Council,1069573,A Rostron T/A Blackpool Bed Centre,485275,180418-1,02/05/2018,270,45,JBR,Lac - Placements,4812,Initial Loan Equipment,Children'S Services
Blackpool Council,1027733,William Smith & Sons (Barnard Castle) Ltd,485276,456455,18/05/2018,2174.4,362.4,NR8002,Core-Dog Warden,3313,General Expenses,Community & Env Services
Blackpool Council,1018732,Nrs Healthcare,485278,97522003,17/05/2018,1729.16,288.19,APEBBA,Whitegate Cil,6273,Miscellaneous,Adult & Families
Blackpool Council,1031475,Jenx Ltd,485300,211333,11/05/2018,1658.4,276.4,MTE,Undefined Age Group,5401,Aids To Daily Living,Adult & Families
Blackpool Council,1022781,Moore Readymix Ltd,485333,88415,16/05/2018,553.2,92.2,ENGINE,Engineering,3041,Other Materials,Community & Env Services
Blackpool Council,1073324,Dale Power Solutions Plc,485349,SI138518,23/05/2018,5879.46,979.91,FGAA,Ict Corporate Services,1121,Heating & Ventilation,Resources
Blackpool Council,1094277,Aitkens Sportsturf Ltd,485350,2432,04/05/2018,504,84,PRKOP1,Parks Operational Manager  1,3060,Chemicals,Community & Env Services
Blackpool Council,1005071,Blackpool Transport Services Limited,485351,I0000373,02/05/2018,860,0,JEA,Senior Management,5552,Bus Pass / Travel,Children'S Services
Blackpool Council,1005071,Blackpool Transport Services Limited,485352,I0000374,03/05/2018,1200,0,VA0010,Vah Management & Admin,3408,Services To Clients,Children'S Services
Blackpool Council,1005071,Blackpool Transport Services Limited,485353,I0000376,02/05/2018,1100,0,PVA,Other External Funding,2301,Bus & Tram Fares,Places
Blackpool Council,1058510,Lifeline Language Services Ltd,485366,0718048,17/05/2018,269.28,44.88,SBOARD,Springboard,4501,Private Contractors,Children'S Services
Blackpool Council,1055691,Norbain Sd Ltd,485369,I2662834,16/05/2018,2146.18,357.7,CCTV,Cctv,2002,Repairs And Maintenance,Places
Blackpool Council,1088017,Social Care Institute For Excellence,485375,INV725,15/05/2018,1224,204,LM0420,Adults Training,0911,Training Expenses,Adult & Families
Blackpool Council,1006586,H Jenkinson & Co Ltd,485386,SINV00801953,29/05/2018,875.64,145.94,AEB,Buildings,3020,Furniture - Purchase,Resources
Blackpool Council,1006586,H Jenkinson & Co Ltd,485388,SINV00801951,29/05/2018,329.95,54.99,AEB,Buildings,3020,Furniture - Purchase,Resources
Blackpool Council,1062176,Gmbg Ltd T/A Civils & Lintels,485433,FNW/356723,18/05/2018,561.06,93.51,SCHEME,Highways Schemes,3041,Other Materials,Community & Env Services
Blackpool Council,1080418,Skv Communications Limited,485434,61637,01/05/2018,1980,330,CGTBBB,Conference Centre,6501,Contract Payments,Capital - Places
Blackpool Council,1100367,Curve Learning And Development Ltd,485439,8308,18/05/2018,439.2,73.2,LM0420,Adults Training,0911,Training Expenses,Adult & Families
Blackpool Council,1005071,Blackpool Transport Services Limited,485440,I0000389,03/05/2018,1056,0,JEA,Senior Management,5552,Bus Pass / Travel,Children'S Services
Blackpool Council,1102221,Adhd Foundation,485441,0015-18,10/05/2018,632.4,0,JA0505,Children'S Training,0911,Training Expenses,Children'S Services
Blackpool Council,1008947,Iccm,485443,9716,11/05/2018,306,51,CEMCRE,Cems Crems Etc,3605,Confs & Short Courses,Governance & Partnerships
Blackpool Council,1009906,Combined Precision Components Plc Cpc,485447,8164493,11/05/2018,282.96,47.16,FMAK,Acquisitions 9/10,1131,Electrical Equipment - Repairs,Places
Blackpool Council,1095404,Ams International,485455,44-23796,14/05/2018,276.48,46.08,PU0001,Public Health Team,4501,Private Contractors,Public Health
Blackpool Council,1008540,Konica Minolta Business (Uk) Ltd,485456,1137151402,18/05/2018,6728.83,1121.47,FGBA,Specific (Directorate)-Service,3305,Photocopying Charges,Resources
Blackpool Council,1115754,Central Source,485462,SO186434,10/05/2018,273.6,45.6,PRKOP1,Parks Operational Manager  1,3041,Other Materials,Community & Env Services
Blackpool Council,1057261,Experian Ltd,485468,YEX38000639446,11/05/2018,1878.47,313.08,LEISUR,Leisure Management,3801,Other Expenses,Community & Env Services
Blackpool Council,1109682,Entertainment Concepts Ltd,485478,123,01/05/2018,1200,200,FMAK,Acquisitions 9/10,1012,Premises Maint-Priv.Contractor,Places
Blackpool Council,1044690,Lesar Uk Ltd,485480,56878,22/05/2018,390,65,PYLA,Licencing,3301,Printing,Community & Env Services
Blackpool Council,1114522,The Oyster Partnership Ltd,485489,1030925,18/05/2018,799.5,133.25,AEE,Estates,0781,Contracted,Resources
Blackpool Council,1006944,Siemens Financial Services Ltd,485490,244/18/0155394,04/05/2018,4532.92,755.48,APFBAB,Vitaline,4501,Private Contractors,Adult & Families
Blackpool Council,1006099,Blackpool Teaching Hospitals Nhs Ft,485528,1110037684,02/05/2018,10452,1742,PU2008,Childrens 0-5,4501,Private Contractors,Public Health
Blackpool Council,1115724,Moore Stephens Llp,485532,04M203,02/05/2018,7800,1300,HJA,Growth,3413,Consultants,Places
Blackpool Council,1055691,Norbain Sd Ltd,485540,I2665367,14/05/2018,609.78,101.63,CCTV,Cctv,2002,Repairs And Maintenance,Places
Blackpool Council,1009166,Glasdon Uk Ltd,485541,749736,04/05/2018,2106.24,351.04,SCLEAN,Street Cleaning,3041,Other Materials,Community & Env Services
Blackpool Council,1106832,The Letterbox Consultancy Ltd,485542,1824147,16/05/2018,7625.53,1270.92,PBF,Communications,3801,Other Expenses,Chief Executive
Blackpool Council,1111989,REDACTED PERSONAL DATA,485544,BC-04/18,04/05/2018,330,0,AHM,Arts Miscellaneous,3456,Payment To Artists,Places
Blackpool Council,1082721,Duxburys Commercial Ltd,485546,6816 CAT,04/05/2018,998.64,166.44,AEB,Buildings,3020,Furniture - Purchase,Resources
Blackpool Council,1006099,Blackpool Teaching Hospitals Nhs Ft,485552,1110037194,01/05/2018,13718,0,HS0003,Headstart Commissioning,3408,Services To Clients,Children'S Services
Blackpool Council,1114664,REDACTED PERSONAL DATA,485553,004,01/05/2018,680,0,HS0001,Headstart Central Expenditure,0791,Temp/Relief (Bureau Staff),Children'S Services
Blackpool Council,1090774,Richardson Traction Limited,485554,20331,04/05/2018,720,120,PJAA,"Erection, Operation & Dismantl",3006,Hire Of Equipment,Community & Env Services
Blackpool Council,1076636,Chicken Joes Ltd,485556,474341,18/05/2018,272.1,0,CATERG,Catering Services,3101,Provisions,Community & Env Services
Blackpool Council,1012116,Commercial Kitchen Services Ltd,485557,86337,03/05/2018,252,42,CATERG,Catering Services,3052,Kitchen (Light) Equip-Purchase,Community & Env Services
Blackpool Council,1115493,Kennet Equipment Leasing Ltd,485561,MI/0059261,24/05/2018,390,65,CATERG,Catering Services,3401,General Services,Community & Env Services
Blackpool Council,1009004,Bemrose Booth Limited,485562,453324,14/05/2018,1512,252,PARADM,Parking Administration,3302,Stationery,Budgets Outside Cash Limits
Blackpool Council,1108504,Automated Payment Transfer Ltd,485564,18/0706,18/05/2018,3480,580,FGAA,Ict Corporate Services,3532,Comp-Running & License Costs,Resources
Blackpool Council,1011970,A1 Streamline Road Markings Ltd,485575,2716,09/05/2018,318.72,53.12,ENGINE,Engineering,1012,Premises Maint-Priv.Contractor,Community & Env Services
Blackpool Council,1035017,Newauto Ltd T/A Mogo Uk,485576,T28156,21/05/2018,808.8,134.8,PYLA,Licencing,3041,Other Materials,Community & Env Services
Blackpool Council,1115723,Dfn Charitable Foundation,485582,PS007,25/05/2018,369,61.5,PSEARC,Project Search,0915,Conferences,Places
Blackpool Council,1049304,Insight Direct (Uk) Ltd,485584,3859436,25/05/2018,1624.06,270.68,CS0739,Ict Refresh,6525,I.T. Hardware Purchase,Capital - Resources
Blackpool Council,1006761,Stockport M.B.C,485586,90596789,02/05/2018,1100,0,MNGMT,Central Management,5555,Educational Support,Children'S Services
Blackpool Council,1011717,Clearview Intelligence Limited,485662,19409,25/05/2018,1134,189,TRB,Maintenance & Works,4501,Private Contractors,Community & Env Services
Blackpool Council,1008878,Cipfa Business Limited,485667,3133964,03/05/2018,2514,419,FD0021,Subscriptions,3711,Subscriptions,Budgets Outside Cash Limits
Blackpool Council,1007516,Phoenix Commercial Collections Ltd,485669,99623,18/05/2018,3696,616,FV6705,Phoenix Commercial Collection,7366,Car Parking Fees,Budgets Outside Cash Limits
Blackpool Council,1043100,Traffic Enforcement Centre,485670,RBP001018,03/05/2018,344,0,PARADM,Parking Administration,3801,Other Expenses,Budgets Outside Cash Limits
Blackpool Council,1071432,Cpi - Crisis Preventions Insititute,485677,CUK0014895,18/05/2018,936,156,EDDIV,Education Diversity,3605,Confs & Short Courses,Children'S Services
Blackpool Council,1071432,Cpi - Crisis Preventions Insititute,485678,CUK0014898,18/05/2018,2112,352,EDDIV,Education Diversity,3605,Confs & Short Courses,Children'S Services
Blackpool Council,1078657,4tech Training Ltd,485681,211,17/05/2018,546.48,91.08,EDDIV,Education Diversity,4101,Other Local Authorities,Children'S Services
Blackpool Council,1097502,Honey Brothers Limited,485690,IN159773,23/05/2018,258,43,PRKOP1,Parks Operational Manager  1,3401,General Services,Community & Env Services
Blackpool Council,1110274,REDACTED PERSONAL DATA,485703,1,01/05/2018,2000,0,AHM,Arts Miscellaneous,3819,Events Support,Places
Blackpool Council,1008165,Manchester City Council,485704,8500539056,01/05/2018,2700,0,LBF,Library Management,3711,Subscriptions,Places
Blackpool Council,1081810,Childs Play Limited,485709,0001,01/05/2018,272,0,ALEARN,Adult Learning,3801,Other Expenses,Places
Blackpool Council,1114704,Morson Human Resources Ltd,485710,HS172767,03/05/2018,1980,330,CTAHHA,Tramway Emergency Works,6506,Consultants Fees,Capital - Comm & Environ
Blackpool Council,1114522,The Oyster Partnership Ltd,485713,1031293,18/05/2018,770.28,128.38,AEE,Estates,0781,Contracted,Resources
Blackpool Council,1098854,Nhs Supply Chain,485744,1018254508,22/05/2018,330.8,55.13,PUBH24,Miscellaneous,4501,Private Contractors,Public Health
Blackpool Council,1114142,Training Synergy Ltd,485745,3365,23/05/2018,537,89.5,FBBEA,"Income, Recovery & Debtors",3605,Confs & Short Courses,Resources
Blackpool Council,1114142,Training Synergy Ltd,485745,3365,23/05/2018,537,89.5,FCACA,Benefits - Admin,3605,Confs & Short Courses,Resources
Blackpool Council,1006099,Blackpool Teaching Hospitals Nhs Ft,485755,1110037872,11/05/2018,14234.4,2372.4,JBR,Lac - Placements,3413,Consultants,Children'S Services
Blackpool Council,1107790,Taylek Ltd,485757,INV-08397,31/05/2018,835.8,139.3,PJRA,Electrical Infra - Places,3041,Other Materials,Community & Env Services
Blackpool Council,1008540,Konica Minolta Business (Uk) Ltd,485759,1136805064,02/05/2018,34047.31,5674.55,FGBA,Specific (Directorate)-Service,3305,Photocopying Charges,Resources
Blackpool Council,1112198,Kkc Engineering Consultants Limited,485785,832/18,29/05/2018,10332,1722,CTAHHA,Tramway Emergency Works,6506,Consultants Fees,Capital - Comm & Environ
Blackpool Council,1101639,Aardvark Art Services Limited,485786,INV-1289,11/05/2018,252.35,42.06,AHG,Art Gallery Summary,3456,Payment To Artists,Places
Blackpool Council,1090902,Anderson & Sons Contracting & Turf Care,485788,199,02/05/2018,2000,0,TRB,Maintenance & Works,4501,Private Contractors,Community & Env Services
Blackpool Council,1090902,Anderson & Sons Contracting & Turf Care,485789,200,02/05/2018,2000,0,TRB,Maintenance & Works,4501,Private Contractors,Community & Env Services
Blackpool Council,1090902,Anderson & Sons Contracting & Turf Care,485790,201,02/05/2018,300,0,TRB,Maintenance & Works,4501,Private Contractors,Community & Env Services
Blackpool Council,1006099,Blackpool Teaching Hospitals Nhs Ft,485791,1110037844,04/05/2018,4249.07,0,SBOARD,Springboard,3801,Other Expenses,Children'S Services
Blackpool Council,1009009,Hermolle Associates Ltd,485792,9429,02/05/2018,744,124,HJA,Growth,3413,Consultants,Places
Blackpool Council,1087953,Blackpool Local Education Partnership Ltd,485793,SI10013,02/05/2018,10825.98,1804.33,EM1028,St Marys,4515,Contract Services,Children'S Services
Blackpool Council,1059205,Safeplace Security Limited,485794,2465,25/05/2018,300,50,CCTV,Cctv,2002,Repairs And Maintenance,Places
Blackpool Council,1059205,Safeplace Security Limited,485795,2464,25/05/2018,3780,630,CCTV,Cctv,2002,Repairs And Maintenance,Places
Blackpool Council,1008620,Ppg Architectural Coatings Uk Limited,485796,4492891075,25/05/2018,684.86,114.14,PARADE,Parades & Sea Wall,3041,Other Materials,Community & Env Services
Blackpool Council,1049304,Insight Direct (Uk) Ltd,485797,3863133,25/05/2018,2616,436,CS0739,Ict Refresh,6525,I.T. Hardware Purchase,Capital - Resources
Blackpool Council,1096596,Highfield Pfi Spv Ltd,485802,SI10013,02/05/2018,383873.33,63978.88,EM1029,Highfield Pfi,4515,Contract Services,Children'S Services
Blackpool Council,1096596,Highfield Pfi Spv Ltd,485802,SI10013,02/05/2018,9092.69,1515.45,EM1029,Highfield Pfi,1202,Electricity,Children'S Services
Blackpool Council,1058510,Lifeline Language Services Ltd,485803,0718051,25/05/2018,289.32,48.22,JEA,Senior Management,5507,Personal,Children'S Services
Blackpool Council,1110829,News Uk & Ireland Ltd T/A Simply Zesty,485807,IN1957,25/05/2018,10867.5,0,PRG,Tourism General,3535,Website Costs,Places
Blackpool Council,1110829,News Uk & Ireland Ltd T/A Simply Zesty,485808,IN1956,25/05/2018,412.5,0,PRG,Tourism General,3535,Website Costs,Places
Blackpool Council,1058510,Lifeline Language Services Ltd,485811,0718084,30/05/2018,320.64,53.44,JEA,Senior Management,5507,Personal,Children'S Services
Blackpool Council,1036991,Wec Group Ltd,485819,SIN094248,25/05/2018,360,60,CCTV,Cctv,2002,Repairs And Maintenance,Places
Blackpool Council,1101668,Fylde Coast Teaching School,485842,1483,03/05/2018,300,0,EDDIV,Education Diversity,3605,Confs & Short Courses,Children'S Services
Blackpool Council,1042871,Liverpool Hope University,485847,3054720,18/05/2018,1250,0,EDDIV,Education Diversity,3605,Confs & Short Courses,Children'S Services
Blackpool Council,1115629,Lion Safety,485848,209512,18/05/2018,848.88,141.48,FVFAA,Street Crossing Patrols,3201,Clothing & Uniforms,Community & Env Services
Blackpool Council,1110202,Preston Bus Ltd,485850,103438,04/05/2018,1420.8,236.8,TRCHIL,Integrated Transport Childrens,4501,Private Contractors,Community & Env Services
Blackpool Council,1010667,Argos Business Solutions Ltd,485851,01647434,11/05/2018,283.36,47.13,FC1802,Social Fund - Client,5210,Community Care Support,Resources
Blackpool Council,1110202,Preston Bus Ltd,485852,103439,04/05/2018,1478.4,246.4,TRCHIL,Integrated Transport Childrens,4501,Private Contractors,Community & Env Services
Blackpool Council,1110996,Philip Holmes T/A Dragon Creative,485853,BC0008,04/05/2018,848.14,0,PJW,Management - Places - Illumina,3413,Consultants,Places
Blackpool Council,1034666,City Of Sunderland,485855,2803048695,14/05/2018,1209.6,201.6,PJW,Management - Places - Illumina,3041,Other Materials,Places
Blackpool Council,1080563,Bay Media,485856,14489,30/05/2018,20868,3478,PRL,Marketing,3401,General Services,Places
Blackpool Council,1058510,Lifeline Language Services Ltd,485857,0718154,30/05/2018,274.8,45.8,JEA,Senior Management,5507,Personal,Children'S Services
Blackpool Council,1103450,Blackpool Entertainment Company Limited,485860,INV003531,04/05/2018,600,100,TRB,Maintenance & Works,4501,Private Contractors,Community & Env Services
Blackpool Council,1009035,Hilton Cabinet Co Ltd (Fac005 Payment),485861,62478,18/05/2018,962.77,160.47,CEMCRE,Cems Crems Etc,3450,Book Of Remembrance,Governance & Partnerships
Blackpool Council,1040364,Conlon Construction Ltd,485871,10329,02/05/2018,12967.98,2161.33,CGTABA,Spanish Hall & Cs Façade,6501,Contract Payments,Capital - Places
Blackpool Council,1009751,Bt Business Direct Limited,485872,IN04090378,10/05/2018,341.74,56.95,CCTV,Cctv,2002,Repairs And Maintenance,Places
Blackpool Council,1094424,The Networking People,485910,SI105041,25/05/2018,505.12,84.19,TSICT,Transforming Schools Ict,3532,Comp-Running & License Costs,Resources
Blackpool Council,1028068,Proquest Llc,485912,70517549,18/05/2018,4860,0,LBF,Library Management,3711,Subscriptions,Places
Blackpool Council,1010619,Askews And Holts Library Services Ltd,485913,13647,25/05/2018,1800,300,LBB,Central Library,3304,Books And Periodicals,Places
Blackpool Council,1078147,Bristol Oilskin & Overall Co Ltd,485914,115866,16/05/2018,766.32,127.72,FVFAA,Street Crossing Patrols,3201,Clothing & Uniforms,Community & Env Services
Blackpool Council,1012071,Bethell Construction Limited,485918,15193,03/05/2018,3019.25,503.21,ENGINE,Engineering,1012,Premises Maint-Priv.Contractor,Community & Env Services
Blackpool Council,1012071,Bethell Construction Limited,485919,15194,03/05/2018,2483.34,413.89,ENGINE,Engineering,1012,Premises Maint-Priv.Contractor,Community & Env Services
Blackpool Council,1012071,Bethell Construction Limited,485920,15195,03/05/2018,1486.43,247.74,ENGINE,Engineering,1012,Premises Maint-Priv.Contractor,Community & Env Services
Blackpool Council,1012071,Bethell Construction Limited,485921,15196,03/05/2018,1448.9,241.48,ENGINE,Engineering,1012,Premises Maint-Priv.Contractor,Community & Env Services
Blackpool Council,1012071,Bethell Construction Limited,485924,15197,03/05/2018,350.62,58.44,ENGINE,Engineering,1012,Premises Maint-Priv.Contractor,Community & Env Services
Blackpool Council,1012071,Bethell Construction Limited,485925,15198,03/05/2018,325.93,54.32,ENGINE,Engineering,1012,Premises Maint-Priv.Contractor,Community & Env Services
Blackpool Council,1012071,Bethell Construction Limited,485926,15192,03/05/2018,4206.37,701.06,ENGINE,Engineering,1012,Premises Maint-Priv.Contractor,Community & Env Services
Blackpool Council,1012071,Bethell Construction Limited,485927,15191,03/05/2018,1807.75,301.29,ENGINE,Engineering,1012,Premises Maint-Priv.Contractor,Community & Env Services
Blackpool Council,1012071,Bethell Construction Limited,485928,15190,03/05/2018,1786.04,297.67,ENGINE,Engineering,1012,Premises Maint-Priv.Contractor,Community & Env Services
Blackpool Council,1094424,The Networking People,485929,SI105044,25/05/2018,43200,7200,FGAA,Ict Corporate Services,3527,Communication Lines,Resources
Blackpool Council,1087118,Ps & P Limited,485937,99718,25/05/2018,1215.58,202.6,FC3001,Housing Benefits,3401,General Services,Budgets Outside Cash Limits
Blackpool Council,1078235,Springboard Research Limited,485940,2015-17716,03/05/2018,2173.5,362.25,PPA,Head Of Tourism Services,3401,General Services,Places
Blackpool Council,1101313,Modern Mindset Ltd,485943,2018233,31/05/2018,8412,1402,BEA,Democratic Services & Admin,3532,Comp-Running & License Costs,Governance & Partnerships
Blackpool Council,1066555,Adcs Services Ltd,485945,5788,29/05/2018,499.2,83.2,EM1001,Departmental Management,0915,Conferences,Children'S Services
Blackpool Council,1006940,Smiths Equipment Hire Ltd,485947,V11-612894,16/05/2018,324,54,CCTV,Cctv,3426,Course Fees,Places
Blackpool Council,1084671,Autocross Euroshel Limited,485948,7768,17/05/2018,540,90,TRB,Maintenance & Works,4501,Private Contractors,Community & Env Services
Blackpool Council,1084671,Autocross Euroshel Limited,485948,7768,17/05/2018,1134,189,TRC,Travel & Safety,4501,Private Contractors,Community & Env Services
Blackpool Council,1066729,Equis Associates Limited,485953,12-36-PG-BC,14/05/2018,16200,2700,CTAHHA,Tramway Emergency Works,6506,Consultants Fees,Capital - Comm & Environ
Blackpool Council,1100542,Caroline Horn T/A Bentley Training,485955,BEN/325,18/05/2018,713.5,0,LEISUR,Leisure Management,0911,Training Expenses,Community & Env Services
Blackpool Council,1100542,Caroline Horn T/A Bentley Training,485956,BEN/326,03/05/2018,1709.5,0,LEISUR,Leisure Management,0911,Training Expenses,Community & Env Services
Blackpool Council,1081560,Transend (Uk) Ltd (Fac008),485957,12129,30/05/2018,972,162,COMSAF,Community Safety,2002,Repairs And Maintenance,Public Health
Blackpool Council,1076264,Alliance Disposables Ltd,485958,I6751560,30/05/2018,657.84,109.64,SCLEAN,Street Cleaning,1601,Consumable Supplies,Community & Env Services
Blackpool Council,1053261,Ad Systems (Uk) Limited,485967,4226,11/05/2018,2808,468,CCTV,Cctv,2002,Repairs And Maintenance,Places
Blackpool Council,1008871,Irrv Services,485968,A124736,30/05/2018,300,50,FBBBA,Audit & Investigations,3605,Confs & Short Courses,Resources
Blackpool Council,1058510,Lifeline Language Services Ltd,485971,0718118,30/05/2018,269.28,44.88,SBOARD,Springboard,4501,Private Contractors,Children'S Services
Blackpool Council,1006985,Servicemaster  Ltd,485974,21369,31/05/2018,473.56,78.93,AEB,Buildings,3401,General Services,Resources
Blackpool Council,1055762,Kompan Ltd,485975,SI224102,10/05/2018,2694.22,449.03,PRKTEC,Parks Terchnician Manager,1012,Premises Maint-Priv.Contractor,Community & Env Services
Blackpool Council,1059178,Quality Essential Distribution Ltd,485976,427345,18/05/2018,699.62,116.6,CCTV,Cctv,2002,Repairs And Maintenance,Places
Blackpool Council,1085660,Bisset Adams Ltd,485977,07216,30/05/2018,17282.28,2880.38,FMAK,Acquisitions 9/10,3801,Other Expenses,Places
Blackpool Council,1011868,W H Tarmacadam Limited,485978,4013,17/05/2018,15600,2600,TRB,Maintenance & Works,4501,Private Contractors,Community & Env Services
Blackpool Council,1011868,W H Tarmacadam Limited,485979,40115,09/05/2018,24665.28,4110.88,SCHEME,Highways Schemes,1012,Premises Maint-Priv.Contractor,Community & Env Services
Blackpool Council,1011868,W H Tarmacadam Limited,485980,4011,09/05/2018,15120,2520,PARADE,Parades & Sea Wall,1012,Premises Maint-Priv.Contractor,Community & Env Services
Blackpool Council,1009004,Bemrose Booth Limited,485981,453546,14/05/2018,2520,420,PARADM,Parking Administration,3302,Stationery,Budgets Outside Cash Limits
Blackpool Council,1044756,Northgate Public Services (Uk) Ltd,485985,91406453,29/05/2018,1352.4,225.4,FC1404,Blue Badge Reform,3401,General Services,Resources
Blackpool Council,1112621,Lk2 Sport & Leisure Ltd,485986,1463,11/05/2018,3900,650,PRKDEV,Parks Development,1012,Premises Maint-Priv.Contractor,Community & Env Services
Blackpool Council,1096460,Mwuk Limited T/A Alexandra,485988,OLSINV/04930096,31/05/2018,359.1,59.85,APFBAB,Vitaline,3201,Clothing & Uniforms,Adult & Families
Blackpool Council,1110090,REDACTED PERSONAL DATA,485990,702,18/05/2018,631.25,0,AHM,Arts Miscellaneous,3819,Events Support,Places
Blackpool Council,1006586,H Jenkinson & Co Ltd,485992,SINV00803555,29/05/2018,480,80,AEB,Buildings,3302,Stationery,Resources
Blackpool Council,1008937,I Brooks,486002,019,10/05/2018,501,0,LBF,Library Management,1604,Window Cleaning,Places
Blackpool Council,1034222,Teleshore (Uk) Ltd,486003,21332,30/05/2018,450,75,CEMCRE,Cems Crems Etc,3401,General Services,Governance & Partnerships
Blackpool Council,1071546,Denis Rowlandson,486008,0070,30/05/2018,600,100,PRKOP1,Parks Operational Manager  1,1012,Premises Maint-Priv.Contractor,Community & Env Services
Blackpool Council,1006985,Servicemaster  Ltd,486009,21258,30/05/2018,473.56,78.93,AEB,Buildings,3401,General Services,Resources
Blackpool Council,1044964,Marketing Lancashire,486010,LMKT504753,04/05/2018,6584,1097.33,MPB,Edc - Economic Dev Company,3806,Advertising-General,Places
Blackpool Council,1008878,Cipfa Business Limited,486014,3134608,04/05/2018,480,80,FBBBA,Audit & Investigations,3605,Confs & Short Courses,Resources
Blackpool Council,1010320,Bolton Mbc,486016,373594600067912,11/05/2018,6954,0,JBR,Lac - Placements,3711,Subscriptions,Children'S Services
Blackpool Council,1044156,Pell Frischmann,486018,W18 0124,04/05/2018,3100.43,516.74,CGOAAA,Quality Corridor,6501,Contract Payments,Capital - Places
Blackpool Council,1044156,Pell Frischmann,486019,W18 0125,04/05/2018,2126.03,354.34,CTBRAA,Bridges (Growth Fund),6501,Contract Payments,Capital - Comm & Environ
Blackpool Council,1082067,Squire Patton Boggs (Uk) Llp,486024,2624592,24/05/2018,29003.4,4833.9,CTAHHA,Tramway Emergency Works,6506,Consultants Fees,Capital - Comm & Environ
Blackpool Council,1082067,Squire Patton Boggs (Uk) Llp,486025,2624623,24/05/2018,540,90,CTAHHA,Tramway Emergency Works,6506,Consultants Fees,Capital - Comm & Environ
Blackpool Council,1110133,Alex Rinsler,486029,1802BC,04/05/2018,6281.94,0,PJW,Management - Places - Illumina,3413,Consultants,Places
Blackpool Council,1008039,Woodswaste Ltd,486066,028562,22/05/2018,768.96,128.16,CEMCRE,Cems Crems Etc,3454,Remove And Refix Memorials,Governance & Partnerships
Blackpool Council,1113970,Jack Coupe & Sons Ltd T/A Coupe Line,486067,21248,04/05/2018,1782.5,297.08,TRA,Traffic Management,4501,Private Contractors,Community & Env Services
Blackpool Council,1113705,Kathryn Peters T/A Grazecafe,486068,7011,22/05/2018,260,0,PTA,Economic Development,6215,Catering Services,Places
Blackpool Council,1105889,3d Environmental Limited,486076,BBC-0010,14/05/2018,510,85,PYEP,Environmental Protection,4501,Private Contractors,Community & Env Services
Blackpool Council,1092245,Connor Specialist Paving,486098,0187,04/05/2018,1680,280,CGOAAA,Quality Corridor,6501,Contract Payments,Capital - Places
Blackpool Council,1113460,Sureline Installations,486165,65,08/05/2018,385,0,MVA,18-64,5401,Aids To Daily Living,Adult & Families
Blackpool Council,1060724,J A Dickens Property Developer,486167,BCH 1531,08/05/2018,517.38,0,MVB,65-74,5401,Aids To Daily Living,Adult & Families
Blackpool Council,1060724,J A Dickens Property Developer,486168,BCH 1518,08/05/2018,362.8,0,CXAAA,Local Authority Dwellings,6501,Contract Payments,Capital - Places
Blackpool Council,1060724,J A Dickens Property Developer,486169,BCH 1530,08/05/2018,873.49,0,MVB,65-74,5401,Aids To Daily Living,Adult & Families
Blackpool Council,1060724,J A Dickens Property Developer,486171,BCH 1506,08/05/2018,302.16,0,MVA,18-64,5401,Aids To Daily Living,Adult & Families
Blackpool Council,1060724,J A Dickens Property Developer,486172,BCH 1507,08/05/2018,272.1,0,MVA,18-64,5401,Aids To Daily Living,Adult & Families
Blackpool Council,1060724,J A Dickens Property Developer,486173,BCH 1517,08/05/2018,362.8,0,MVB,65-74,5401,Aids To Daily Living,Adult & Families
Blackpool Council,1060724,J A Dickens Property Developer,486174,BCH-1529,08/05/2018,423.76,0,CXAAA,Local Authority Dwellings,6501,Contract Payments,Capital - Places
Blackpool Council,1060724,J A Dickens Property Developer,486175,BCH 1505,08/05/2018,302.16,0,MVB,65-74,5401,Aids To Daily Living,Adult & Families
Blackpool Council,1006196,Prism Medical Uk,486186,5259662,25/05/2018,10728,1788,MTE,Undefined Age Group,5401,Aids To Daily Living,Adult & Families
Blackpool Council,1078418,Lisclare Limited,486188,SINV03080178,10/05/2018,2470.72,411.79,MTE,Undefined Age Group,5401,Aids To Daily Living,Adult & Families
Blackpool Council,1011995,Technical & Electrical Services Ltd,486189,ES 17104,11/05/2018,285.6,47.6,MVB,65-74,5401,Aids To Daily Living,Adult & Families
Blackpool Council,1011675,Bambers Remedial Contractors Limited,486191,14981,09/05/2018,5226.45,0,CX4002,Disabled Facilities Grants,6501,Contract Payments,Capital - Adult Social Care
Blackpool Council,1011675,Bambers Remedial Contractors Limited,486192,15009,09/05/2018,5595.45,0,CX4002,Disabled Facilities Grants,6501,Contract Payments,Capital - Adult Social Care
Blackpool Council,1101066,Bruce Scott Structural Design Ltd,486193,01253,09/05/2018,330,0,CX4002,Disabled Facilities Grants,6501,Contract Payments,Capital - Adult Social Care
Blackpool Council,1026811,Stannah Lift Services Ltd,486194,S085086754,15/05/2018,3200,0,CX4002,Disabled Facilities Grants,6501,Contract Payments,Capital - Adult Social Care
Blackpool Council,1011675,Bambers Remedial Contractors Limited,486196,15024,09/05/2018,450,0,CX4002,Disabled Facilities Grants,6501,Contract Payments,Capital - Adult Social Care
Blackpool Council,1112303,Access-Able (Uk) Limited,486198,2688,24/05/2018,1191,0,CXAAA,Local Authority Dwellings,6501,Contract Payments,Capital - Places
Blackpool Council,1112303,Access-Able (Uk) Limited,486199,2684,24/05/2018,1520,0,CXAAA,Local Authority Dwellings,6501,Contract Payments,Capital - Places
Blackpool Council,1113243,Mclaughlin & Harvey Ltd,486218,INTERIM 1,11/05/2018,1860210.28,310035.05,CGTBBB,Conference Centre,6501,Contract Payments,Capital - Places
Blackpool Council,1113243,Mclaughlin & Harvey Ltd,486218,INTERIM 1,11/05/2018,57532.27,9588.71,ZF0001,"Insurance,Dso,Banking",97B6,Retention Monies - Cap Trsfr,Total Reconciliations
Blackpool Council,1010554,Baines Endowed Ce Academy & Nursery,486220,BASI57,15/05/2018,312,0,ALEARN,Adult Learning,3801,Other Expenses,Places
Blackpool Council,1105209,Happy Tots Nursery Ltd,486221,001,10/05/2018,380,0,ALEARN,Adult Learning,3801,Other Expenses,Places
Blackpool Council,1113243,Mclaughlin & Harvey Ltd,486222,21696,14/05/2018,552954.84,92159.14,CGACAA,Leopold Grove,6501,Contract Payments,Capital - Places
Blackpool Council,1113243,Mclaughlin & Harvey Ltd,486223,21649,14/05/2018,688972.12,114828.69,CGACAA,Leopold Grove,6501,Contract Payments,Capital - Places
Blackpool Council,1112696,REDACTED PERSONAL DATA,486226,BPL040518,10/05/2018,1180,0,LEISUR,Leisure Management,0911,Training Expenses,Community & Env Services
Blackpool Council,1093815,Raydar Safety Ltd,486227,SI-279,30/05/2018,399.6,66.6,CGOAAA,Quality Corridor,6501,Contract Payments,Capital - Places
Blackpool Council,1093815,Raydar Safety Ltd,486228,SI-268,11/05/2018,399.6,66.6,CGOAAA,Quality Corridor,6501,Contract Payments,Capital - Places
Blackpool Council,1079992,J Fisher & Sons Ltd,486230,48630,30/05/2018,1980,330,TRB,Maintenance & Works,4501,Private Contractors,Community & Env Services
Blackpool Council,1057663,Wilde Recruitment Ltd,486232,32826,21/05/2018,517.86,86.31,CTAHHA,Tramway Emergency Works,6501,Contract Payments,Capital - Comm & Environ
Blackpool Council,1082067,Squire Patton Boggs (Uk) Llp,486233,2624768,24/05/2018,3000,500,CTAHHA,Tramway Emergency Works,6506,Consultants Fees,Capital - Comm & Environ
Blackpool Council,1010667,Argos Business Solutions Ltd,486234,01645252,10/05/2018,685.77,114.13,FC1802,Social Fund - Client,5210,Community Care Support,Resources
Blackpool Council,1114704,Morson Human Resources Ltd,486235,HS174115,11/05/2018,1980,330,CTAHHA,Tramway Emergency Works,6506,Consultants Fees,Capital - Comm & Environ
Blackpool Council,1083256,Community Lighting Partnership (Bpool) Ltd,486243,100,09/05/2018,538521.02,89753.5,FL1259,Pfi Management Costs,4501,Private Contractors,Community & Env Services
Blackpool Council,1095165,Tower Learning Centre Ltd,486280,290-628,11/05/2018,3187.2,531.2,EDDIV,Education Diversity,4101,Other Local Authorities,Children'S Services
Blackpool Council,1016644,British Telecommunications Plc,486283,A170954,10/05/2018,11507.34,1917.89,CGOAAA,Quality Corridor,6501,Contract Payments,Capital - Places
Blackpool Council,1016644,British Telecommunications Plc,486284,A170953,10/05/2018,1581.89,263.65,CGOAAA,Quality Corridor,6501,Contract Payments,Capital - Places
Blackpool Council,1106044,British Pathe Ltd,486291,103953,18/05/2018,1008,168,AHHBA,Blackpool Museum,3711,Subscriptions,Places
Blackpool Council,1018184,Blackpool Skip Hire,486292,5482,11/05/2018,6462.55,1077.09,CWASTE,Commercial Waste,4514,Contract 'E',Community & Env Services
Blackpool Council,1018184,Blackpool Skip Hire,486293,5481,11/05/2018,15124.5,2520.75,CWASTE,Commercial Waste,4514,Contract 'E',Community & Env Services
Blackpool Council,1018184,Blackpool Skip Hire,486294,5483,15/05/2018,1890,315,DOMPFI,Domestic Waste & Waste Pfi,4514,Contract 'E',Community & Env Services
Blackpool Council,1056554,Indigo Promotions Limited,486296,8030,30/05/2018,1512,252,EYT,Early Years Team,3806,Advertising-General,Children'S Services
Blackpool Council,1017832,Dick Leigh Chainsaw Specialist,486301,193954,31/05/2018,295.99,49.33,PRKOP1,Parks Operational Manager  1,3020,Furniture - Purchase,Community & Env Services
Blackpool Council,1098897,Mike Kidd Horse Power Ltd,486302,1043,25/05/2018,1400,0,EDDIV,Education Diversity,4101,Other Local Authorities,Children'S Services
Blackpool Council,1098897,Mike Kidd Horse Power Ltd,486306,1044,25/05/2018,1150,0,EDDIV,Education Diversity,4101,Other Local Authorities,Children'S Services
Blackpool Council,1098897,Mike Kidd Horse Power Ltd,486308,1045,25/05/2018,1050,0,EDDIV,Education Diversity,4101,Other Local Authorities,Children'S Services
Blackpool Council,1078657,4tech Training Ltd,486315,225,25/05/2018,27055.99,4509.33,EDDIV,Education Diversity,4101,Other Local Authorities,Children'S Services
Blackpool Council,1078657,4tech Training Ltd,486320,220,18/05/2018,17472,2912,EDDIV,Education Diversity,4101,Other Local Authorities,Children'S Services
Blackpool Council,1105990,Fylde Environmental Services Ltd,486330,BC/164/2018,11/05/2018,2251,0,SCLEAN,Street Cleaning,4501,Private Contractors,Community & Env Services
Blackpool Council,1103450,Blackpool Entertainment Company Limited,486332,INV003552,11/05/2018,981,163.5,FK0071,Corporate Training,3803,Hospitality,Chief Executive
Blackpool Council,1009079,Pearson Education Ltd,486354,IRE036_VOC,11/05/2018,251,0,EDDIV,Education Diversity,3404,Exam Fees & Exps (Sch),Children'S Services
Blackpool Council,1113460,Sureline Installations,486400,62,14/05/2018,1195,0,CXAAA,Local Authority Dwellings,6502,Grants & Advances,Capital - Places
Blackpool Council,1006196,Prism Medical Uk,486401,4425369,25/05/2018,3988.39,664.73,MTE,Undefined Age Group,5401,Aids To Daily Living,Adult & Families
Blackpool Council,1006196,Prism Medical Uk,486402,3332516,25/05/2018,2369.47,394.91,MTE,Undefined Age Group,5401,Aids To Daily Living,Adult & Families
Blackpool Council,1086714,Liveasy Ltd,486403,BK0431A,15/05/2018,35444.05,5907.34,MTE,Undefined Age Group,5401,Aids To Daily Living,Adult & Families
Blackpool Council,1086714,Liveasy Ltd,486404,BK0431B,15/05/2018,22917.13,3819.52,MTE,Undefined Age Group,5401,Aids To Daily Living,Adult & Families
Blackpool Council,1086714,Liveasy Ltd,486405,BK0431C,15/05/2018,9720.46,1620.08,MTE,Undefined Age Group,5401,Aids To Daily Living,Adult & Families
Blackpool Council,1086714,Liveasy Ltd,486406,BK0431D,15/05/2018,7445.29,1240.88,MTE,Undefined Age Group,5401,Aids To Daily Living,Adult & Families
Blackpool Council,1042794,Carlton Fuels Limited,486482,9690064,14/05/2018,17829.99,0,ZF0001,"Insurance,Dso,Banking",9773,Orders Received Not Invoiced,Total Reconciliations
Blackpool Council,1042794,Carlton Fuels Limited,486482,9690064,14/05/2018,21395.99,3566,ZF0001,"Insurance,Dso,Banking",9511A,Stocks Efin,Total Reconciliations
Blackpool Council,1058751,Emo Oil Ltd,486487,9690070,17/05/2018,483.84,0,ZF0001,"Insurance,Dso,Banking",9773,Orders Received Not Invoiced,Total Reconciliations
Blackpool Council,1058751,Emo Oil Ltd,486487,9690070,17/05/2018,508.03,24.19,ZF0001,"Insurance,Dso,Banking",9511A,Stocks Efin,Total Reconciliations
Blackpool Council,1042794,Carlton Fuels Limited,486488,9749404,14/05/2018,16966.68,0,ZF0001,"Insurance,Dso,Banking",9773,Orders Received Not Invoiced,Total Reconciliations
Blackpool Council,1042794,Carlton Fuels Limited,486488,9749404,14/05/2018,20360.02,3393.34,ZF0001,"Insurance,Dso,Banking",9511A,Stocks Efin,Total Reconciliations
Blackpool Council,1103450,Blackpool Entertainment Company Limited,486495,INV003542,14/05/2018,354,59,FK0071,Corporate Training,3006,Hire Of Equipment,Chief Executive
Blackpool Council,1060135,Happy Creative Ltd,486501,H4534,14/05/2018,1650,275,PU0001,Public Health Team,4501,Private Contractors,Public Health
Blackpool Council,1060135,Happy Creative Ltd,486502,H4531,14/05/2018,1950,325,PU0001,Public Health Team,4501,Private Contractors,Public Health
Blackpool Council,1106798,Cd Chauffeur Hire,486505,238,14/05/2018,1039.5,0,BCA,Corp And Member Services,2211,Casual Hire,Governance & Partnerships
Blackpool Council,1060253,John Ball,486506,307,17/05/2018,450,75,CEMCRE,Cems Crems Etc,3454,Remove And Refix Memorials,Governance & Partnerships
Blackpool Council,1060253,John Ball,486507,308,17/05/2018,1482,247,CEMCRE,Cems Crems Etc,3454,Remove And Refix Memorials,Governance & Partnerships
Blackpool Council,1006449,Tmp (Uk) Ltd,486518,100001178433,25/05/2018,3017.16,502.86,TRA,Traffic Management,4501,Private Contractors,Community & Env Services
Blackpool Council,1006449,Tmp (Uk) Ltd,486519,100001178434,25/05/2018,2218.5,369.75,TRA,Traffic Management,4501,Private Contractors,Community & Env Services
Blackpool Council,1006449,Tmp (Uk) Ltd,486520,100001178435,25/05/2018,283.97,47.33,TRA,Traffic Management,4501,Private Contractors,Community & Env Services
Blackpool Council,1006944,Siemens Financial Services Ltd,486523,212/18/0142494,25/05/2018,1678.8,279.8,FCADA,Customer Services,3801,Other Expenses,Resources
Blackpool Council,1011970,A1 Streamline Road Markings Ltd,486526,2763,23/05/2018,630,105,TRB,Maintenance & Works,4501,Private Contractors,Community & Env Services
Blackpool Council,1011970,A1 Streamline Road Markings Ltd,486527,2762,23/05/2018,630,105,TRB,Maintenance & Works,4501,Private Contractors,Community & Env Services
Blackpool Council,1060631,Rossendales Limited,486528,C567777,25/05/2018,285.91,47.65,FC3001,Housing Benefits,3401,General Services,Budgets Outside Cash Limits
Blackpool Council,1094424,The Networking People,486532,SI105061,30/05/2018,11904,1984,FGAA,Ict Corporate Services,3527,Communication Lines,Resources
Blackpool Council,1009949,Cleapss,486534,SUBS008282,23/05/2018,2084.49,0,MNGMT,Central Management,5555,Educational Support,Children'S Services
Blackpool Council,1049149,Reed Business Information Ltd,486537,082/EGA/0185522,15/05/2018,319,0,HJA,Growth,3711,Subscriptions,Places
Blackpool Council,1109502,Llewelyn-Bowen Design Associates Ltd,486540,032018,15/05/2018,306.6,51.1,PJW,Management - Places - Illumina,2302,Rail Fares,Places
Blackpool Council,1035030,Wicksteed Leisure Ltd,486542,0000801209,30/05/2018,2293.2,382.2,PRKTEC,Parks Terchnician Manager,2002,Repairs And Maintenance,Community & Env Services
Blackpool Council,1114522,The Oyster Partnership Ltd,486547,1031637,18/05/2018,803.82,133.97,AEE,Estates,0781,Contracted,Resources
Blackpool Council,1010667,Argos Business Solutions Ltd,486548,01649556,18/05/2018,454.11,75.54,FC1802,Social Fund - Client,5210,Community Care Support,Resources
Blackpool Council,1006292,Vodafone Corporate Ltd,486550,LA73846,25/05/2018,1492.8,248.8,FGAA,Ict Corporate Services,3531,Computer-H'Ware Purchase,Resources
Blackpool Council,1006292,Vodafone Corporate Ltd,486552,LA73847,25/05/2018,552,92,FGAA,Ict Corporate Services,3531,Computer-H'Ware Purchase,Resources
Blackpool Council,1006292,Vodafone Corporate Ltd,486553,LA82017,30/05/2018,1920,320,HOMECA,Homecare,3531,Computer-H'Ware Purchase,Adult & Families
Blackpool Council,1102627,Fresh Pastures Processing Ltd,486554,BLACKPOOL300418,30/05/2018,523.28,0,CATERG,Catering Services,3101,Provisions,Community & Env Services
Blackpool Council,1042389,Ofcom,486566,78178266,31/05/2018,675,0,FGAA,Ict Corporate Services,3525,Radio,Resources
Blackpool Council,1098892,Exterion Media (Uk) Limited,486572,SINV00172947,24/05/2018,2580,430,PBF,Communications,3806,Advertising-General,Chief Executive
Blackpool Council,1061348,Fresh Partners Limited,486573,LLB1176,15/05/2018,7200,1200,PJW,Management - Places - Illumina,3413,Consultants,Places
Blackpool Council,1115834,Eco-Event,486577,003-2018,15/05/2018,375,0,AHM,Arts Miscellaneous,3819,Events Support,Places
Blackpool Council,1011369,Lancashire County Council,486578,5200162969,15/05/2018,2784,0,FR5001,Concessionary Fares,3401,General Services,Budgets Outside Cash Limits
Blackpool Council,1011369,Lancashire County Council,486579,5200162965,15/05/2018,245407,0,FR5001,Concessionary Fares,3401,General Services,Budgets Outside Cash Limits
Blackpool Council,1017964,The R.A.D.A.R Key Company,486580,4525,15/05/2018,630,105,FCADA,Customer Services,3302,Stationery,Resources
Blackpool Council,1093763,Shapemaster Global Ltd,486582,SI-950,15/05/2018,1626.11,271.02,LEISUR,Leisure Management,1066,Service Contracts,Community & Env Services
Blackpool Council,1008175,Manns Music,486583,107794,31/05/2018,1558.8,259.8,MUSIC,Music & Cultural Education,3008,Educational Equipment,Children'S Services
Blackpool Council,1113560,Iese Transformation Limited,486584,834,15/05/2018,5307.6,884.6,DOMPFI,Domestic Waste & Waste Pfi,4501,Private Contractors,Community & Env Services
Blackpool Council,1090628,The Furniture Recycling Group,486585,INV14880,30/05/2018,269.28,44.88,CWASTE,Commercial Waste,4514,Contract 'E',Community & Env Services
Blackpool Council,1011369,Lancashire County Council,486589,5200163611,15/05/2018,202274,0,FR5001,Concessionary Fares,3401,General Services,Budgets Outside Cash Limits
Blackpool Council,1011369,Lancashire County Council,486590,5200163607,15/05/2018,1796,0,FR5001,Concessionary Fares,3401,General Services,Budgets Outside Cash Limits
Blackpool Council,1011369,Lancashire County Council,486591,5200163599,15/05/2018,35351,0,FR5001,Concessionary Fares,3401,General Services,Budgets Outside Cash Limits
Blackpool Council,1011369,Lancashire County Council,486592,5200163604,15/05/2018,17275.95,0,FR5001,Concessionary Fares,3401,General Services,Budgets Outside Cash Limits
Blackpool Council,1056610,Tec Services Association C.I.C,486597,191,16/05/2018,840,140,APFBAB,Vitaline,4501,Private Contractors,Adult & Families
Blackpool Council,1007058,Scanlite Visual Communications Ltd,486605,215375,18/05/2018,18000,3000,PPA,Head Of Tourism Services,3401,General Services,Places
Blackpool Council,1114704,Morson Human Resources Ltd,486606,HS175219,16/05/2018,1980,330,CTAHHA,Tramway Emergency Works,6506,Consultants Fees,Capital - Comm & Environ
Blackpool Council,1008031,Knowsley Metropolitan Borough Council,486608,SD2216196,22/05/2018,23232,3872,PRKOP1,Parks Operational Manager  1,1012,Premises Maint-Priv.Contractor,Community & Env Services
Blackpool Council,1114727,Elliott Wood Partnership Ltd,486609,INV006273,29/05/2018,13440,2240,FMAK,Acquisitions 9/10,3801,Other Expenses,Places
Blackpool Council,1058424,Blackpool Federation Allotment Associations,486640,08/18,18/05/2018,10000,0,PRKOP1,Parks Operational Manager  1,3701,Grants,Community & Env Services
Blackpool Council,1060253,John Ball,486641,309,17/05/2018,1554,259,CEMCRE,Cems Crems Etc,3454,Remove And Refix Memorials,Governance & Partnerships
Blackpool Council,1019374,Fibrous Limited,486642,63279,24/05/2018,362.88,60.48,CEMCRE,Cems Crems Etc,3041,Other Materials,Governance & Partnerships
Blackpool Council,1115852,Ryal Media Group Ltd,486645,1523,16/05/2018,456,76,MPB,Edc - Economic Dev Company,3413,Consultants,Places
Blackpool Council,1046723,Brightprint (Fac008 Payment Only),486648,25788,16/05/2018,582,97,EYT,Early Years Team,3301,Printing,Children'S Services
Blackpool Council,1008878,Cipfa Business Limited,486655,3131873,16/05/2018,600,100,FB0001,Business Services Team,3711,Subscriptions,Resources
Blackpool Council,1051299,Leisure Travel,486662,BC/42/003APR18,16/05/2018,1755,0,TRADUL,Integrated Transport Adults,4501,Private Contractors,Community & Env Services
Blackpool Council,1051299,Leisure Travel,486663,BC/01/025APR18,16/05/2018,1024,0,TRCHIL,Integrated Transport Childrens,4501,Private Contractors,Community & Env Services
Blackpool Council,1051299,Leisure Travel,486664,BC/01/024APR18,16/05/2018,1280,0,TRCHIL,Integrated Transport Childrens,4501,Private Contractors,Community & Env Services
Blackpool Council,1051299,Leisure Travel,486665,BC/72/002APR18,16/05/2018,1440,0,TRCHIL,Integrated Transport Childrens,2201,Contract Hire,Community & Env Services
Blackpool Council,1051299,Leisure Travel,486666,BC/01/002APR18,16/05/2018,1280,0,TRCHIL,Integrated Transport Childrens,4501,Private Contractors,Community & Env Services
Blackpool Council,1027764,Colins Travel,486667,BC/01/013APR18,16/05/2018,1168,0,TRCHIL,Integrated Transport Childrens,4501,Private Contractors,Community & Env Services
Blackpool Council,1027764,Colins Travel,486668,BC/01/014APR18,16/05/2018,1192,0,TRCHIL,Integrated Transport Childrens,4501,Private Contractors,Community & Env Services
Blackpool Council,1027764,Colins Travel,486669,BC/01/016APR18,16/05/2018,1200,0,TRCHIL,Integrated Transport Childrens,4501,Private Contractors,Community & Env Services
Blackpool Council,1091050,Howard Palmer T/A Trojan Travel,486671,BC/02/002APR18,16/05/2018,1520,0,TRCHIL,Integrated Transport Childrens,4501,Private Contractors,Community & Env Services
Blackpool Council,1009234,Gary Roy Kirkham,486672,BC/02/018APR18,16/05/2018,352,0,TRCHIL,Integrated Transport Childrens,4501,Private Contractors,Community & Env Services
Blackpool Council,1009234,Gary Roy Kirkham,486673,BC/44/002APR18,16/05/2018,384,0,TRADUL,Integrated Transport Adults,4501,Private Contractors,Community & Env Services
Blackpool Council,1019622,Stephen  Floweth,486674,BC/01/010APR18,16/05/2018,672,0,TRCHIL,Integrated Transport Childrens,4501,Private Contractors,Community & Env Services
Blackpool Council,1019622,Stephen  Floweth,486675,BC/02/011APR18,16/05/2018,704,0,TRCHIL,Integrated Transport Childrens,4501,Private Contractors,Community & Env Services
Blackpool Council,1019622,Stephen  Floweth,486676,BC/02/004APR18,16/05/2018,720,0,TRCHIL,Integrated Transport Childrens,4501,Private Contractors,Community & Env Services
Blackpool Council,1094424,The Networking People,486678,SI105067,30/05/2018,19582.8,3263.8,FGAA,Ict Corporate Services,3532,Comp-Running & License Costs,Resources
Blackpool Council,1082522,Cheshire West & Chester Council,486679,74140304,16/05/2018,1650,0,LBF,Library Management,3711,Subscriptions,Places
Blackpool Council,1114522,The Oyster Partnership Ltd,486681,1032002,22/05/2018,787.92,131.32,AEE,Estates,0781,Contracted,Resources
Blackpool Council,1011896,Capita Business Services Ltd,486686,6003770827,16/05/2018,8161.84,1360.31,FCACA,Benefits - Admin,3533,Computer S/W Purchases,Resources
Blackpool Council,1006292,Vodafone Corporate Ltd,486697,LA22523,18/05/2018,2112,352,HOMECA,Homecare,3531,Computer-H'Ware Purchase,Adult & Families
Blackpool Council,1009755,D Kirkham,486711,BC/25/001APR18,16/05/2018,928,0,TRCHIL,Integrated Transport Childrens,2201,Contract Hire,Community & Env Services
Blackpool Council,1010300,Blacktax Radio Taxis T/A Blackpool Courier,486717,BC/01/012APR18,16/05/2018,1216,0,TRCHIL,Integrated Transport Childrens,4501,Private Contractors,Community & Env Services
Blackpool Council,1006419,Tunstall Healthcare (Uk) Ltd,486728,3IN/10317063,23/05/2018,2698.8,449.8,APFBAB,Vitaline,4501,Private Contractors,Adult & Families
Blackpool Council,1006944,Siemens Financial Services Ltd,486729,244/18/0174204,25/05/2018,3929.14,654.85,APFBAB,Vitaline,4501,Private Contractors,Adult & Families
Blackpool Council,1006944,Siemens Financial Services Ltd,486730,244/18/0176806,30/05/2018,2785.64,464.27,APFBAB,Vitaline,4501,Private Contractors,Adult & Families
Blackpool Council,1006944,Siemens Financial Services Ltd,486731,244/18/0176805,30/05/2018,1763,293.83,APFBAB,Vitaline,4501,Private Contractors,Adult & Families
Blackpool Council,1006944,Siemens Financial Services Ltd,486732,244/18/0176804,30/05/2018,1771.33,295.22,APFBAB,Vitaline,4501,Private Contractors,Adult & Families
Blackpool Council,1079488,Recycling Lives Ltd,486739,206701,16/05/2018,2713.2,452.2,CWASTE,Commercial Waste,4514,Contract 'E',Community & Env Services
Blackpool Council,1110772,Creative Print North West Limited,486744,JMA-IN2018736,16/05/2018,5616,936,PU0001,Public Health Team,4501,Private Contractors,Public Health
Blackpool Council,1006944,Siemens Financial Services Ltd,486754,244/18/0176807,30/05/2018,2430.3,405.05,APFBAB,Vitaline,4501,Private Contractors,Adult & Families
Blackpool Council,1013064,Tarmac Lafarge Trading Limited,486765,9037902915,17/05/2018,343.17,57.19,ENGINE,Engineering,3041,Other Materials,Community & Env Services
Blackpool Council,1013064,Tarmac Lafarge Trading Limited,486766,9037902916,17/05/2018,340.78,56.79,ENGINE,Engineering,3041,Other Materials,Community & Env Services
Blackpool Council,1013064,Tarmac Lafarge Trading Limited,486768,9037971949,18/05/2018,2445.07,407.51,ENGINE,Engineering,3041,Other Materials,Community & Env Services
Blackpool Council,1013064,Tarmac Lafarge Trading Limited,486770,9037950911,17/05/2018,556.7,92.78,ENGINE,Engineering,3041,Other Materials,Community & Env Services
Blackpool Council,1013064,Tarmac Lafarge Trading Limited,486772,9037943960,17/05/2018,533.82,88.97,ENGINE,Engineering,3041,Other Materials,Community & Env Services
Blackpool Council,1096659,Dalgleish Therapies,486774,0200001518,18/05/2018,800,0,ALEARN,Adult Learning,0781,Contracted,Places
Blackpool Council,1026181,Blackpool Sixth Form College,486775,5100529,16/05/2018,9000,0,HS0003,Headstart Commissioning,3401,General Services,Children'S Services
Blackpool Council,1049385,Fylde Coast Ymca,486779,9496,16/05/2018,840,140,FK0071,Corporate Training,0911,Training Expenses,Chief Executive
Blackpool Council,1011675,Bambers Remedial Contractors Limited,486810,15008,16/05/2018,6210.45,0,CX4002,Disabled Facilities Grants,6501,Contract Payments,Capital - Adult Social Care
Blackpool Council,1108975,Ups Building & Maintenance Ltd,486811,8820,16/05/2018,3099.55,0,CX4002,Disabled Facilities Grants,6501,Contract Payments,Capital - Adult Social Care
Blackpool Council,1108975,Ups Building & Maintenance Ltd,486812,9028,22/05/2018,350,0,CX4002,Disabled Facilities Grants,6501,Contract Payments,Capital - Adult Social Care
Blackpool Council,1002210,Read & Errington,486813,MRC106/,16/05/2018,3809.08,0,CX4002,Disabled Facilities Grants,6518,Miscellaneous - Capital,Capital - Adult Social Care
Blackpool Council,1002210,Read & Errington,486814,MRC106,16/05/2018,2186.6,0,CX4002,Disabled Facilities Grants,6518,Miscellaneous - Capital,Capital - Adult Social Care
Blackpool Council,1002210,Read & Errington,486815,MRC106,16/05/2018,2329.5,0,CX4002,Disabled Facilities Grants,6518,Miscellaneous - Capital,Capital - Adult Social Care
Blackpool Council,1002210,Read & Errington,486816,MRC106,16/05/2018,2450.39,0,CX4002,Disabled Facilities Grants,6518,Miscellaneous - Capital,Capital - Adult Social Care
Blackpool Council,1002210,Read & Errington,486817,MRC106,16/05/2018,2211.31,0,CX4002,Disabled Facilities Grants,6518,Miscellaneous - Capital,Capital - Adult Social Care
Blackpool Council,1002210,Read & Errington,486818,MRC106,16/05/2018,2941.58,0,CX4002,Disabled Facilities Grants,6518,Miscellaneous - Capital,Capital - Adult Social Care
Blackpool Council,1002210,Read & Errington,486819,MRC106,16/05/2018,3399.41,0,CX4002,Disabled Facilities Grants,6518,Miscellaneous - Capital,Capital - Adult Social Care
Blackpool Council,1026811,Stannah Lift Services Ltd,486825,R040028725,16/05/2018,1393.14,232.19,MVB,65-74,5401,Aids To Daily Living,Adult & Families
Blackpool Council,1026811,Stannah Lift Services Ltd,486826,R040029004,16/05/2018,929.11,154.85,MVB,65-74,5405,Stairlifts - R&M,Adult & Families
Blackpool Council,1026811,Stannah Lift Services Ltd,486829,R040029010,16/05/2018,823.9,137.32,MVB,65-74,5401,Aids To Daily Living,Adult & Families
Blackpool Council,1026811,Stannah Lift Services Ltd,486832,R040029050,17/05/2018,890.84,148.47,MVA,18-64,5401,Aids To Daily Living,Adult & Families
Blackpool Council,1026811,Stannah Lift Services Ltd,486833,R040029007,16/05/2018,930,155,MVB,65-74,5401,Aids To Daily Living,Adult & Families
Blackpool Council,1026811,Stannah Lift Services Ltd,486834,R040028981,16/05/2018,2751.4,458.57,MVB,65-74,5401,Aids To Daily Living,Adult & Families
Blackpool Council,1115750,Top Class Tuition (Uk) Cic,486839,05,18/05/2018,9000,0,EDDIV,Education Diversity,3413,Consultants,Children'S Services
Blackpool Council,1079898,Mhc Traffic Ltd (Payment To Factor Fac005),486840,MHC/302/17-D,24/05/2018,4296,716,CTABWA,Ltp Scheme 17/18,6506,Consultants Fees,Capital - Places
Blackpool Council,1010667,Argos Business Solutions Ltd,486847,01651783,25/05/2018,344.74,57.34,FC1802,Social Fund - Client,5210,Community Care Support,Resources
Blackpool Council,1044218,Apcoa Parking Uk Ltd,486848,267188,22/05/2018,12034.16,2005.69,AEV,Vacant & Under Used,3413,Consultants,Resources
Blackpool Council,1087953,Blackpool Local Education Partnership Ltd,486850,SI10015,24/05/2018,10825.98,1804.33,EM1028,St Marys,4515,Contract Services,Children'S Services
Blackpool Council,1013064,Tarmac Lafarge Trading Limited,486853,9037930130,17/05/2018,553.78,92.29,ENGINE,Engineering,3041,Other Materials,Community & Env Services
Blackpool Council,1013064,Tarmac Lafarge Trading Limited,486854,9037936512,17/05/2018,400.81,66.8,ENGINE,Engineering,3041,Other Materials,Community & Env Services
Blackpool Council,1013064,Tarmac Lafarge Trading Limited,486855,9037930129,17/05/2018,655.83,109.3,ENGINE,Engineering,3041,Other Materials,Community & Env Services
Blackpool Council,1013064,Tarmac Lafarge Trading Limited,486856,9037959799,18/05/2018,718.38,119.73,ENGINE,Engineering,3041,Other Materials,Community & Env Services
Blackpool Council,1013064,Tarmac Lafarge Trading Limited,486857,9037959798,18/05/2018,341.64,56.94,ENGINE,Engineering,3041,Other Materials,Community & Env Services
Blackpool Council,1115215,Blackpool Food Bank,486858,1,16/05/2018,28000,0,FC1802,Social Fund - Client,5209,Crisis/Emergency Support,Resources
Blackpool Council,1013064,Tarmac Lafarge Trading Limited,486911,9037967272,18/05/2018,983.74,163.95,ENGINE,Engineering,3041,Other Materials,Community & Env Services
Blackpool Council,1013064,Tarmac Lafarge Trading Limited,486913,9037984863,23/05/2018,3624.98,604.16,ENGINE,Engineering,3041,Other Materials,Community & Env Services
Blackpool Council,1013064,Tarmac Lafarge Trading Limited,486915,9037995657,23/05/2018,342.68,57.11,ENGINE,Engineering,3041,Other Materials,Community & Env Services
Blackpool Council,1013064,Tarmac Lafarge Trading Limited,486916,9038016496,25/05/2018,1241.18,206.86,ENGINE,Engineering,3041,Other Materials,Community & Env Services
Blackpool Council,1013064,Tarmac Lafarge Trading Limited,486918,9038016495,25/05/2018,883.09,147.18,ENGINE,Engineering,3041,Other Materials,Community & Env Services
Blackpool Council,1013064,Tarmac Lafarge Trading Limited,486919,9038004848,25/05/2018,282.16,47.02,ENGINE,Engineering,3041,Other Materials,Community & Env Services
Blackpool Council,1016258,M J Teale Plant Hire Ltd,486920,B7803,17/05/2018,971.9,161.98,ENGINE,Engineering,1012,Premises Maint-Priv.Contractor,Community & Env Services
Blackpool Council,1013064,Tarmac Lafarge Trading Limited,486921,J039/1256,25/05/2018,1858.69,309.78,SCHEME,Highways Schemes,3041,Other Materials,Community & Env Services
Blackpool Council,1018184,Blackpool Skip Hire,486922,005846,21/05/2018,365.52,60.92,ENGINE,Engineering,1012,Premises Maint-Priv.Contractor,Community & Env Services
Blackpool Council,1011714,Michael Hope Haulage Limited,486923,001336,17/05/2018,1344,224,SCHEME,Highways Schemes,1012,Premises Maint-Priv.Contractor,Community & Env Services
Blackpool Council,1011714,Michael Hope Haulage Limited,486924,001334,17/05/2018,1536,256,SCHEME,Highways Schemes,1012,Premises Maint-Priv.Contractor,Community & Env Services
Blackpool Council,1011714,Michael Hope Haulage Limited,486925,001333,17/05/2018,1920,320,SCHEME,Highways Schemes,1012,Premises Maint-Priv.Contractor,Community & Env Services
Blackpool Council,1033894,Gl Education Group Limited,486933,SINV00175061,31/05/2018,5061,843.5,EDDIV,Education Diversity,3606,Incidental Expenses,Children'S Services
Blackpool Council,1064524,Studio Due Uk Limited,486940,487,22/05/2018,20136,3356,PJG,Schemes - Places,3041,Other Materials,Places
Blackpool Council,1030730,Springfield Methodist Church,486948,518,21/05/2018,666.66,0,FC1802,Social Fund - Client,5209,Crisis/Emergency Support,Resources
Blackpool Council,1103450,Blackpool Entertainment Company Limited,486950,INV003361,23/05/2018,600,100,BSTPRJ,Better Start Projects,1702,Hire Of Meeting Rooms,Better Start Projects
Blackpool Council,1044756,Northgate Public Services (Uk) Ltd,486956,91405796,22/05/2018,4812.38,802.06,AD0401,Credit Union - Bus Support,3532,Comp-Running & License Costs,Credit Union - Bus Support
Blackpool Council,1009166,Glasdon Uk Ltd,486960,750951,24/05/2018,6383.76,1063.96,SCLEAN,Street Cleaning,3041,Other Materials,Community & Env Services
Blackpool Council,1009166,Glasdon Uk Ltd,486961,750948,24/05/2018,2112,352,SCLEAN,Street Cleaning,3041,Other Materials,Community & Env Services
Blackpool Council,1053894,Scl,486964,18-054,22/05/2018,385,0,LBF,Library Management,3605,Confs & Short Courses,Places
Blackpool Council,1075164,G4s Secure Solutions (Uk) Ltd,486984,90277760,30/05/2018,20120.86,3353.48,FMAB,Commercial Propereties,3418,Security Services,Resources
Blackpool Council,1011369,Lancashire County Council,486985,5200161721,18/05/2018,40696,0,FR5001,Concessionary Fares,3401,General Services,Budgets Outside Cash Limits
Blackpool Council,1011369,Lancashire County Council,486986,5200161710,18/05/2018,13337,0,FR5001,Concessionary Fares,3401,General Services,Budgets Outside Cash Limits
Blackpool Council,1100231,Ukactive,487000,UKA_PPL/104963,17/05/2018,1865.16,310.86,LEISUR,Leisure Management,3801,Other Expenses,Community & Env Services
Blackpool Council,1026811,Stannah Lift Services Ltd,487001,R040029008,18/05/2018,562.15,93.69,MVB,65-74,5401,Aids To Daily Living,Adult & Families
Blackpool Council,1026811,Stannah Lift Services Ltd,487002,R040029005,18/05/2018,298.12,49.69,MVB,65-74,5405,Stairlifts - R&M,Adult & Families
Blackpool Council,1026811,Stannah Lift Services Ltd,487003,R040029006,18/05/2018,415.18,69.2,MVB,65-74,5401,Aids To Daily Living,Adult & Families
Blackpool Council,1113460,Sureline Installations,487010,67,18/05/2018,1250,0,MVB,65-74,5401,Aids To Daily Living,Adult & Families
Blackpool Council,1114704,Morson Human Resources Ltd,487011,HS176103,23/05/2018,1584,264,CTAHHA,Tramway Emergency Works,6506,Consultants Fees,Capital - Comm & Environ
Blackpool Council,1044156,Pell Frischmann,487012,W180205,22/05/2018,2971.02,495.17,CTAHHA,Tramway Emergency Works,6506,Consultants Fees,Capital - Comm & Environ
Blackpool Council,1053191,Veolia Es (Uk) Limited,487046,OP/I524027,18/05/2018,394239.88,65706.65,DOMPFI,Domestic Waste & Waste Pfi,4501,Private Contractors,Community & Env Services
Blackpool Council,1113970,Jack Coupe & Sons Ltd T/A Coupe Line,487064,21469,18/05/2018,284.54,47.42,ENGINE,Engineering,1012,Premises Maint-Priv.Contractor,Community & Env Services
Blackpool Council,1113970,Jack Coupe & Sons Ltd T/A Coupe Line,487065,21470,18/05/2018,296.4,49.4,ENGINE,Engineering,1012,Premises Maint-Priv.Contractor,Community & Env Services
Blackpool Council,1004963,F Parkinson Ltd,487078,9143,18/05/2018,14064.62,2344.1,COBAAA,Town Hall & Municl Buildings,6501,Contract Payments,Capital - Resources
Blackpool Council,1087316,Lovell Partnership Ltd,487079,INTERIM 29,18/05/2018,204915.98,0,CXB01,Hra Capital Programme 2011/12,6501,Contract Payments,Capital - Places
Blackpool Council,1087316,Lovell Partnership Ltd,487079,INTERIM 29,18/05/2018,6337.61,0,ZH0001,Housing Revenue Account,97B6,Retention Monies - Cap Trsfr,Housing Revenue Account
Blackpool Council,1010179,Buchanan Computing,487085,M9213,22/05/2018,1010.4,168.4,TRB,Maintenance & Works,3532,Comp-Running & License Costs,Community & Env Services
Blackpool Council,1113460,Sureline Installations,487151,66,22/05/2018,985,0,MVA,18-64,5401,Aids To Daily Living,Adult & Families
Blackpool Council,1011995,Technical & Electrical Services Ltd,487153,ES 17150,25/05/2018,263.34,43.89,MVB,65-74,5401,Aids To Daily Living,Adult & Families
Blackpool Council,1026811,Stannah Lift Services Ltd,487154,R040029092,29/05/2018,691.6,115.27,CXAAA,Local Authority Dwellings,6501,Contract Payments,Capital - Places
Blackpool Council,1026811,Stannah Lift Services Ltd,487155,R040029093,29/05/2018,1341.47,223.58,CXAAA,Local Authority Dwellings,6501,Contract Payments,Capital - Places
Blackpool Council,1113970,Jack Coupe & Sons Ltd T/A Coupe Line,487195,21391,23/05/2018,406.39,67.73,ENGINE,Engineering,1012,Premises Maint-Priv.Contractor,Community & Env Services
Blackpool Council,1012839,George Cox & Sons Ltd,487212,9813,23/05/2018,12666.96,2111.16,CTABVA,Ltp Scheme 16/17,6501,Contract Payments,Capital - Places
Blackpool Council,1074389,Parentpay Ltd,487217,170568,24/05/2018,3882,647,CATERG,Catering Services,3532,Comp-Running & License Costs,Community & Env Services
Blackpool Council,1009166,Glasdon Uk Ltd,487235,747922,23/05/2018,5265.6,877.6,SCLEAN,Street Cleaning,3041,Other Materials,Community & Env Services
Blackpool Council,1094355,Les Mills Fitness Uk Ltd,487237,SIV246482,22/05/2018,318.28,53.05,LEISUR,Leisure Management,2008,Running Costs-Licences,Community & Env Services
Blackpool Council,1114118,Medequip Assistive Technology Limited,487243,42040,30/05/2018,1261.08,210.18,MTE,Undefined Age Group,5401,Aids To Daily Living,Adult & Families
Blackpool Council,1114118,Medequip Assistive Technology Limited,487244,42041,30/05/2018,2502,417,MTE,Undefined Age Group,5401,Aids To Daily Living,Adult & Families
Blackpool Council,1114118,Medequip Assistive Technology Limited,487245,42042,30/05/2018,4623.6,770.6,MTE,Undefined Age Group,5401,Aids To Daily Living,Adult & Families
Blackpool Council,1114118,Medequip Assistive Technology Limited,487247,42045,30/05/2018,662.4,110.4,MTE,Undefined Age Group,5401,Aids To Daily Living,Adult & Families
Blackpool Council,1114118,Medequip Assistive Technology Limited,487248,42043,30/05/2018,1026,171,MTE,Undefined Age Group,5401,Aids To Daily Living,Adult & Families
Blackpool Council,1046879,Ikea,487254,141365630,22/05/2018,2560,426.67,PU0001,Public Health Team,4501,Private Contractors,Public Health
Blackpool Council,1035877,Larac,487294,219015,22/05/2018,425,0,DOMPFI,Domestic Waste & Waste Pfi,3711,Subscriptions,Community & Env Services
Blackpool Council,1044156,Pell Frischmann,487300,W180207,22/05/2018,514.85,85.81,TRA,Traffic Management,4501,Private Contractors,Community & Env Services
Blackpool Council,1044156,Pell Frischmann,487301,W180206,22/05/2018,1015.51,169.25,CGOAAA,Quality Corridor,6501,Contract Payments,Capital - Places
Blackpool Council,1044156,Pell Frischmann,487302,W180204,22/05/2018,675.74,112.62,TRA,Traffic Management,4501,Private Contractors,Community & Env Services
Blackpool Council,1044156,Pell Frischmann,487303,W180202,22/05/2018,1089.68,181.61,TRA,Traffic Management,4501,Private Contractors,Community & Env Services
Blackpool Council,1008817,Radio J  Cabs,487324,515221,22/05/2018,2629.3,0,EDDIV,Education Diversity,2201,Contract Hire,Children'S Services
Blackpool Council,1055691,Norbain Sd Ltd,487326,I2648560,30/05/2018,1183.61,197.27,CCTV,Cctv,2002,Repairs And Maintenance,Places
Blackpool Council,1005071,Blackpool Transport Services Limited,487330,I0000331,23/05/2018,7080,0,OTHL,Other Learning,2301,Bus & Tram Fares,Children'S Services
Blackpool Council,1098892,Exterion Media (Uk) Limited,487331,SINV00166475,23/05/2018,1380,230,PBF,Communications,3806,Advertising-General,Chief Executive
Blackpool Council,1010138,C Cabs,487360,BC/01/007APR18,23/05/2018,704,0,TRCHIL,Integrated Transport Childrens,4501,Private Contractors,Community & Env Services
Blackpool Council,1010138,C Cabs,487361,BC/01/004APR18,23/05/2018,720,0,TRCHIL,Integrated Transport Childrens,4501,Private Contractors,Community & Env Services
Blackpool Council,1010138,C Cabs,487362,BC/01/003APR18,23/05/2018,448,0,TRCHIL,Integrated Transport Childrens,4501,Private Contractors,Community & Env Services
Blackpool Council,1010138,C Cabs,487363,BC/01/022APR18,23/05/2018,928,0,TRCHIL,Integrated Transport Childrens,4501,Private Contractors,Community & Env Services
Blackpool Council,1010138,C Cabs,487364,BC/01/023APR18,23/05/2018,720,0,TRCHIL,Integrated Transport Childrens,4501,Private Contractors,Community & Env Services
Blackpool Council,1010138,C Cabs,487365,BC/01/041APR18,23/05/2018,640,0,TRCHIL,Integrated Transport Childrens,4501,Private Contractors,Community & Env Services
Blackpool Council,1010138,C Cabs,487366,BC/01/018APR18,24/05/2018,495,0,TRCHIL,Integrated Transport Childrens,4501,Private Contractors,Community & Env Services
Blackpool Council,1010138,C Cabs,487367,BC/01/019APR18,23/05/2018,800,0,TRCHIL,Integrated Transport Childrens,4501,Private Contractors,Community & Env Services
Blackpool Council,1007206,Road Safety Services Ltd,487370,83519,23/05/2018,14421.41,2403.57,TRB,Maintenance & Works,4501,Private Contractors,Community & Env Services
Blackpool Council,1010138,C Cabs,487372,02564,23/05/2018,6777.6,0,TRCHIL,Integrated Transport Childrens,2201,Contract Hire,Community & Env Services
Blackpool Council,1010138,C Cabs,487373,BC/02/015APR18,23/05/2018,864,0,TRCHIL,Integrated Transport Childrens,4501,Private Contractors,Community & Env Services
Blackpool Council,1010138,C Cabs,487374,BC/02/022APR18,23/05/2018,720,0,TRCHIL,Integrated Transport Childrens,4501,Private Contractors,Community & Env Services
Blackpool Council,1010138,C Cabs,487376,BC/21/001APR18,23/05/2018,600,0,TRCHIL,Integrated Transport Childrens,4501,Private Contractors,Community & Env Services
Blackpool Council,1010138,C Cabs,487378,BC/02/014APR18,23/05/2018,736,0,TRCHIL,Integrated Transport Childrens,4501,Private Contractors,Community & Env Services
Blackpool Council,1010138,C Cabs,487379,BC/02/010APR18,23/05/2018,768,0,TRCHIL,Integrated Transport Childrens,4501,Private Contractors,Community & Env Services
Blackpool Council,1010138,C Cabs,487380,BC/02/009APR18,23/05/2018,768,0,TRCHIL,Integrated Transport Childrens,4501,Private Contractors,Community & Env Services
Blackpool Council,1010138,C Cabs,487381,BC/23/001APR18,23/05/2018,702,0,TRCHIL,Integrated Transport Childrens,4501,Private Contractors,Community & Env Services
Blackpool Council,1010138,C Cabs,487382,BC/44/003APR18,23/05/2018,798,0,TRADUL,Integrated Transport Adults,4501,Private Contractors,Community & Env Services
Blackpool Council,1010138,C Cabs,487383,BC/63/002APR18,23/05/2018,1600,0,TRCHIL,Integrated Transport Childrens,4501,Private Contractors,Community & Env Services
Blackpool Council,1010138,C Cabs,487384,BC/75/001APR18,23/05/2018,550,0,TRCHIL,Integrated Transport Childrens,4501,Private Contractors,Community & Env Services
Blackpool Council,1010138,C Cabs,487385,BC/76/001APR18,23/05/2018,1920,0,TRCHIL,Integrated Transport Childrens,4501,Private Contractors,Community & Env Services
Blackpool Council,1010138,C Cabs,487386,BC/71/003APR18,23/05/2018,1120,0,TRCHIL,Integrated Transport Childrens,4501,Private Contractors,Community & Env Services
Blackpool Council,1010138,C Cabs,487387,BC/02/008APR18,23/05/2018,640,0,TRCHIL,Integrated Transport Childrens,2201,Contract Hire,Community & Env Services
Blackpool Council,1072848,Peter Rhodes,487388,BC/01/008APR18,23/05/2018,1168,0,TRCHIL,Integrated Transport Childrens,4501,Private Contractors,Community & Env Services
Blackpool Council,1072848,Peter Rhodes,487389,BC/01/001APR18,23/05/2018,1168,0,TRCHIL,Integrated Transport Childrens,4501,Private Contractors,Community & Env Services
Blackpool Council,1010830,Ace Radio Cabs Limited,487390,BC/01/043MAY18,23/05/2018,1024,0,TRCHIL,Integrated Transport Childrens,4501,Private Contractors,Community & Env Services
Blackpool Council,1010830,Ace Radio Cabs Limited,487391,BC/42/002APR18,23/05/2018,806,0,TRADUL,Integrated Transport Adults,4501,Private Contractors,Community & Env Services
Blackpool Council,1010830,Ace Radio Cabs Limited,487392,BC/63/008APR18,23/05/2018,1184,0,TRCHIL,Integrated Transport Childrens,4501,Private Contractors,Community & Env Services
Blackpool Council,1010300,Blacktax Radio Taxis T/A Blackpool Courier,487393,BC/01/012JAN18,23/05/2018,1292,0,TRCHIL,Integrated Transport Childrens,4501,Private Contractors,Community & Env Services
Blackpool Council,1008419,Lcr Limited,487399,E000920,23/05/2018,474,79,CATERG,Catering Services,3531,Computer-H'Ware Purchase,Community & Env Services
Blackpool Council,1010138,C Cabs,487400,BC/01/027APR18,23/05/2018,1040,0,TRCHIL,Integrated Transport Childrens,4501,Private Contractors,Community & Env Services
Blackpool Council,1008817,Radio J  Cabs,487403,BC/58/001APR18,23/05/2018,958,0,TRCHIL,Integrated Transport Childrens,4501,Private Contractors,Community & Env Services
Blackpool Council,1008817,Radio J  Cabs,487404,BC/27/004APR18,23/05/2018,319,0,TRCHIL,Integrated Transport Childrens,4501,Private Contractors,Community & Env Services
Blackpool Council,1008817,Radio J  Cabs,487405,BC/04/002APR18,23/05/2018,780,0,TRCHIL,Integrated Transport Childrens,4501,Private Contractors,Community & Env Services
Blackpool Council,1044156,Pell Frischmann,487433,W18 0203,23/05/2018,915.67,152.61,CTBRAA,Bridges (Growth Fund),6501,Contract Payments,Capital - Comm & Environ
Blackpool Council,1010138,C Cabs,487443,02446,23/05/2018,279.6,0,TRCHIL,Integrated Transport Childrens,2201,Contract Hire,Community & Env Services
Blackpool Council,1008817,Radio J  Cabs,487446,515205,23/05/2018,2479.58,0,INTRAD,Integrated Transport Admin,2201,Contract Hire,Community & Env Services
Blackpool Council,1008817,Radio J  Cabs,487447,515207,23/05/2018,3136.43,0,INTRAD,Integrated Transport Admin,2201,Contract Hire,Community & Env Services
Blackpool Council,1008817,Radio J  Cabs,487448,515226,23/05/2018,460.5,0,INTRAD,Integrated Transport Admin,2201,Contract Hire,Community & Env Services
Blackpool Council,1049385,Fylde Coast Ymca,487493,9568,24/05/2018,756,126,FK0071,Corporate Training,0911,Training Expenses,Chief Executive
Blackpool Council,1066073,Blackpool Coastal Housing,487496,30001403,24/05/2018,11188.8,1864.8,PRKOP1,Parks Operational Manager  1,1011,Premises Maint - Dso,Community & Env Services
Blackpool Council,1010179,Buchanan Computing,487505,M9227,24/05/2018,526.8,87.8,TRA,Traffic Management,3533,Computer S/W Purchases,Community & Env Services
Blackpool Council,1081356,Friends Of Stanley Park,487518,2018/4,24/05/2018,2000,0,DIRCTR,Directorate,3801,Other Expenses,Community & Env Services
Blackpool Council,1074052,Brent Stevenson Memorials Ltd,487520,30585/1/18765,24/05/2018,506.7,84.45,CEMCRE,Cems Crems Etc,3454,Remove And Refix Memorials,Governance & Partnerships
Blackpool Council,1011675,Bambers Remedial Contractors Limited,487521,15063,23/05/2018,5150.2,0,CX4002,Disabled Facilities Grants,6501,Contract Payments,Capital - Adult Social Care
Blackpool Council,1011675,Bambers Remedial Contractors Limited,487523,15075,23/05/2018,9192.98,0,CX4002,Disabled Facilities Grants,6501,Contract Payments,Capital - Adult Social Care
Blackpool Council,1011675,Bambers Remedial Contractors Limited,487525,15078,23/05/2018,5069.24,0,CX4002,Disabled Facilities Grants,6501,Contract Payments,Capital - Adult Social Care
Blackpool Council,1011675,Bambers Remedial Contractors Limited,487526,15068,23/05/2018,6140.2,0,CX4002,Disabled Facilities Grants,6501,Contract Payments,Capital - Adult Social Care
Blackpool Council,1011675,Bambers Remedial Contractors Limited,487529,15026,23/05/2018,4820.2,0,CX4002,Disabled Facilities Grants,6501,Contract Payments,Capital - Adult Social Care
Blackpool Council,1011675,Bambers Remedial Contractors Limited,487530,15067,23/05/2018,5085.2,0,CX4002,Disabled Facilities Grants,6501,Contract Payments,Capital - Adult Social Care
Blackpool Council,1011675,Bambers Remedial Contractors Limited,487531,15043,23/05/2018,6795.2,0,CX4002,Disabled Facilities Grants,6501,Contract Payments,Capital - Adult Social Care
Blackpool Council,1011675,Bambers Remedial Contractors Limited,487532,15049,23/05/2018,4185.2,0,CX4002,Disabled Facilities Grants,6501,Contract Payments,Capital - Adult Social Care
Blackpool Council,1009166,Glasdon Uk Ltd,487546,748441,23/05/2018,5265.6,877.6,SCLEAN,Street Cleaning,3041,Other Materials,Community & Env Services
Blackpool Council,1112477,Big Wave Media (Fac060),487549,58333,24/05/2018,7018,1169.67,LEISUR,Leisure Management,3801,Other Expenses,Community & Env Services
Blackpool Council,1112477,Big Wave Media (Fac060),487550,57804,24/05/2018,1428,238,LEISUR,Leisure Management,3801,Other Expenses,Community & Env Services
Blackpool Council,1112477,Big Wave Media (Fac060),487551,58037,24/05/2018,675.12,112.52,LEISUR,Leisure Management,3801,Other Expenses,Community & Env Services
Blackpool Council,1000009,Blackpool & The Fylde College,487554,T106385,24/05/2018,3000,0,JA2021,Sexual Health,0911,Training Expenses,Adult & Families
Blackpool Council,1071925,Groundwork Cheshire Lancs And Merseyside,487587,0000001427,29/05/2018,21562.8,3593.8,AEB,Buildings,3401,General Services,Resources
Blackpool Council,1006986,Shorrock Trichem Limited,487589,1234580,24/05/2018,274.87,45.81,LEISUR,Leisure Management,1608,Other Cleaning Works,Community & Env Services
Blackpool Council,1108975,Ups Building & Maintenance Ltd,487596,8828,29/05/2018,3199.55,0,CX4002,Disabled Facilities Grants,6501,Contract Payments,Capital - Adult Social Care
Blackpool Council,1108975,Ups Building & Maintenance Ltd,487597,8819,29/05/2018,4049.55,0,CX4002,Disabled Facilities Grants,6501,Contract Payments,Capital - Adult Social Care
Blackpool Council,1108975,Ups Building & Maintenance Ltd,487598,9073,30/05/2018,290,0,CX4002,Disabled Facilities Grants,6501,Contract Payments,Capital - Adult Social Care
Blackpool Council,1108975,Ups Building & Maintenance Ltd,487647,8823,29/05/2018,3404.55,0,CX4002,Disabled Facilities Grants,6501,Contract Payments,Capital - Adult Social Care
Blackpool Council,1108975,Ups Building & Maintenance Ltd,487648,9072,30/05/2018,1030,0,CX4002,Disabled Facilities Grants,6501,Contract Payments,Capital - Adult Social Care
Blackpool Council,1108975,Ups Building & Maintenance Ltd,487649,9098,31/05/2018,275,0,CX4002,Disabled Facilities Grants,6501,Contract Payments,Capital - Adult Social Care
Blackpool Council,1011675,Bambers Remedial Contractors Limited,487650,15073,29/05/2018,5306.56,0,CX4002,Disabled Facilities Grants,6501,Contract Payments,Capital - Adult Social Care
Blackpool Council,1011675,Bambers Remedial Contractors Limited,487651,15045,29/05/2018,5000.2,0,CX4002,Disabled Facilities Grants,6501,Contract Payments,Capital - Adult Social Care
Blackpool Council,1011675,Bambers Remedial Contractors Limited,487652,15081,29/05/2018,4512.36,0,CX4002,Disabled Facilities Grants,6501,Contract Payments,Capital - Adult Social Care
Blackpool Council,1011675,Bambers Remedial Contractors Limited,487653,15085,29/05/2018,4849.88,0,CX4002,Disabled Facilities Grants,6501,Contract Payments,Capital - Adult Social Care
Blackpool Council,1011675,Bambers Remedial Contractors Limited,487654,15029,29/05/2018,3610,0,CXAAA,Local Authority Dwellings,6501,Contract Payments,Capital - Places
Blackpool Council,1011675,Bambers Remedial Contractors Limited,487655,15050,29/05/2018,6170.2,0,CX4002,Disabled Facilities Grants,6501,Contract Payments,Capital - Adult Social Care
Blackpool Council,1011675,Bambers Remedial Contractors Limited,487656,15044,29/05/2018,3035,0,CX4002,Disabled Facilities Grants,6501,Contract Payments,Capital - Adult Social Care
Blackpool Council,1026811,Stannah Lift Services Ltd,487657,S085085238,29/05/2018,690,0,CX4002,Disabled Facilities Grants,6501,Contract Payments,Capital - Adult Social Care
Blackpool Council,1100231,Ukactive,487669,UKA_PPL/104962,25/05/2018,763.02,127.17,LEISUR,Leisure Management,2008,Running Costs-Licences,Community & Env Services
Blackpool Council,1006099,Blackpool Teaching Hospitals Nhs Ft,487686,1110038127,29/05/2018,6000,1000,FGAA,Ict Corporate Services,3527,Communication Lines,Resources
Blackpool Council,1113651,Vmr Training Ltd,487693,2039,29/05/2018,1260,210,SCHEME,Highways Schemes,1012,Premises Maint-Priv.Contractor,Community & Env Services
Blackpool Council,1011714,Michael Hope Haulage Limited,487694,001338,29/05/2018,1920,320,SCHEME,Highways Schemes,1012,Premises Maint-Priv.Contractor,Community & Env Services
Blackpool Council,1087579,Ur Potential Cic,487701,2017-18/234URP,29/05/2018,4310,0,ALEARN,Adult Learning,4701,Other Contracted Services,Places
Blackpool Council,1112303,Access-Able (Uk) Limited,487702,2405,25/05/2018,4175,0,CX4002,Disabled Facilities Grants,6501,Contract Payments,Capital - Adult Social Care
Blackpool Council,1006292,Vodafone Corporate Ltd,487708,LA97153,31/05/2018,276,46,FGAA,Ict Corporate Services,3531,Computer-H'Ware Purchase,Resources
Blackpool Council,1006292,Vodafone Corporate Ltd,487709,LA97154,31/05/2018,276,46,FGAA,Ict Corporate Services,3531,Computer-H'Ware Purchase,Resources
Blackpool Council,1006292,Vodafone Corporate Ltd,487711,LA97155,31/05/2018,444,74,FGAA,Ict Corporate Services,3531,Computer-H'Ware Purchase,Resources
Blackpool Council,1006292,Vodafone Corporate Ltd,487712,LA97156,31/05/2018,276,46,FGAA,Ict Corporate Services,3531,Computer-H'Ware Purchase,Resources
Blackpool Council,1006292,Vodafone Corporate Ltd,487713,LA97157,31/05/2018,276,46,FGAA,Ict Corporate Services,3531,Computer-H'Ware Purchase,Resources
Blackpool Council,1006292,Vodafone Corporate Ltd,487714,LA97158,31/05/2018,276,46,FGAA,Ict Corporate Services,3531,Computer-H'Ware Purchase,Resources
Blackpool Council,1006292,Vodafone Corporate Ltd,487715,LA97159,31/05/2018,276,46,FGAA,Ict Corporate Services,3531,Computer-H'Ware Purchase,Resources
Blackpool Council,1006292,Vodafone Corporate Ltd,487716,LA97160,31/05/2018,276,46,FGAA,Ict Corporate Services,3531,Computer-H'Ware Purchase,Resources
Blackpool Council,1006292,Vodafone Corporate Ltd,487717,LA97161,31/05/2018,276,46,FGAA,Ict Corporate Services,3531,Computer-H'Ware Purchase,Resources
Blackpool Council,1006292,Vodafone Corporate Ltd,487718,LA97162,31/05/2018,276,46,FGAA,Ict Corporate Services,3531,Computer-H'Ware Purchase,Resources
Blackpool Council,1006292,Vodafone Corporate Ltd,487719,LA97163,31/05/2018,276,46,FGAA,Ict Corporate Services,3531,Computer-H'Ware Purchase,Resources
Blackpool Council,1114727,Elliott Wood Partnership Ltd,487740,INV006235,29/05/2018,13440,2240,FMAK,Acquisitions 9/10,3801,Other Expenses,Places
Blackpool Council,1006944,Siemens Financial Services Ltd,487743,244/18/0122045,25/05/2018,2443.84,407.3,APFBAB,Vitaline,4501,Private Contractors,Adult & Families
Blackpool Council,1006944,Siemens Financial Services Ltd,487745,244/18/0123758,25/05/2018,3210.44,535.07,APFBAB,Vitaline,4501,Private Contractors,Adult & Families
Blackpool Council,1090902,Anderson & Sons Contracting & Turf Care,487758,202,29/05/2018,2225,0,PRKOP1,Parks Operational Manager  1,4570,Football Turf Maintenance,Community & Env Services
Blackpool Council,1112477,Big Wave Media (Fac060),487760,58544,30/05/2018,628.2,104.7,LEISUR,Leisure Management,3801,Other Expenses,Community & Env Services
Blackpool Council,1108478,Technical Outdoor Solutions Limited,487762,1119,29/05/2018,1638,273,LEISUR,Leisure Management,7352,Minor Recreational Activities,Community & Env Services
Blackpool Council,1091329,Pentagull Limited,487768,8699,29/05/2018,18819,3136.5,FGAA,Ict Corporate Services,3532,Comp-Running & License Costs,Resources
Blackpool Council,1006644,Telewest/Virgin Media Payments Ltd,487773,067437901003,29/05/2018,4682.22,780.37,FGAA,Ict Corporate Services,3521,Landline - Line Rental,Resources
Blackpool Council,1006644,Telewest/Virgin Media Payments Ltd,487775,067437901506,29/05/2018,2872.02,478.67,FGAA,Ict Corporate Services,3521,Landline - Line Rental,Resources
Blackpool Council,1006644,Telewest/Virgin Media Payments Ltd,487776,078850001547,29/05/2018,378.6,63.1,FGAA,Ict Corporate Services,3521,Landline - Line Rental,Resources
Blackpool Council,1006644,Telewest/Virgin Media Payments Ltd,487777,081127901504,29/05/2018,887.4,147.9,FGAA,Ict Corporate Services,3521,Landline - Line Rental,Resources
Blackpool Council,1006644,Telewest/Virgin Media Payments Ltd,487778,080868701864,29/05/2018,269.56,44.93,FGAA,Ict Corporate Services,3521,Landline - Line Rental,Resources
Blackpool Council,1100231,Ukactive,487781,UKA_MEM/67401,29/05/2018,1440.9,240.15,LEISUR,Leisure Management,2008,Running Costs-Licences,Community & Env Services
Blackpool Council,1006292,Vodafone Corporate Ltd,487787,LA97152,31/05/2018,1886.4,314.4,FGAA,Ict Corporate Services,3531,Computer-H'Ware Purchase,Resources
Blackpool Council,1006292,Vodafone Corporate Ltd,487788,LA97151,31/05/2018,997.2,166.2,FGAA,Ict Corporate Services,3531,Computer-H'Ware Purchase,Resources
Blackpool Council,1103450,Blackpool Entertainment Company Limited,487833,INV003445,30/05/2018,600,100,BSTPRJ,Better Start Projects,3401,General Services,Better Start Projects
Blackpool Council,1006940,Smiths Equipment Hire Ltd,487841,V01-614047,30/05/2018,290.72,48.45,ENGINE,Engineering,3041,Other Materials,Community & Env Services
Blackpool Council,1087549,Merlin Entertainments (Blackpool) Ltd,487875,BC-S05643,30/05/2018,8149.2,1358.2,FMAK,Acquisitions 9/10,3413,Consultants,Places
Blackpool Council,1025837,R Draper Ltd,487881,49609,30/05/2018,661.66,110.28,PRKOP1,Parks Operational Manager  1,3041,Other Materials,Community & Env Services
Blackpool Council,1100680,York Hospitals Nhs Ft,3772685,1010051955,23/05/2018,266.26,0,PU2022,Specialist Sexual Health Serv,4501,Private Contractors,Public Health
Blackpool Council,1055367,Davies Casualty(Inc Garwyn & Argent),3819071,306585,23/05/2018,1260,210,RK6001,Garwyn El,4702,Garwyn Fee,Internal Insurance
Blackpool Council,1055770,Play Football Ltd,3850100,BLA0754,22/05/2018,332,0,VA0010,Vah Management & Admin,3408,Services To Clients,Children'S Services
Blackpool Council,1009824,Acorn Care & Education Ltd,3859944,19787,10/05/2018,750,0,CWAN,Children With Additional Needs,2211,Casual Hire,Children'S Services
Blackpool Council,1009824,Acorn Care & Education Ltd,3859945,19788,10/05/2018,600,0,CWAN,Children With Additional Needs,2211,Casual Hire,Children'S Services
Blackpool Council,1009824,Acorn Care & Education Ltd,3860760,19911,10/05/2018,795,0,CWAN,Children With Additional Needs,2211,Casual Hire,Children'S Services
Blackpool Council,1055770,Play Football Ltd,3861143,BLA0776,03/05/2018,332,0,VA0010,Vah Management & Admin,3408,Services To Clients,Children'S Services
Blackpool Council,1047310,Teletrac Navman (Uk) Ltd,3866251,91238480,01/05/2018,7408.36,1234.73,CVMU,Cvmu,4501,Private Contractors,Community & Env Services
Blackpool Council,1047310,Teletrac Navman (Uk) Ltd,3866252,91238481,01/05/2018,649.74,108.29,CVMU,Cvmu,4501,Private Contractors,Community & Env Services
Blackpool Council,1047310,Teletrac Navman (Uk) Ltd,3866253,91238482,01/05/2018,648,108,CVMU,Cvmu,4501,Private Contractors,Community & Env Services
Blackpool Council,1047310,Teletrac Navman (Uk) Ltd,3866254,91238483,01/05/2018,324,54,CVMU,Cvmu,4501,Private Contractors,Community & Env Services
Blackpool Council,1105960,Association Of Independent Lscb Chairs Ltd,3872832,817,02/05/2018,1500,0,JA1521,Lscb (Acpc),0981,Professional Fees,Children'S Services
Blackpool Council,1009824,Acorn Care & Education Ltd,3873681,20383,10/05/2018,901,0,CWAN,Children With Additional Needs,2211,Casual Hire,Children'S Services
Blackpool Council,1009824,Acorn Care & Education Ltd,3873682,20378,10/05/2018,850,0,CWAN,Children With Additional Needs,2211,Casual Hire,Children'S Services
Blackpool Council,1009824,Acorn Care & Education Ltd,3873683,20377,10/05/2018,1950,0,CWAN,Children With Additional Needs,2211,Casual Hire,Children'S Services
Blackpool Council,1009824,Acorn Care & Education Ltd,3873684,20379,10/05/2018,680,0,CWAN,Children With Additional Needs,2211,Casual Hire,Children'S Services
Blackpool Council,1009824,Acorn Care & Education Ltd,3873685,20381,10/05/2018,2040,0,CWAN,Children With Additional Needs,2211,Casual Hire,Children'S Services
Blackpool Council,1009824,Acorn Care & Education Ltd,3873686,20382,10/05/2018,680,0,CWAN,Children With Additional Needs,2211,Casual Hire,Children'S Services
Blackpool Council,1009824,Acorn Care & Education Ltd,3873687,20380,10/05/2018,2040,0,CWAN,Children With Additional Needs,2211,Casual Hire,Children'S Services
Blackpool Council,1088102,Whistl Uk Limited,3873693,IN18US18002630,01/05/2018,9856.37,1642.73,FCADA,Customer Services,3511,Postages,Resources
Blackpool Council,1111328,Hadley Fraser Ltd,3873718,BLA063,16/05/2018,4426.32,737.72,JDEAAA,Safeguarding Adults,3401,General Services,Adult & Families
Blackpool Council,1105240,Hanzak Ltd T/A Dr Rashad Nazir,3873722,20369RN,16/05/2018,924.95,0,JDEAAA,Safeguarding Adults,3401,General Services,Adult & Families
Blackpool Council,1099046,Stephen Draper Ltd,3873954,SD 1054,16/05/2018,259,0,JDEAAA,Safeguarding Adults,3401,General Services,Adult & Families
Blackpool Council,1006099,Blackpool Teaching Hospitals Nhs Ft,3874166,1110037489,17/05/2018,2982,0,SSDA,Social Services Direct,0781,Contracted,Adult & Families
Blackpool Council,1011702,J & J Decorating Services,3874204,7674,03/05/2018,1512,252,CS01DH,A P S Capital Works,6501,Contract Payments,Capital - Adult Social Care
Blackpool Council,1011702,J & J Decorating Services,3874205,7675,03/05/2018,720,120,AEB,Buildings,1012,Premises Maint-Priv.Contractor,Resources
Blackpool Council,1105272,Total Social Work Ltd,3874259,150530,17/05/2018,350,0,JDEAAA,Safeguarding Adults,3401,General Services,Adult & Families
Blackpool Council,1019254,Totalkare Limited,3875939,SI-104989,04/05/2018,3402,567,CVMU,Cvmu,3001,Office Equipment Purchase,Community & Env Services
Blackpool Council,1011702,J & J Decorating Services,3876169,7678,04/05/2018,414,69,LEISUR,Leisure Management,1012,Premises Maint-Priv.Contractor,Community & Env Services
Blackpool Council,1011702,J & J Decorating Services,3876170,7677,04/05/2018,3300,550,AEB,Buildings,1012,Premises Maint-Priv.Contractor,Resources
Blackpool Council,1015204,M (Uk) Ltd,3876180,1013A,10/05/2018,2136,356,AEB,Buildings,1012,Premises Maint-Priv.Contractor,Resources
Blackpool Council,1015204,M (Uk) Ltd,3876180,1013A,10/05/2018,292.8,48.8,LBC,Branch Libraries,1012,Premises Maint-Priv.Contractor,Places
Blackpool Council,1113964,Weldlag Limited,3876198,181,09/05/2018,600,100,PRKOP1,Parks Operational Manager  1,1012,Premises Maint-Priv.Contractor,Community & Env Services
Blackpool Council,1114796,Mann Williams,3876199,11730,04/05/2018,5268,878,FMAK,Acquisitions 9/10,1012,Premises Maint-Priv.Contractor,Places
Blackpool Council,1114796,Mann Williams,3876200,11729,04/05/2018,3534,589,FMAK,Acquisitions 9/10,1012,Premises Maint-Priv.Contractor,Places
Blackpool Council,1109451,Debigno Ltd T/A Pathway Analytics,3876206,1255,04/05/2018,2760,460,PU2022,Specialist Sexual Health Serv,4501,Private Contractors,Public Health
Blackpool Council,1102403,Bs Support Services Limited,3876229,MARO1,11/05/2018,3480,580,VA0010,Vah Management & Admin,3401,General Services,Children'S Services
Blackpool Council,1007516,Phoenix Commercial Collections Ltd,3877277,99370,04/05/2018,9459.52,1576.6,FBBEA,"Income, Recovery & Debtors",3807,Legal & Court Costs,Resources
Blackpool Council,1007516,Phoenix Commercial Collections Ltd,3877286,99371,04/05/2018,466.74,77.8,FBBEA,"Income, Recovery & Debtors",3807,Legal & Court Costs,Resources
Blackpool Council,1114724,REDACTED PERSONAL DATA,3877294,0009,01/05/2018,4010.56,0,CWAN,Children With Additional Needs,3408,Services To Clients,Children'S Services
Blackpool Council,1089115,Allpay Limited,3877295,0000526683 BCHD,01/05/2018,5470.08,911.68,GL0001,Benefit Payments - Cheque,5003,Overpayments,Budgets Outside Cash Limits
Blackpool Council,1089115,Allpay Limited,3877296,0000526735 BPHC,01/05/2018,119883.84,19980.64,GL0001,Benefit Payments - Cheque,5003,Overpayments,Budgets Outside Cash Limits
Blackpool Council,1089115,Allpay Limited,3877297,0000526734 BPHB,01/05/2018,699.18,116.53,GL0001,Benefit Payments - Cheque,5003,Overpayments,Budgets Outside Cash Limits
Blackpool Council,1089115,Allpay Limited,3877298,0000526737 BPRP,01/05/2018,48366.6,8061.1,GL0001,Benefit Payments - Cheque,5003,Overpayments,Budgets Outside Cash Limits
Blackpool Council,1010423,Child Action Northwest,3877339,YJ/2887,11/05/2018,3234.83,0,VA0010,Vah Management & Admin,3401,General Services,Children'S Services
Blackpool Council,1010026,Cieh,3877688,INV592871,03/05/2018,900,150,PYCA,Public Protection - Food,3806,Advertising-General,Community & Env Services
Blackpool Council,1007960,Mott Macdonald Ltd,3877727,IN00384861,11/05/2018,792,132,MPB,Edc - Economic Dev Company,3413,Consultants,Places
Blackpool Council,1007960,Mott Macdonald Ltd,3877728,IN00384866,11/05/2018,9600,1600,MPB,Edc - Economic Dev Company,3413,Consultants,Places
Blackpool Council,1111078,Dr Y P Shukla,3877730,70,04/05/2018,554.25,0,JDEAAA,Safeguarding Adults,3401,General Services,Adult & Families
Blackpool Council,1111078,Dr Y P Shukla,3877731,67,16/05/2018,906.5,0,JDEAAA,Safeguarding Adults,3401,General Services,Adult & Families
Blackpool Council,1111078,Dr Y P Shukla,3877732,66,10/05/2018,350,0,JDEAAA,Safeguarding Adults,3401,General Services,Adult & Families
Blackpool Council,1111078,Dr Y P Shukla,3877733,65,04/05/2018,1256.5,0,JDEAAA,Safeguarding Adults,3401,General Services,Adult & Families
Blackpool Council,1111078,Dr Y P Shukla,3877734,64,04/05/2018,727.9,0,JDEAAA,Safeguarding Adults,3401,General Services,Adult & Families
Blackpool Council,1111078,Dr Y P Shukla,3877735,63,10/05/2018,731.5,0,JDEAAA,Safeguarding Adults,3401,General Services,Adult & Families
Blackpool Council,1111078,Dr Y P Shukla,3877736,62,16/05/2018,734.65,0,JDEAAA,Safeguarding Adults,3401,General Services,Adult & Families
Blackpool Council,1111078,Dr Y P Shukla,3877737,61,04/05/2018,548.4,0,JDEAAA,Safeguarding Adults,3401,General Services,Adult & Families
Blackpool Council,1111078,Dr Y P Shukla,3877738,60,04/05/2018,723.85,0,JDEAAA,Safeguarding Adults,3401,General Services,Adult & Families
Blackpool Council,1111078,Dr Y P Shukla,3877739,68,10/05/2018,1085.55,0,JDEAAA,Safeguarding Adults,3401,General Services,Adult & Families
Blackpool Council,1111078,Dr Y P Shukla,3877740,69,04/05/2018,724.3,0,JDEAAA,Safeguarding Adults,3401,General Services,Adult & Families
Blackpool Council,1006099,Blackpool Teaching Hospitals Nhs Ft,3877767,1110037412,02/05/2018,31434,5239,LIFEVE,Life Events Reg & Care,3401,General Services,Governance & Partnerships
Blackpool Council,1111328,Hadley Fraser Ltd,3877769,BLA064,09/05/2018,3766.32,627.72,JDEAAA,Safeguarding Adults,3401,General Services,Adult & Families
Blackpool Council,1032062,REDACTED PERSONAL DATA,3877774,38,10/05/2018,437.5,0,HOPB,Housing Options,1704,Bed & Breakfast Accomm.,Chief Executive
Blackpool Council,1109577,Brenella Solutions (Uk) Ltd,3877787,530,16/05/2018,1140,0,JDEAAA,Safeguarding Adults,3401,General Services,Adult & Families
Blackpool Council,1088102,Whistl Uk Limited,3877812,IN18US18002841,04/05/2018,3552.98,592.16,FCADA,Customer Services,3511,Postages,Resources
Blackpool Council,1098193,Westminster Primary Academy,3877989,APR-JUN18,17/05/2018,69099,0,JPA,Children Centres,4501,Private Contractors,Children'S Services
Blackpool Council,1010554,Baines Endowed Ce Academy & Nursery,3877990,APR-JUN18,17/05/2018,44316,0,JPA,Children Centres,4501,Private Contractors,Children'S Services
Blackpool Council,1099746,Unity Academy,3877991,APR-JUN18,17/05/2018,2500,0,JPA,Children Centres,4501,Private Contractors,Children'S Services
Blackpool Council,1096808,Thames Primary Academy & Childrens Centre,3877993,APR-JUN18,17/05/2018,44325,0,JPA,Children Centres,4501,Private Contractors,Children'S Services
Blackpool Council,1102330,Revoe Learning Academy Children'S Centre,3877995,APR-JUN18,17/05/2018,62425,0,JPA,Children Centres,4501,Private Contractors,Children'S Services
Blackpool Council,1110952,Mereside Primary Academy,3877997,APR-JUNE18,17/05/2018,44316,0,JPA,Children Centres,4501,Private Contractors,Children'S Services
Blackpool Council,1006099,Blackpool Teaching Hospitals Nhs Ft,3878006,1110036856,16/05/2018,2982,0,SSDA,Social Services Direct,0781,Contracted,Adult & Families
Blackpool Council,1007516,Phoenix Commercial Collections Ltd,3878008,99372,04/05/2018,5581.64,930.28,FV6705,Phoenix Commercial Collection,7366,Car Parking Fees,Budgets Outside Cash Limits
Blackpool Council,1105240,Hanzak Ltd T/A Dr Rashad Nazir,3878009,20371RN,10/05/2018,1000.15,0,JDEAAA,Safeguarding Adults,3401,General Services,Adult & Families
Blackpool Council,1105003,Socal Healthcare Ltd,3878010,0418-141-142,03/05/2018,354.23,0,JDEAAA,Safeguarding Adults,3401,General Services,Adult & Families
Blackpool Council,1107898,Bacs Payment Schemes Limited,3878012,B60679 20180406,09/05/2018,1800,300,FB0181,Payroll General,3532,Comp-Running & License Costs,Resources
Blackpool Council,1033987,Berrymans Lace Mawer Llp,3878020,V2368980MKTG479,01/05/2018,728.4,121.4,RK8003,Costs Plh,3807,Legal & Court Costs,Internal Insurance
Blackpool Council,1094411,Fox Fire Security Limited,3878087,2379,11/05/2018,540,90,AEB,Buildings,1012,Premises Maint-Priv.Contractor,Resources
Blackpool Council,1094411,Fox Fire Security Limited,3878088,2376,11/05/2018,420,70,AEB,Buildings,1012,Premises Maint-Priv.Contractor,Resources
Blackpool Council,1112954,Pk Controls Ltd,3878089,8123,04/05/2018,717.36,119.56,AEB,Buildings,1012,Premises Maint-Priv.Contractor,Resources
Blackpool Council,1010229,British Destinations,3878622,1954,11/05/2018,12000,2000,PTC,"A.C.E. Regen, Tourism & Cultur",0917,Other Exps,Places
Blackpool Council,1039653,Patrol,3878625,8691,11/05/2018,2786.7,0,PARADM,Parking Administration,4501,Private Contractors,Budgets Outside Cash Limits
Blackpool Council,1009083,H & J Quick Ltd,3878636,212593951,11/05/2018,425.32,70.89,CVMU,Cvmu,3041,Other Materials,Community & Env Services
Blackpool Council,1033161,Lancaster Training Services Limited,3878666,17868,10/05/2018,1368,228,CVMU,Cvmu,3426,Course Fees,Community & Env Services
Blackpool Council,1062058,Dutton Forshaw Motor Company,3878672,33508664,11/05/2018,1126.17,187.69,CVMU,Cvmu,3041,Other Materials,Community & Env Services
Blackpool Council,1062058,Dutton Forshaw Motor Company,3878673,33508666,11/05/2018,1126.17,187.69,CVMU,Cvmu,3041,Other Materials,Community & Env Services
Blackpool Council,1009824,Acorn Care & Education Ltd,3878869,19931,10/05/2018,10468.38,0,CWAN,Children With Additional Needs,4501,Private Contractors,Children'S Services
Blackpool Council,1009824,Acorn Care & Education Ltd,3879012,19941,10/05/2018,11345.14,0,CWAN,Children With Additional Needs,4501,Private Contractors,Children'S Services
Blackpool Council,1009824,Acorn Care & Education Ltd,3879013,19939,10/05/2018,6000,0,CWAN,Children With Additional Needs,4501,Private Contractors,Children'S Services
Blackpool Council,1009824,Acorn Care & Education Ltd,3879014,19940,10/05/2018,11122.42,0,CWAN,Children With Additional Needs,4501,Private Contractors,Children'S Services
Blackpool Council,1009824,Acorn Care & Education Ltd,3879015,19938,10/05/2018,10956.67,0,CWAN,Children With Additional Needs,4501,Private Contractors,Children'S Services
Blackpool Council,1009824,Acorn Care & Education Ltd,3879016,19937,10/05/2018,11122.42,0,CWAN,Children With Additional Needs,4501,Private Contractors,Children'S Services
Blackpool Council,1009824,Acorn Care & Education Ltd,3879017,19936,10/05/2018,10332,0,CWAN,Children With Additional Needs,4501,Private Contractors,Children'S Services
Blackpool Council,1009824,Acorn Care & Education Ltd,3879018,19935,10/05/2018,10332,0,CWAN,Children With Additional Needs,4501,Private Contractors,Children'S Services
Blackpool Council,1009824,Acorn Care & Education Ltd,3879019,19934,10/05/2018,10468.38,0,CWAN,Children With Additional Needs,4501,Private Contractors,Children'S Services
Blackpool Council,1009824,Acorn Care & Education Ltd,3879023,19933,10/05/2018,10468.38,0,CWAN,Children With Additional Needs,4501,Private Contractors,Children'S Services
Blackpool Council,1009824,Acorn Care & Education Ltd,3879027,19932,10/05/2018,10332,0,CWAN,Children With Additional Needs,4501,Private Contractors,Children'S Services
Blackpool Council,1009824,Acorn Care & Education Ltd,3879031,19930,10/05/2018,10468.38,0,CWAN,Children With Additional Needs,4501,Private Contractors,Children'S Services
Blackpool Council,1009824,Acorn Care & Education Ltd,3879033,19929,10/05/2018,10956.67,0,CWAN,Children With Additional Needs,4501,Private Contractors,Children'S Services
Blackpool Council,1009824,Acorn Care & Education Ltd,3879034,19928,10/05/2018,10332,0,CWAN,Children With Additional Needs,4501,Private Contractors,Children'S Services
Blackpool Council,1009824,Acorn Care & Education Ltd,3879035,19927,10/05/2018,10332,0,CWAN,Children With Additional Needs,4501,Private Contractors,Children'S Services
Blackpool Council,1009824,Acorn Care & Education Ltd,3879037,19925,10/05/2018,10956.67,0,CWAN,Children With Additional Needs,4501,Private Contractors,Children'S Services
Blackpool Council,1009824,Acorn Care & Education Ltd,3879038,19924,10/05/2018,10956.67,0,CWAN,Children With Additional Needs,4501,Private Contractors,Children'S Services
Blackpool Council,1009824,Acorn Care & Education Ltd,3879039,19923,10/05/2018,7500,0,CWAN,Children With Additional Needs,4501,Private Contractors,Children'S Services
Blackpool Council,1009824,Acorn Care & Education Ltd,3879040,19922,10/05/2018,10956.67,0,CWAN,Children With Additional Needs,4501,Private Contractors,Children'S Services
Blackpool Council,1009824,Acorn Care & Education Ltd,3879041,19921,10/05/2018,10332,0,CWAN,Children With Additional Needs,4501,Private Contractors,Children'S Services
Blackpool Council,1115704,Privado Social Care Ltd,3879133,BCC/SJ/DOLS01,03/05/2018,350,0,JDEAAA,Safeguarding Adults,3401,General Services,Adult & Families
Blackpool Council,1115214,Cannon Hygiene Limited,3879136,CN19664895,01/05/2018,510.58,85.1,NAB,Sure Start,3041,Other Materials,Children'S Services
Blackpool Council,1007345,Mobile Mini Uk Limited,3879144,7000803441,16/05/2018,336.48,56.08,CEMCRE,Cems Crems Etc,1012,Premises Maint-Priv.Contractor,Governance & Partnerships
Blackpool Council,1020179,The James Mercer Group Ltd,3879177,111565,04/05/2018,2172.38,362.06,AEB,Buildings,1121,Heating & Ventilation,Resources
Blackpool Council,1105347,Horizon Specialist Contracting Ltd,3879249,S113808,09/05/2018,3902.4,650.4,AEB,Buildings,1012,Premises Maint-Priv.Contractor,Resources
Blackpool Council,1105347,Horizon Specialist Contracting Ltd,3879250,S113809,09/05/2018,1423.2,237.2,AEB,Buildings,1012,Premises Maint-Priv.Contractor,Resources
Blackpool Council,1115649,Andrew Vinson,3879274,496982,01/05/2018,1215,202.5,AEV,Vacant & Under Used,3413,Consultants,Resources
Blackpool Council,1049797,Scope,3879280,0000158382,01/05/2018,8500,0,CWAN,Children With Additional Needs,4501,Private Contractors,Children'S Services
Blackpool Council,1049797,Scope,3879281,0000158351,01/05/2018,8500,0,CWAN,Children With Additional Needs,4501,Private Contractors,Children'S Services
Blackpool Council,1049797,Scope,3879282,0000158350,01/05/2018,8500,0,CWAN,Children With Additional Needs,4501,Private Contractors,Children'S Services
Blackpool Council,1049797,Scope,3879284,0000158349,01/05/2018,8500,0,CWAN,Children With Additional Needs,4501,Private Contractors,Children'S Services
Blackpool Council,1049797,Scope,3879286,0000158347,01/05/2018,8500,0,CWAN,Children With Additional Needs,4501,Private Contractors,Children'S Services
Blackpool Council,1049797,Scope,3879288,0000158346,01/05/2018,8500,0,CWAN,Children With Additional Needs,4501,Private Contractors,Children'S Services
Blackpool Council,1049797,Scope,3879291,0000158274,01/05/2018,8500,0,CWAN,Children With Additional Needs,4501,Private Contractors,Children'S Services
Blackpool Council,1049797,Scope,3879292,0000158273,01/05/2018,8500,0,CWAN,Children With Additional Needs,4501,Private Contractors,Children'S Services
Blackpool Council,1049797,Scope,3879293,0000158247,01/05/2018,8500,0,CWAN,Children With Additional Needs,4501,Private Contractors,Children'S Services
Blackpool Council,1049797,Scope,3879295,0000158245,01/05/2018,8500,0,CWAN,Children With Additional Needs,4501,Private Contractors,Children'S Services
Blackpool Council,1049797,Scope,3879296,0000158244,01/05/2018,8500,0,CWAN,Children With Additional Needs,4501,Private Contractors,Children'S Services
Blackpool Council,1049797,Scope,3879297,0000158243,01/05/2018,8500,0,CWAN,Children With Additional Needs,4501,Private Contractors,Children'S Services
Blackpool Council,1049797,Scope,3879298,0000158242,01/05/2018,8500,0,CWAN,Children With Additional Needs,4501,Private Contractors,Children'S Services
Blackpool Council,1007516,Phoenix Commercial Collections Ltd,3879312,99477,11/05/2018,12730.65,2121.75,FBBEA,"Income, Recovery & Debtors",3807,Legal & Court Costs,Resources
Blackpool Council,1007516,Phoenix Commercial Collections Ltd,3879313,99478,11/05/2018,1238.66,206.46,FBBEA,"Income, Recovery & Debtors",3807,Legal & Court Costs,Resources
Blackpool Council,1108680,Greenwood Projects Ltd,3879315,20043923,30/05/2018,1860,310,CGTABA,Spanish Hall & Cs Façade,6501,Contract Payments,Capital - Places
Blackpool Council,1088102,Whistl Uk Limited,3879316,IN18US18003043,14/05/2018,5189.81,864.97,FCADA,Customer Services,3511,Postages,Resources
Blackpool Council,1009824,Acorn Care & Education Ltd,3879321,19920,10/05/2018,10332,0,CWAN,Children With Additional Needs,4501,Private Contractors,Children'S Services
Blackpool Council,1009824,Acorn Care & Education Ltd,3879322,19919,10/05/2018,10332,0,CWAN,Children With Additional Needs,4501,Private Contractors,Children'S Services
Blackpool Council,1009824,Acorn Care & Education Ltd,3879323,19918,10/05/2018,10332,0,CWAN,Children With Additional Needs,4501,Private Contractors,Children'S Services
Blackpool Council,1009824,Acorn Care & Education Ltd,3879324,19917,10/05/2018,10956.67,0,CWAN,Children With Additional Needs,4501,Private Contractors,Children'S Services
Blackpool Council,1009824,Acorn Care & Education Ltd,3879325,19916,10/05/2018,10956.67,0,CWAN,Children With Additional Needs,4501,Private Contractors,Children'S Services
Blackpool Council,1009824,Acorn Care & Education Ltd,3879327,19915,10/05/2018,10332,0,CWAN,Children With Additional Needs,4501,Private Contractors,Children'S Services
Blackpool Council,1009824,Acorn Care & Education Ltd,3879328,19914,10/05/2018,10332,0,CWAN,Children With Additional Needs,4501,Private Contractors,Children'S Services
Blackpool Council,1009824,Acorn Care & Education Ltd,3879329,19913,10/05/2018,10332,0,CWAN,Children With Additional Needs,4501,Private Contractors,Children'S Services
Blackpool Council,1009824,Acorn Care & Education Ltd,3879330,19912,10/05/2018,10956.67,0,CWAN,Children With Additional Needs,4501,Private Contractors,Children'S Services
Blackpool Council,1009824,Acorn Care & Education Ltd,3879543,19926,10/05/2018,10468.38,0,CWAN,Children With Additional Needs,4501,Private Contractors,Children'S Services
Blackpool Council,1099546,Park Community Academy,3879556,INVPCA29,23/05/2018,40000,0,CEAMED,New Pupil Plcs - Prmry 2016-17,6501,Contract Payments,Capital - Childrens
Blackpool Council,1105003,Socal Healthcare Ltd,3879565,0418-146-147,03/05/2018,353.42,0,JDEAAA,Safeguarding Adults,3401,General Services,Adult & Families
Blackpool Council,1011702,J & J Decorating Services,3879578,7639,16/05/2018,3150,525,FMAE,Civic Centre,1012,Premises Maint-Priv.Contractor,Resources
Blackpool Council,1110793,REDACTED PERSONAL DATA,3879594,TCPGNH0418MH,04/05/2018,2000,0,JBR,Lac - Placements,3801,Other Expenses,Children'S Services
Blackpool Council,1007439,Preston City Council,3879604,01897487,02/05/2018,612,102,PBF,Communications,7310,Training Courses - No Orders,Chief Executive
Blackpool Council,1088020,Electricty North West (Const & Maint) Ltd,3880509,5500120769/A,01/05/2018,1229.63,204.94,AEB,Buildings,1202,Electricity,Resources
Blackpool Council,1007980,Myerscough College,3881194,043269,04/05/2018,15131,0,CWAN,Children With Additional Needs,4501,Private Contractors,Children'S Services
Blackpool Council,1091610,Communicate Slt Cic,3881201,279,21/05/2018,17459,0,EP8002,Speech And Language,3801,Other Expenses,Children'S Services
Blackpool Council,1011369,Lancashire County Council,3881239,5200162349,01/05/2018,872.67,0,FBBBB,"Insur, Scrutiny & Emerg Planin",4701,Other Contracted Services,Resources
Blackpool Council,1095414,Healthcare Conferences Uk Ltd,3881242,411748,11/05/2018,350.4,58.4,EP8005,Domestic Abuse Commissioning,3401,General Services,Children'S Services
Blackpool Council,1005102,Sandcastle Waterpark - Boc Ltd,3881256,7370,01/05/2018,9293.27,1548.88,PAROPE,Parking Operational,3801,Other Expenses,Budgets Outside Cash Limits
Blackpool Council,1059217,Blackpool Carers Centre Ltd,3881433,780,14/05/2018,2147.5,0,JA2010,"Acute, Maternity & Palliative",7189,Other Misc Income - No Orders,Adult & Families
Blackpool Council,1007801,North West Employers Organisation,3881434,11883,01/05/2018,6825.94,1137.66,BCA,Corp And Member Services,0911,Training Expenses,Governance & Partnerships
Blackpool Council,1007516,Phoenix Commercial Collections Ltd,3881439,99479,11/05/2018,5893.64,982.28,FV6705,Phoenix Commercial Collection,7366,Car Parking Fees,Budgets Outside Cash Limits
Blackpool Council,1115716,North Liverpool Construction Ltd,3881442,124869,10/05/2018,900,150,CXB61,Hra Capital Programme 2017/18,6501,Contract Payments,Capital - Places
Blackpool Council,1115716,North Liverpool Construction Ltd,3881445,124826,04/05/2018,1110,185,CXB61,Hra Capital Programme 2017/18,6501,Contract Payments,Capital - Places
Blackpool Council,1105272,Total Social Work Ltd,3881452,150534,16/05/2018,1746.15,0,JDEAAA,Safeguarding Adults,3401,General Services,Adult & Families
Blackpool Council,1037482,Chubb Fire & Security Ltd,3881511,50054913,17/05/2018,1035.85,172.64,CXB61,Hra Capital Programme 2017/18,6501,Contract Payments,Capital - Places
Blackpool Council,1010524,Hedges House Residential Care Hotel,3882317,169948,23/05/2018,1414.8,0,MVD,85+,7582,Indep Sect Residential Homes,Adult & Families
Blackpool Council,1101400,Courtyard Care Limited,3882884,211059,01/05/2018,1622.69,0,JEA,Senior Management,4501,Private Contractors,Children'S Services
Blackpool Council,1101400,Courtyard Care Limited,3882885,211067,01/05/2018,10734.68,0,JEA,Senior Management,4501,Private Contractors,Children'S Services
Blackpool Council,1101400,Courtyard Care Limited,3882886,211067B,01/05/2018,5367.34,0,JEA,Senior Management,4501,Private Contractors,Children'S Services
Blackpool Council,1075968,Care Today Childrens Services,3882894,25810,01/05/2018,31115.2,5185.87,JEA,Senior Management,4501,Private Contractors,Children'S Services
Blackpool Council,1093844,Roc Northwest Limited,3882901,3605,03/05/2018,13714.2,0,JEA,Senior Management,4501,Private Contractors,Children'S Services
Blackpool Council,1093844,Roc Northwest Limited,3882902,3621,03/05/2018,11571.3,0,JEA,Senior Management,4501,Private Contractors,Children'S Services
Blackpool Council,1093844,Roc Northwest Limited,3882903,3687,09/05/2018,3680,0,JEA,Senior Management,4501,Private Contractors,Children'S Services
Blackpool Council,1093844,Roc Northwest Limited,3882904,3688,09/05/2018,540,0,JEA,Senior Management,4501,Private Contractors,Children'S Services
Blackpool Council,1105867,Amber Family Ltd,3882906,00420,04/05/2018,12006.1,0,JEA,Senior Management,4501,Private Contractors,Children'S Services
Blackpool Council,1106537,Pj Fire Safety Risk Assessments Limited,3882926,2282,14/05/2018,312,52,CXB71,Hra Capital Programme 2018/19,6501,Contract Payments,Capital - Places
Blackpool Council,1103692,Calico Enterprise Limited,3883226,SINV20/00000167,01/05/2018,5640,940,FC1802,Social Fund - Client,5210,Community Care Support,Resources
Blackpool Council,1105003,Socal Healthcare Ltd,3883227,0418-148-151,10/05/2018,707.38,0,JDEAAA,Safeguarding Adults,3401,General Services,Adult & Families
Blackpool Council,1005067,Blackpool Pleasure Beach Ltd,3883228,16802,03/05/2018,341,56.83,ZX0501,"Tourism,Promotions & Conferen.",9687,Tourism Sale Of Tickets,Place Directorate
Blackpool Council,1087549,Merlin Entertainments (Blackpool) Ltd,3883231,BC-S05447,03/05/2018,401.9,66.98,ZX0501,"Tourism,Promotions & Conferen.",9687,Tourism Sale Of Tickets,Place Directorate
Blackpool Council,1006099,Blackpool Teaching Hospitals Nhs Ft,3883235,1110037679,03/05/2018,5503.92,917.32,LIFEVE,Life Events Reg & Care,3401,General Services,Governance & Partnerships
Blackpool Council,1066073,Blackpool Coastal Housing,3883241,30001411,01/05/2018,458.52,76.42,CWAN,Children With Additional Needs,3008,Educational Equipment,Children'S Services
Blackpool Council,1094010,Quality Childcare Ltd T/A Little Rainbows,3883244,RAIN0140,03/05/2018,360,0,NAB,Sure Start,3801,Other Expenses,Children'S Services
Blackpool Council,1089732,Beechkeys Limited,3883247,9060000027,14/05/2018,24022.66,0,CWAN,Children With Additional Needs,4501,Private Contractors,Children'S Services
Blackpool Council,1089732,Beechkeys Limited,3883248,9060000026,14/05/2018,36033.99,0,CWAN,Children With Additional Needs,4501,Private Contractors,Children'S Services
Blackpool Council,1089732,Beechkeys Limited,3883250,9060000025,14/05/2018,36033.99,0,CWAN,Children With Additional Needs,4501,Private Contractors,Children'S Services
Blackpool Council,1089732,Beechkeys Limited,3883251,9060000023,14/05/2018,35367.33,0,CWAN,Children With Additional Needs,4501,Private Contractors,Children'S Services
Blackpool Council,1089732,Beechkeys Limited,3883252,9060000022,14/05/2018,34034.01,0,CWAN,Children With Additional Needs,4501,Private Contractors,Children'S Services
Blackpool Council,1089732,Beechkeys Limited,3883253,9060000021,14/05/2018,34034.01,0,CWAN,Children With Additional Needs,4501,Private Contractors,Children'S Services
Blackpool Council,1089732,Beechkeys Limited,3883254,9060000019,14/05/2018,24356,0,CWAN,Children With Additional Needs,4501,Private Contractors,Children'S Services
Blackpool Council,1089732,Beechkeys Limited,3883255,9060000018,14/05/2018,11344.67,0,CWAN,Children With Additional Needs,4501,Private Contractors,Children'S Services
Blackpool Council,1089732,Beechkeys Limited,3883256,9060000017,14/05/2018,34034.01,0,CWAN,Children With Additional Needs,4501,Private Contractors,Children'S Services
Blackpool Council,1067030,Advice Uk,3883257,1013345,16/05/2018,3037.5,506.25,FC0411,Advice Services,3711,Subscriptions,Resources
Blackpool Council,1099262,Nhs Blackpool Ccg,3883260,7011209397,02/05/2018,1660.67,0,MFA,Adults Under 65 With Mh,4201,Joint Authorities,Adult & Families
Blackpool Council,1007442,Preston College,3883582,EIN/00011474,16/05/2018,1077.85,0,CWAN,Children With Additional Needs,4501,Private Contractors,Children'S Services
Blackpool Council,1103168,Firefly Energi Ltd,3883583,SI-1864,02/05/2018,2315.25,110.25,LHAP,Housing Projects,7041,Energy Efficency Grants,Chief Executive
Blackpool Council,1098899,Browne Jacobson Llp,3883585,383765,23/05/2018,816,136,FL1259,Pfi Management Costs,4501,Private Contractors,Community & Env Services
Blackpool Council,1098356,Warwick Ic Systems Ltd,3883588,13008,11/05/2018,24522,4087,FK0013,Corporate Health,3065,Drugs & Medical Requisites,Chief Executive
Blackpool Council,1060135,Happy Creative Ltd,3883604,H4519,01/05/2018,2028,338,PTA,Economic Development,3315,Marketing,Places
Blackpool Council,1008878,Cipfa Business Limited,3883605,3134024,03/05/2018,780,130,PYAA,Head Of Environmental Health,3711,Subscriptions,Community & Env Services
Blackpool Council,1096596,Highfield Pfi Spv Ltd,3883876,SI10015,03/05/2018,3314.4,552.4,EM1029,Highfield Pfi,4515,Contract Services,Children'S Services
Blackpool Council,1103450,Blackpool Entertainment Company Limited,3883877,INV003528,29/05/2018,1040,173.33,AEB,Buildings,1301,Rent & Hire Of Premises,Resources
Blackpool Council,1103450,Blackpool Entertainment Company Limited,3883880,INV003535,29/05/2018,345.3,57.55,FMAK,Acquisitions 9/10,1301,Rent & Hire Of Premises,Places
Blackpool Council,1091773,Highfield Awarding Body For Comp. Ltd,3883883,0005982589,03/05/2018,480,80,PYCA,Public Protection - Food,3313,General Expenses,Community & Env Services
Blackpool Council,1005071,Blackpool Transport Services Limited,3883885,I0000394,03/05/2018,363.42,60.57,PRC,Visitor Services,3808,Souvenirs & Gifts,Places
Blackpool Council,1007516,Phoenix Commercial Collections Ltd,3883901,99622,18/05/2018,7471.49,1245.25,FBBEA,"Income, Recovery & Debtors",3807,Legal & Court Costs,Resources
Blackpool Council,1103168,Firefly Energi Ltd,3883902,SI-1846,02/05/2018,1055.8,50.28,LHAP,Housing Projects,7041,Energy Efficency Grants,Chief Executive
Blackpool Council,1103168,Firefly Energi Ltd,3883903,SI-1837,02/05/2018,2055.9,97.9,LHAP,Housing Projects,7041,Energy Efficency Grants,Chief Executive
Blackpool Council,1033987,Berrymans Lace Mawer Llp,3883904,2373793,02/05/2018,1989,331.5,RK6005,Gallagher Bassett Pl,3807,Legal & Court Costs,Internal Insurance
Blackpool Council,1074113,Cumberland & Westmorland Schools Ltd,3883924,4360,01/05/2018,4087.82,0,CWAN,Children With Additional Needs,2211,Casual Hire,Children'S Services
Blackpool Council,1102497,REDACTED PERSONAL DATA,3883926,2018/012,17/05/2018,806.6,0,JEA,Senior Management,3807,Legal & Court Costs,Children'S Services
Blackpool Council,1011702,J & J Decorating Services,3883958,7681,16/05/2018,798,133,AEB,Buildings,1012,Premises Maint-Priv.Contractor,Resources
Blackpool Council,1042515,Geze Uk Ltd,3884030,88361945,11/05/2018,336.56,56.09,AEB,Buildings,1012,Premises Maint-Priv.Contractor,Resources
Blackpool Council,1073045,Bradley Environmental Consultants Ltd (Fac042,3884119,22054,18/05/2018,360,60,HJA,Growth,1012,Premises Maint-Priv.Contractor,Places
Blackpool Council,1073045,Bradley Environmental Consultants Ltd (Fac042,3884123,22055,18/05/2018,360,60,CODAAA,Cemeteries,6501,Contract Payments,Capital - Comm & Environ
Blackpool Council,1104704,Tuvisio,3884347,68360,04/05/2018,281.66,46.94,PRINTS,Corporate Print Services,3001,Office Equipment Purchase,Places
Blackpool Council,1114780,Pam Bone Ltd,3884437,853,04/05/2018,1200,200,PJW,Management - Places - Illumina,3413,Consultants,Places
Blackpool Council,1071462,Equita Limited,3884440,1028077,18/05/2018,681.58,113.6,FV6702,Equita,7366,Car Parking Fees,Budgets Outside Cash Limits
Blackpool Council,1006385,University Of Central Lancashire,3884442,TUI221100037,16/05/2018,650,0,LM0420,Adults Training,7310,Training Courses - No Orders,Adult & Families
Blackpool Council,1006385,University Of Central Lancashire,3884443,TUI221100036,16/05/2018,650,0,LM0420,Adults Training,7310,Training Courses - No Orders,Adult & Families
Blackpool Council,1006385,University Of Central Lancashire,3884444,TUI221100035,16/05/2018,650,0,LM0420,Adults Training,7310,Training Courses - No Orders,Adult & Families
Blackpool Council,1111328,Hadley Fraser Ltd,3884445,BLA065,24/05/2018,5466.24,911.04,JDEAAA,Safeguarding Adults,3401,General Services,Adult & Families
Blackpool Council,1005067,Blackpool Pleasure Beach Ltd,3884446,16858,02/05/2018,3493.88,582.31,ZX0501,"Tourism,Promotions & Conferen.",968B,Resort Pass,Place Directorate
Blackpool Council,1010104,Canon (Uk ) Ltd,3884457,770653289,09/05/2018,1640.86,273.48,PRINTS,Corporate Print Services,2221,Operating Leases,Places
Blackpool Council,1082681,Ad Merchandise Ltd,3884460,34579,25/05/2018,276,46,PRINTS,Corporate Print Services,3408,Services To Clients,Places
Blackpool Council,1082681,Ad Merchandise Ltd,3884461,34502,18/05/2018,324,54,PRINTS,Corporate Print Services,3408,Services To Clients,Places
Blackpool Council,1081702,Equity Inspiring Learning Limited,3884469,3,03/05/2018,13926,0,MUSIC,Music & Cultural Education,7301,General Fees & Charges,Children'S Services
Blackpool Council,1115450,The Osborne House,3884477,6,04/05/2018,288,48,HOPB,Housing Options,1704,Bed & Breakfast Accomm.,Chief Executive
Blackpool Council,1011269,Fylde Borough Council,3884479,73237087,01/05/2018,878.02,146.34,FCACA,Benefits - Admin,3807,Legal & Court Costs,Resources
Blackpool Council,1114916,Grassroots Suicide Prevention,3884623,1603,16/05/2018,7440,0,PU2051,Ph Pcc Funding,4501,Private Contractors,Public Health
Blackpool Council,1051204,Greater Manchester Mental Health Nhs Trust,3884628,0000027714,02/05/2018,1350,0,PU1013,Public Health Misc,4501,Private Contractors,Public Health
Blackpool Council,1054541,P&A Medical Ltd,3884629,22542,18/05/2018,597.6,99.6,FK0013,Corporate Health,0911,Training Expenses,Chief Executive
Blackpool Council,1112844,Peter Dixon,3884630,491274-23/4/18,03/05/2018,999,166.5,TRB,Maintenance & Works,3413,Consultants,Community & Env Services
Blackpool Council,1007516,Phoenix Commercial Collections Ltd,3884632,99783,25/05/2018,527.11,87.86,FBBEA,"Income, Recovery & Debtors",3807,Legal & Court Costs,Resources
Blackpool Council,1005102,Sandcastle Waterpark - Boc Ltd,3884634,7351,01/05/2018,6305.66,1050.94,PAROPE,Parking Operational,3801,Other Expenses,Budgets Outside Cash Limits
Blackpool Council,1088102,Whistl Uk Limited,3884636,IN18US18003231,21/05/2018,4537.8,756.3,FCADA,Customer Services,3511,Postages,Resources
Blackpool Council,1102016,Critiqom Limited,3884639,034025,01/05/2018,1640.5,273.42,FBBEA,"Income, Recovery & Debtors",3511,Postages,Resources
Blackpool Council,1102016,Critiqom Limited,3884641,034021,01/05/2018,3828.04,638.01,FBBEA,"Income, Recovery & Debtors",3511,Postages,Resources
Blackpool Council,1102016,Critiqom Limited,3884643,034020,01/05/2018,656.92,109.49,FBBEA,"Income, Recovery & Debtors",3301,Printing,Resources
Blackpool Council,1077392,Reed Specialist Recruitment Ltd,3884644,E020717974M,14/05/2018,1222.25,203.71,ALDA,Learning Disability Team,0791,Temp/Relief (Bureau Staff),Adult & Families
Blackpool Council,1077392,Reed Specialist Recruitment Ltd,3884644,E020717974M,14/05/2018,2774.43,462.4,BAAA,Legal Services,0791,Temp/Relief (Bureau Staff),Governance & Partnerships
Blackpool Council,1077392,Reed Specialist Recruitment Ltd,3884644,E020717974M,14/05/2018,561.63,93.61,BLCLEA,Building Cleaning,0791,Temp/Relief (Bureau Staff),Community & Env Services
Blackpool Council,1077392,Reed Specialist Recruitment Ltd,3884644,E020717974M,14/05/2018,471.12,78.52,JA0502,Principal Social Worker,0791,Temp/Relief (Bureau Staff),Children'S Services
Blackpool Council,1077392,Reed Specialist Recruitment Ltd,3884644,E020717974M,14/05/2018,1665.36,277.56,JA1501,Safeguarding Chairs,0791,Temp/Relief (Bureau Staff),Children'S Services
Blackpool Council,1077392,Reed Specialist Recruitment Ltd,3884644,E020717974M,14/05/2018,1786.56,297.76,JAB,Locality,0791,Temp/Relief (Bureau Staff),Children'S Services
Blackpool Council,1077392,Reed Specialist Recruitment Ltd,3884644,E020717974M,14/05/2018,1532.16,255.36,JBT,Looked After Children,0791,Temp/Relief (Bureau Staff),Children'S Services
Blackpool Council,1077392,Reed Specialist Recruitment Ltd,3884644,E020717974M,14/05/2018,9882.54,1647.1,JEA,Senior Management,0791,Temp/Relief (Bureau Staff),Children'S Services
Blackpool Council,1077392,Reed Specialist Recruitment Ltd,3884644,E020717974M,14/05/2018,1077.5,179.58,SSDA,Social Services Direct,0791,Temp/Relief (Bureau Staff),Adult & Families
Blackpool Council,1077392,Reed Specialist Recruitment Ltd,3884644,E020717974M,14/05/2018,1268.54,211.42,VA0010,Vah Management & Admin,0791,Temp/Relief (Bureau Staff),Children'S Services
Blackpool Council,1115787,Dexcroft Limited,3884656,FLT4 26 FOXHALL,01/05/2018,708.33,0,JEA,Senior Management,5551,Rent & Rent Bonds,Children'S Services
Blackpool Council,1115828,REDACTED PERSONAL DATA,3884657,MW290318-020518,01/05/2018,635,0,JEA,Senior Management,5507,Personal,Children'S Services
Blackpool Council,1011702,J & J Decorating Services,3884661,7683,18/05/2018,738,123,AEB,Buildings,1012,Premises Maint-Priv.Contractor,Resources
Blackpool Council,1011817,Jack Cunliffe Blackpool Ltd,3884662,19689,01/05/2018,4819.9,803.32,AEZ,To Be Recharged,1012,Premises Maint-Priv.Contractor,Resources
Blackpool Council,1012061,Security Monitoring Centres Ltd,3884668,SI0779932,17/05/2018,3537.38,589.6,AEB,Buildings,1171,Alarms,Resources
Blackpool Council,1012061,Security Monitoring Centres Ltd,3884668,SI0779932,17/05/2018,460.25,76.71,FMAA,Retail Units,1171,Alarms,Resources
Blackpool Council,1012061,Security Monitoring Centres Ltd,3884668,SI0779932,17/05/2018,321.58,53.6,FMAB,Commercial Propereties,1171,Alarms,Resources
Blackpool Council,1012061,Security Monitoring Centres Ltd,3884668,SI0779932,17/05/2018,460.25,76.71,FMAF,Offices,1171,Alarms,Resources
Blackpool Council,1012061,Security Monitoring Centres Ltd,3884668,SI0779932,17/05/2018,643.15,107.19,PTA,Economic Development,1171,Alarms,Places
Blackpool Council,1020179,The James Mercer Group Ltd,3884671,112078,25/05/2018,413.51,68.92,AEB,Buildings,1121,Heating & Ventilation,Resources
Blackpool Council,1038493,Ezee Services Ltd,3884673,2711,01/05/2018,1410,235,AEB,Buildings,1012,Premises Maint-Priv.Contractor,Resources
Blackpool Council,1038493,Ezee Services Ltd,3884674,1293,01/05/2018,264,44,AEB,Buildings,1012,Premises Maint-Priv.Contractor,Resources
Blackpool Council,1062296,J & J Electrical Services,3884678,6167,01/05/2018,417.58,69.6,AEB,Buildings,1012,Premises Maint-Priv.Contractor,Resources
Blackpool Council,1062296,J & J Electrical Services,3884683,6174,03/05/2018,274.8,45.8,PTA,Economic Development,1012,Premises Maint-Priv.Contractor,Places
Blackpool Council,1070476,Jg Kelley Fleetwood Ltd T/A Eas Electrical,3884689,31699,01/05/2018,344.4,57.4,AEB,Buildings,1012,Premises Maint-Priv.Contractor,Resources
Blackpool Council,1089971,Johnston Consulting Engineers Ltd,3884692,1892,03/05/2018,900,150,CS01DH,A P S Capital Works,6501,Contract Payments,Capital - Adult Social Care
Blackpool Council,1110080,Containers Direct Ltd,3884699,12169,25/05/2018,2196,366,CS01DH,A P S Capital Works,6501,Contract Payments,Capital - Adult Social Care
Blackpool Council,1105093,Amey Metering Limited,3884741,90670739,01/05/2018,312,52,AEB,Buildings,1202,Electricity,Resources
Blackpool Council,1105093,Amey Metering Limited,3884742,90670655,01/05/2018,312,52,AEZ,To Be Recharged,1202,Electricity,Resources
Blackpool Council,1105093,Amey Metering Limited,3884743,90670676,01/05/2018,312,52,AEB,Buildings,1202,Electricity,Resources
Blackpool Council,1105093,Amey Metering Limited,3884744,90670679,01/05/2018,312,52,AEB,Buildings,1202,Electricity,Resources
Blackpool Council,1105093,Amey Metering Limited,3884745,90670681,01/05/2018,312,52,AEB,Buildings,1202,Electricity,Resources
Blackpool Council,1105093,Amey Metering Limited,3884746,90670682,01/05/2018,312,52,AEB,Buildings,1202,Electricity,Resources
Blackpool Council,1105093,Amey Metering Limited,3884747,90670684,01/05/2018,312,52,AEZ,To Be Recharged,1202,Electricity,Resources
Blackpool Council,1105093,Amey Metering Limited,3884748,90670685,01/05/2018,312,52,AEB,Buildings,1202,Electricity,Resources
Blackpool Council,1105093,Amey Metering Limited,3884749,90670687,01/05/2018,312,52,AEZ,To Be Recharged,1202,Electricity,Resources
Blackpool Council,1105093,Amey Metering Limited,3884750,90670692,01/05/2018,312,52,AEZ,To Be Recharged,1202,Electricity,Resources
Blackpool Council,1105093,Amey Metering Limited,3884751,90670693,01/05/2018,312,52,AEZ,To Be Recharged,1202,Electricity,Resources
Blackpool Council,1105093,Amey Metering Limited,3884752,90670741,01/05/2018,312,52,PAROPE,Parking Operational,1202,Electricity,Budgets Outside Cash Limits
Blackpool Council,1105093,Amey Metering Limited,3884753,90670694,01/05/2018,312,52,PAROPE,Parking Operational,1202,Electricity,Budgets Outside Cash Limits
Blackpool Council,1105093,Amey Metering Limited,3884754,90670695,01/05/2018,312,52,PTA,Economic Development,1202,Electricity,Places
Blackpool Council,1105093,Amey Metering Limited,3884755,90670698,01/05/2018,312,52,AEZ,To Be Recharged,1202,Electricity,Resources
Blackpool Council,1105093,Amey Metering Limited,3884756,90670700,01/05/2018,312,52,AEZ,To Be Recharged,1202,Electricity,Resources
Blackpool Council,1105093,Amey Metering Limited,3884757,90670711,01/05/2018,312,52,PJHA,"Depot, Management & Admin",1202,Electricity,Community & Env Services
Blackpool Council,1105093,Amey Metering Limited,3884758,90670714,01/05/2018,312,52,AEB,Buildings,1202,Electricity,Resources
Blackpool Council,1105093,Amey Metering Limited,3884759,90670716,01/05/2018,312,52,AEB,Buildings,1202,Electricity,Resources
Blackpool Council,1105093,Amey Metering Limited,3884760,90670719,01/05/2018,312,52,AEB,Buildings,1202,Electricity,Resources
Blackpool Council,1105093,Amey Metering Limited,3884762,90670725,01/05/2018,312,52,LBF,Library Management,1202,Electricity,Places
Blackpool Council,1105093,Amey Metering Limited,3884763,90670746,01/05/2018,312,52,AEZ,To Be Recharged,1202,Electricity,Resources
Blackpool Council,1105093,Amey Metering Limited,3884764,90670731,01/05/2018,312,52,AEB,Buildings,1202,Electricity,Resources
Blackpool Council,1105093,Amey Metering Limited,3884765,90670732,01/05/2018,312,52,AEZ,To Be Recharged,1202,Electricity,Resources
Blackpool Council,1105093,Amey Metering Limited,3884766,90670733,01/05/2018,312,52,AEZ,To Be Recharged,1202,Electricity,Resources
Blackpool Council,1105093,Amey Metering Limited,3884767,90670735,01/05/2018,312,52,CEMCRE,Cems Crems Etc,1202,Electricity,Governance & Partnerships
Blackpool Council,1105093,Amey Metering Limited,3884769,90670646,01/05/2018,312,52,AEZ,To Be Recharged,1202,Electricity,Resources
Blackpool Council,1105093,Amey Metering Limited,3884770,90670648,01/05/2018,312,52,AEB,Buildings,1202,Electricity,Resources
Blackpool Council,1105093,Amey Metering Limited,3884771,90670650,01/05/2018,312,52,PJW,Management - Places - Illumina,1202,Electricity,Places
Blackpool Council,1105093,Amey Metering Limited,3884772,90670652,01/05/2018,312,52,PJW,Management - Places - Illumina,1202,Electricity,Places
Blackpool Council,1105093,Amey Metering Limited,3884773,90670660,01/05/2018,312,52,PJW,Management - Places - Illumina,1202,Electricity,Places
Blackpool Council,1115494,Linden House Residential & Dementia Care Home,3884780,0001,09/05/2018,3794.24,0,SSDA,Social Services Direct,4105,Ola- Residential Homes,Adult & Families
Blackpool Council,1006202,I Care Gb Limited,3884795,6006467,01/05/2018,781.2,0,MSB,65-74,4507,Domiciliary Care,Adult & Families
Blackpool Council,1006202,I Care Gb Limited,3884797,6006520,01/05/2018,411.4,0,MVB,65-74,4507,Domiciliary Care,Adult & Families
Blackpool Council,1006202,I Care Gb Limited,3884798,6006521,01/05/2018,641.7,0,MGD,85+,4507,Domiciliary Care,Adult & Families
Blackpool Council,1006202,I Care Gb Limited,3884802,6006525,01/05/2018,390.6,0,MVC,75-84,4507,Domiciliary Care,Adult & Families
Blackpool Council,1006202,I Care Gb Limited,3884803,6006526,01/05/2018,1171.8,0,MVC,75-84,4507,Domiciliary Care,Adult & Families
Blackpool Council,1006202,I Care Gb Limited,3884804,6006527,01/05/2018,725.4,0,MFA,Adults Under 65 With Mh,4507,Domiciliary Care,Adult & Families
Blackpool Council,1006202,I Care Gb Limited,3884806,6006529,01/05/2018,1466.74,0,MVC,75-84,4507,Domiciliary Care,Adult & Families
Blackpool Council,1006202,I Care Gb Limited,3884809,6006532,01/05/2018,683.62,0,MVD,85+,4507,Domiciliary Care,Adult & Families
Blackpool Council,1006202,I Care Gb Limited,3884813,6006417,01/05/2018,335.8,0,MGD,85+,4507,Domiciliary Care,Adult & Families
Blackpool Council,1006202,I Care Gb Limited,3884815,6006419,01/05/2018,1562.4,0,MVD,85+,4507,Domiciliary Care,Adult & Families
Blackpool Council,1006202,I Care Gb Limited,3884816,6006420,01/05/2018,391.1,0,MVD,85+,4507,Domiciliary Care,Adult & Families
Blackpool Council,1006202,I Care Gb Limited,3884821,6006425,01/05/2018,1150.8,0,MVA,18-64,4507,Domiciliary Care,Adult & Families
Blackpool Council,1006202,I Care Gb Limited,3884824,6006428,01/05/2018,697.5,0,MVC,75-84,4507,Domiciliary Care,Adult & Families
Blackpool Council,1006202,I Care Gb Limited,3884825,6006429,01/05/2018,390.6,0,MVC,75-84,4507,Domiciliary Care,Adult & Families
Blackpool Council,1006202,I Care Gb Limited,3884826,6006430,01/05/2018,1171.8,0,MRC,75-84,4507,Domiciliary Care,Adult & Families
Blackpool Council,1006202,I Care Gb Limited,3884827,6006431,01/05/2018,412,0,MSC,75-84,4507,Domiciliary Care,Adult & Families
Blackpool Council,1006202,I Care Gb Limited,3884828,6006432,01/05/2018,900.15,0,MVA,18-64,4507,Domiciliary Care,Adult & Families
Blackpool Council,1006202,I Care Gb Limited,3884829,6006433,01/05/2018,446.4,0,MGD,85+,4507,Domiciliary Care,Adult & Families
Blackpool Council,1006202,I Care Gb Limited,3884830,6006434,01/05/2018,312.5,0,MVA,18-64,4507,Domiciliary Care,Adult & Families
Blackpool Council,1006202,I Care Gb Limited,3884831,6006435,01/05/2018,641.7,0,MVD,85+,4507,Domiciliary Care,Adult & Families
Blackpool Council,1006202,I Care Gb Limited,3884833,6006437,01/05/2018,1562.4,0,MVD,85+,4507,Domiciliary Care,Adult & Families
Blackpool Council,1006202,I Care Gb Limited,3884834,6006438,01/05/2018,390.6,0,MVC,75-84,4507,Domiciliary Care,Adult & Families
Blackpool Council,1006202,I Care Gb Limited,3884835,6006439,01/05/2018,585.9,0,MVD,85+,4507,Domiciliary Care,Adult & Families
Blackpool Council,1006202,I Care Gb Limited,3884837,6006441,01/05/2018,781.2,0,MVC,75-84,4507,Domiciliary Care,Adult & Families
Blackpool Council,1006202,I Care Gb Limited,3884843,6006447,01/05/2018,390.6,0,MVA,18-64,4507,Domiciliary Care,Adult & Families
Blackpool Council,1006202,I Care Gb Limited,3884845,6006449,01/05/2018,251.1,0,MSC,75-84,4507,Domiciliary Care,Adult & Families
Blackpool Council,1006202,I Care Gb Limited,3884847,6006451,01/05/2018,2734.2,0,MVD,85+,4507,Domiciliary Care,Adult & Families
Blackpool Council,1006202,I Care Gb Limited,3884849,6006453,01/05/2018,390.6,0,MSB,65-74,4507,Domiciliary Care,Adult & Families
Blackpool Council,1006202,I Care Gb Limited,3884855,6006459,01/05/2018,390.6,0,MDA,18-64,4507,Domiciliary Care,Adult & Families
Blackpool Council,1006202,I Care Gb Limited,3884856,6006460,01/05/2018,1562.4,0,MSC,75-84,4507,Domiciliary Care,Adult & Families
Blackpool Council,1006202,I Care Gb Limited,3884859,6006463,01/05/2018,390.6,0,MDD,85+,4507,Domiciliary Care,Adult & Families
Blackpool Council,1006202,I Care Gb Limited,3884862,6006535,01/05/2018,582.4,0,MSB,65-74,4507,Domiciliary Care,Adult & Families
Blackpool Council,1006202,I Care Gb Limited,3884865,6006538,01/05/2018,585.9,0,MVD,85+,4507,Domiciliary Care,Adult & Families
Blackpool Council,1006202,I Care Gb Limited,3884867,6006540,01/05/2018,307.4,0,MSA,18-64,4507,Domiciliary Care,Adult & Families
Blackpool Council,1006202,I Care Gb Limited,3884868,6006541,01/05/2018,306.9,0,MGA,Adults Under 65 With Mh Needs,4507,Domiciliary Care,Adult & Families
Blackpool Council,1006202,I Care Gb Limited,3884870,6006543,01/05/2018,390.6,0,MDA,18-64,4507,Domiciliary Care,Adult & Families
Blackpool Council,1006202,I Care Gb Limited,3884873,6006546,01/05/2018,2900.7,0,MHA,Older People ( U65) With Ld,4507,Domiciliary Care,Adult & Families
Blackpool Council,1006202,I Care Gb Limited,3884876,6006470,01/05/2018,675.2,0,MGC,75-84,4507,Domiciliary Care,Adult & Families
Blackpool Council,1006202,I Care Gb Limited,3884877,6006471,01/05/2018,781.2,0,MVC,75-84,4507,Domiciliary Care,Adult & Families
Blackpool Council,1006202,I Care Gb Limited,3884878,6006472,01/05/2018,641.7,0,MVC,75-84,4507,Domiciliary Care,Adult & Families
Blackpool Council,1006202,I Care Gb Limited,3884879,6006473,01/05/2018,418.5,0,MVD,85+,4507,Domiciliary Care,Adult & Families
Blackpool Council,1006202,I Care Gb Limited,3884881,6006475,01/05/2018,613.8,0,MVD,85+,4507,Domiciliary Care,Adult & Families
Blackpool Council,1006202,I Care Gb Limited,3884882,6006476,01/05/2018,474.3,0,MVD,85+,4507,Domiciliary Care,Adult & Families
Blackpool Council,1006202,I Care Gb Limited,3884885,6006479,01/05/2018,781.2,0,MVD,85+,4507,Domiciliary Care,Adult & Families
Blackpool Council,1006202,I Care Gb Limited,3884886,6006480,01/05/2018,1938.8,0,MVD,85+,4507,Domiciliary Care,Adult & Families
Blackpool Council,1006202,I Care Gb Limited,3884887,6006481,01/05/2018,446.4,0,MVA,18-64,4507,Domiciliary Care,Adult & Families
Blackpool Council,1006202,I Care Gb Limited,3884890,6006484,01/05/2018,306.9,0,MVC,75-84,4507,Domiciliary Care,Adult & Families
Blackpool Council,1006202,I Care Gb Limited,3884891,6006485,01/05/2018,1555.3,0,MFB,65-74,4507,Domiciliary Care,Adult & Families
Blackpool Council,1006202,I Care Gb Limited,3884894,6006488,01/05/2018,1562.4,0,MVD,85+,4507,Domiciliary Care,Adult & Families
Blackpool Council,1006202,I Care Gb Limited,3884895,6006489,01/05/2018,641.7,0,MVC,75-84,4507,Domiciliary Care,Adult & Families
Blackpool Council,1006202,I Care Gb Limited,3884896,6006490,01/05/2018,390.6,0,MFA,Adults Under 65 With Mh,4507,Domiciliary Care,Adult & Families
Blackpool Council,1006202,I Care Gb Limited,3884897,6006491,01/05/2018,279,0,MVC,75-84,4507,Domiciliary Care,Adult & Families
Blackpool Council,1006202,I Care Gb Limited,3884901,6006495,01/05/2018,496.85,0,MVA,18-64,4507,Domiciliary Care,Adult & Families
Blackpool Council,1006202,I Care Gb Limited,3884902,6006496,01/05/2018,390.6,0,MVD,85+,4507,Domiciliary Care,Adult & Families
Blackpool Council,1006202,I Care Gb Limited,3884903,6006497,01/05/2018,390.6,0,MSD,85+,4507,Domiciliary Care,Adult & Families
Blackpool Council,1006202,I Care Gb Limited,3884904,6006498,01/05/2018,1338.2,0,MPA,18-64,4507,Domiciliary Care,Adult & Families
Blackpool Council,1006202,I Care Gb Limited,3884905,6006499,01/05/2018,251.1,0,MSC,75-84,4507,Domiciliary Care,Adult & Families
Blackpool Council,1006202,I Care Gb Limited,3884907,6006501,01/05/2018,558,0,MXC,75-84,4507,Domiciliary Care,Adult & Families
Blackpool Council,1006202,I Care Gb Limited,3884908,6006502,01/05/2018,390.6,0,MVD,85+,4507,Domiciliary Care,Adult & Families
Blackpool Council,1006202,I Care Gb Limited,3884909,6006503,01/05/2018,558,0,MVA,18-64,4507,Domiciliary Care,Adult & Families
Blackpool Council,1006202,I Care Gb Limited,3884912,6006507,01/05/2018,1562.4,0,MVD,85+,4507,Domiciliary Care,Adult & Families
Blackpool Council,1006202,I Care Gb Limited,3884914,6006509,01/05/2018,2008.8,0,MVA,18-64,4507,Domiciliary Care,Adult & Families
Blackpool Council,1006202,I Care Gb Limited,3884916,6006511,01/05/2018,1183.65,0,MVD,85+,4507,Domiciliary Care,Adult & Families
Blackpool Council,1006202,I Care Gb Limited,3884917,6006512,01/05/2018,362.2,0,MVC,75-84,4507,Domiciliary Care,Adult & Families
Blackpool Council,1006202,I Care Gb Limited,3884920,6006515,01/05/2018,390.6,0,MGB,65-74,4507,Domiciliary Care,Adult & Families
Blackpool Council,1006202,I Care Gb Limited,3884924,6006519,01/05/2018,502.2,0,MVD,85+,4507,Domiciliary Care,Adult & Families
Blackpool Council,1007924,Napier Homecare Services Limited,3884952,BP1206_225,01/05/2018,255.6,0,MVB,65-74,4507,Domiciliary Care,Adult & Families
Blackpool Council,1007924,Napier Homecare Services Limited,3884954,BP1206_227,01/05/2018,298.2,0,MVA,18-64,4507,Domiciliary Care,Adult & Families
Blackpool Council,1007924,Napier Homecare Services Limited,3884976,BP1206_250,01/05/2018,276.9,0,MVA,18-64,4507,Domiciliary Care,Adult & Families
Blackpool Council,1007924,Napier Homecare Services Limited,3885000,BP1206_144,01/05/2018,695.8,0,MVC,75-84,4507,Domiciliary Care,Adult & Families
Blackpool Council,1007924,Napier Homecare Services Limited,3885046,BP1206_190,01/05/2018,546.7,0,MVB,65-74,4507,Domiciliary Care,Adult & Families
Blackpool Council,1007924,Napier Homecare Services Limited,3885048,BP1206_192,01/05/2018,710,0,MVA,18-64,4507,Domiciliary Care,Adult & Families
Blackpool Council,1007924,Napier Homecare Services Limited,3885068,BP1203_250,01/05/2018,280.85,0,MVD,85+,4507,Domiciliary Care,Adult & Families
Blackpool Council,1007924,Napier Homecare Services Limited,3885073,BP1205_219,01/05/2018,255.6,0,MVA,18-64,4507,Domiciliary Care,Adult & Families
Blackpool Council,1007924,Napier Homecare Services Limited,3885104,BP1206_126,01/05/2018,298.2,0,MVA,18-64,4507,Domiciliary Care,Adult & Families
Blackpool Council,1007924,Napier Homecare Services Limited,3885108,BP1206_131,01/05/2018,262.7,0,MVC,75-84,4507,Domiciliary Care,Adult & Families
Blackpool Council,1007924,Napier Homecare Services Limited,3885114,BP1206_137,01/05/2018,525.4,0,MSA,18-64,4507,Domiciliary Care,Adult & Families
Blackpool Council,1025566,Northern Life Care (Ubu),3885124,637563,01/05/2018,4073.35,0,MHA,Older People ( U65) With Ld,4507,Domiciliary Care,Adult & Families
Blackpool Council,1025566,Northern Life Care (Ubu),3885125,637590,01/05/2018,4100.27,0,MHB,65-74,4507,Domiciliary Care,Adult & Families
Blackpool Council,1025566,Northern Life Care (Ubu),3885126,637565,01/05/2018,5627.16,0,MHA,Older People ( U65) With Ld,4507,Domiciliary Care,Adult & Families
Blackpool Council,1025566,Northern Life Care (Ubu),3885128,637567,01/05/2018,4111.54,0,MHA,Older People ( U65) With Ld,4507,Domiciliary Care,Adult & Families
Blackpool Council,1025566,Northern Life Care (Ubu),3885129,637568,01/05/2018,4267.02,0,MHA,Older People ( U65) With Ld,4507,Domiciliary Care,Adult & Families
Blackpool Council,1025566,Northern Life Care (Ubu),3885130,637569,01/05/2018,4272.17,0,MHA,Older People ( U65) With Ld,4507,Domiciliary Care,Adult & Families
Blackpool Council,1025566,Northern Life Care (Ubu),3885131,637570,01/05/2018,4093.28,0,MHA,Older People ( U65) With Ld,4507,Domiciliary Care,Adult & Families
Blackpool Council,1025566,Northern Life Care (Ubu),3885132,637572,01/05/2018,3197.8,0,MHA,Older People ( U65) With Ld,4507,Domiciliary Care,Adult & Families
Blackpool Council,1025566,Northern Life Care (Ubu),3885133,637573,01/05/2018,4096.27,0,MHA,Older People ( U65) With Ld,4507,Domiciliary Care,Adult & Families
Blackpool Council,1025566,Northern Life Care (Ubu),3885134,637575,01/05/2018,3769.66,0,MHA,Older People ( U65) With Ld,4507,Domiciliary Care,Adult & Families
Blackpool Council,1025566,Northern Life Care (Ubu),3885135,637576,01/05/2018,5067.38,0,MHA,Older People ( U65) With Ld,4507,Domiciliary Care,Adult & Families
Blackpool Council,1025566,Northern Life Care (Ubu),3885136,637577,01/05/2018,4195.4,0,MHA,Older People ( U65) With Ld,4507,Domiciliary Care,Adult & Families
Blackpool Council,1025566,Northern Life Care (Ubu),3885137,637578,01/05/2018,3057.05,0,MHA,Older People ( U65) With Ld,4507,Domiciliary Care,Adult & Families
Blackpool Council,1025566,Northern Life Care (Ubu),3885138,637579,01/05/2018,6282.26,0,MHA,Older People ( U65) With Ld,4507,Domiciliary Care,Adult & Families
Blackpool Council,1025566,Northern Life Care (Ubu),3885139,637580,01/05/2018,6224.96,0,MHA,Older People ( U65) With Ld,4507,Domiciliary Care,Adult & Families
Blackpool Council,1025566,Northern Life Care (Ubu),3885140,637581,01/05/2018,5136.26,0,MHA,Older People ( U65) With Ld,4507,Domiciliary Care,Adult & Families
Blackpool Council,1025566,Northern Life Care (Ubu),3885141,637582,01/05/2018,4687.6,0,MHA,Older People ( U65) With Ld,4507,Domiciliary Care,Adult & Families
Blackpool Council,1025566,Northern Life Care (Ubu),3885142,637589,01/05/2018,6301.17,0,MHA,Older People ( U65) With Ld,4507,Domiciliary Care,Adult & Families
Blackpool Council,1025566,Northern Life Care (Ubu),3885143,637564,01/05/2018,4050.43,0,MHA,Older People ( U65) With Ld,4507,Domiciliary Care,Adult & Families
Blackpool Council,1055947,Cherish Uk Limited,3885354,16385,01/05/2018,1127.05,0,MSC,75-84,4507,Domiciliary Care,Adult & Families
Blackpool Council,1055947,Cherish Uk Limited,3885356,16387,01/05/2018,387.1,0,MGD,85+,4507,Domiciliary Care,Adult & Families
Blackpool Council,1055947,Cherish Uk Limited,3885357,16388,01/05/2018,1023.05,0,MVA,18-64,4507,Domiciliary Care,Adult & Families
Blackpool Council,1055947,Cherish Uk Limited,3885359,16390,01/05/2018,1548.4,0,MVD,85+,4507,Domiciliary Care,Adult & Families
Blackpool Council,1055947,Cherish Uk Limited,3885360,16391,01/05/2018,387.1,0,MVB,65-74,4507,Domiciliary Care,Adult & Families
Blackpool Council,1055947,Cherish Uk Limited,3885361,16392,01/05/2018,560.1,0,MGC,75-84,4507,Domiciliary Care,Adult & Families
Blackpool Council,1055947,Cherish Uk Limited,3885362,16393,01/05/2018,774.2,0,MVD,85+,4507,Domiciliary Care,Adult & Families
Blackpool Council,1055947,Cherish Uk Limited,3885363,16394,01/05/2018,380.25,0,MVD,85+,4507,Domiciliary Care,Adult & Families
Blackpool Council,1055947,Cherish Uk Limited,3885364,16395,01/05/2018,691.25,0,MVA,18-64,4507,Domiciliary Care,Adult & Families
Blackpool Council,1055947,Cherish Uk Limited,3885365,16396,01/05/2018,1115.35,0,MVC,75-84,4507,Domiciliary Care,Adult & Families
Blackpool Council,1055947,Cherish Uk Limited,3885366,16397,01/05/2018,262.8,0,MVD,85+,4507,Domiciliary Care,Adult & Families
Blackpool Council,1055947,Cherish Uk Limited,3885367,16398,01/05/2018,877.95,0,MVC,75-84,4507,Domiciliary Care,Adult & Families
Blackpool Council,1055947,Cherish Uk Limited,3885368,16399,01/05/2018,684.15,0,MVA,18-64,4507,Domiciliary Care,Adult & Families
Blackpool Council,1055947,Cherish Uk Limited,3885369,16400,01/05/2018,358.7,0,MVA,18-64,4507,Domiciliary Care,Adult & Families
Blackpool Council,1055947,Cherish Uk Limited,3885373,16404,01/05/2018,933,0,MVA,18-64,4507,Domiciliary Care,Adult & Families
Blackpool Council,1055947,Cherish Uk Limited,3885374,16405,01/05/2018,276.5,0,MSA,18-64,4507,Domiciliary Care,Adult & Families
Blackpool Council,1055947,Cherish Uk Limited,3885375,16406,01/05/2018,474.4,0,MSB,65-74,4507,Domiciliary Care,Adult & Families
Blackpool Council,1055947,Cherish Uk Limited,3885376,16407,01/05/2018,260.3,0,MVA,18-64,4507,Domiciliary Care,Adult & Families
Blackpool Council,1055947,Cherish Uk Limited,3885378,16409,01/05/2018,553,0,MXA,18-64,4507,Domiciliary Care,Adult & Families
Blackpool Council,1055947,Cherish Uk Limited,3885379,16410,01/05/2018,321.24,0,MHA,Older People ( U65) With Ld,4507,Domiciliary Care,Adult & Families
Blackpool Council,1055947,Cherish Uk Limited,3885380,16412A,01/05/2018,6271.63,0,MVA,18-64,4507,Domiciliary Care,Adult & Families
Blackpool Council,1055947,Cherish Uk Limited,3885381,16413,01/05/2018,774.2,0,MHB,65-74,4507,Domiciliary Care,Adult & Families
Blackpool Council,1055947,Cherish Uk Limited,3885382,16414,01/05/2018,1050.7,0,MHA,Older People ( U65) With Ld,4507,Domiciliary Care,Adult & Families
Blackpool Council,1055947,Cherish Uk Limited,3885383,16415,01/05/2018,926.4,0,MHA,Older People ( U65) With Ld,4507,Domiciliary Care,Adult & Families
Blackpool Council,1055947,Cherish Uk Limited,3885384,16416,01/05/2018,579.93,0,MHA,Older People ( U65) With Ld,4507,Domiciliary Care,Adult & Families
Blackpool Council,1055947,Cherish Uk Limited,3885385,16417,01/05/2018,608.3,0,MHA,Older People ( U65) With Ld,4507,Domiciliary Care,Adult & Families
Blackpool Council,1055947,Cherish Uk Limited,3885386,16419,01/05/2018,1153.97,0,MHA,Older People ( U65) With Ld,4507,Domiciliary Care,Adult & Families
Blackpool Council,1055947,Cherish Uk Limited,3885387,16420,01/05/2018,330.1,0,MHA,Older People ( U65) With Ld,4507,Domiciliary Care,Adult & Families
Blackpool Council,1055947,Cherish Uk Limited,3885388,16421,01/05/2018,1390.08,0,MHA,Older People ( U65) With Ld,4507,Domiciliary Care,Adult & Families
Blackpool Council,1055947,Cherish Uk Limited,3885389,16422,01/05/2018,1534.22,0,MHA,Older People ( U65) With Ld,4507,Domiciliary Care,Adult & Families
Blackpool Council,1055947,Cherish Uk Limited,3885391,16428,01/05/2018,331.8,0,MHA,Older People ( U65) With Ld,4507,Domiciliary Care,Adult & Families
Blackpool Council,1055947,Cherish Uk Limited,3885392,16429,01/05/2018,304.92,0,MHA,Older People ( U65) With Ld,4507,Domiciliary Care,Adult & Families
Blackpool Council,1055947,Cherish Uk Limited,3885398,16436,01/05/2018,1244,0,MGA,Adults Under 65 With Mh Needs,4507,Domiciliary Care,Adult & Families
Blackpool Council,1055947,Cherish Uk Limited,3885399,16437,01/05/2018,1616.44,0,MHA,Older People ( U65) With Ld,4507,Domiciliary Care,Adult & Families
Blackpool Council,1055947,Cherish Uk Limited,3885400,16438,01/05/2018,589.77,0,MHA,Older People ( U65) With Ld,4507,Domiciliary Care,Adult & Families
Blackpool Council,1055947,Cherish Uk Limited,3885404,16443A,01/05/2018,1048.53,0,MHA,Older People ( U65) With Ld,4507,Domiciliary Care,Adult & Families
Blackpool Council,1055947,Cherish Uk Limited,3885406,16445,01/05/2018,4408.46,0,MHA,Older People ( U65) With Ld,4507,Domiciliary Care,Adult & Families
Blackpool Council,1055947,Cherish Uk Limited,3885407,16447,01/05/2018,372.91,0,MHA,Older People ( U65) With Ld,4507,Domiciliary Care,Adult & Families
Blackpool Council,1055947,Cherish Uk Limited,3885408,16448,01/05/2018,444.96,0,MVA,18-64,4507,Domiciliary Care,Adult & Families
Blackpool Council,1055947,Cherish Uk Limited,3885410,16450,01/05/2018,331.8,0,MHA,Older People ( U65) With Ld,4507,Domiciliary Care,Adult & Families
Blackpool Council,1055947,Cherish Uk Limited,3885411,16347,01/05/2018,801.85,0,MVC,75-84,4507,Domiciliary Care,Adult & Families
Blackpool Council,1055947,Cherish Uk Limited,3885412,16348,01/05/2018,1332.4,0,MVD,85+,4507,Domiciliary Care,Adult & Families
Blackpool Council,1055947,Cherish Uk Limited,3885413,16349,01/05/2018,1559.2,0,MSA,18-64,4507,Domiciliary Care,Adult & Families
Blackpool Council,1055947,Cherish Uk Limited,3885414,16350,01/05/2018,635.95,0,MFA,Adults Under 65 With Mh,4507,Domiciliary Care,Adult & Families
Blackpool Council,1055947,Cherish Uk Limited,3885415,16351,01/05/2018,774.2,0,MVC,75-84,4507,Domiciliary Care,Adult & Families
Blackpool Council,1055947,Cherish Uk Limited,3885417,16354,01/05/2018,829.5,0,MSA,18-64,4507,Domiciliary Care,Adult & Families
Blackpool Council,1055947,Cherish Uk Limited,3885418,16355,01/05/2018,767.35,0,MVD,85+,4507,Domiciliary Care,Adult & Families
Blackpool Council,1055947,Cherish Uk Limited,3885419,16356,01/05/2018,518.5,0,MVC,75-84,4507,Domiciliary Care,Adult & Families
Blackpool Council,1055947,Cherish Uk Limited,3885425,16362,01/05/2018,1420.85,0,MSD,85+,4507,Domiciliary Care,Adult & Families
Blackpool Council,1055947,Cherish Uk Limited,3885426,16363,01/05/2018,1659,0,MVC,75-84,4507,Domiciliary Care,Adult & Families
Blackpool Council,1055947,Cherish Uk Limited,3885427,16364,01/05/2018,387.1,0,MVC,75-84,4507,Domiciliary Care,Adult & Families
Blackpool Council,1055947,Cherish Uk Limited,3885428,16365,01/05/2018,1237.15,0,MVA,18-64,4507,Domiciliary Care,Adult & Families
Blackpool Council,1055947,Cherish Uk Limited,3885429,16366,01/05/2018,284.35,0,MVC,75-84,4507,Domiciliary Care,Adult & Families
Blackpool Council,1055947,Cherish Uk Limited,3885430,16367,01/05/2018,2315.5,0,MVD,85+,4507,Domiciliary Care,Adult & Families
Blackpool Council,1055947,Cherish Uk Limited,3885433,16371,01/05/2018,442.4,0,MSD,85+,4507,Domiciliary Care,Adult & Families
Blackpool Council,1055947,Cherish Uk Limited,3885435,16373,01/05/2018,271.15,0,MVB,65-74,4507,Domiciliary Care,Adult & Families
Blackpool Council,1055947,Cherish Uk Limited,3885437,16375,01/05/2018,774.2,0,MVD,85+,4507,Domiciliary Care,Adult & Families
Blackpool Council,1055947,Cherish Uk Limited,3885438,16376,01/05/2018,774.2,0,MVC,75-84,4507,Domiciliary Care,Adult & Families
Blackpool Council,1055947,Cherish Uk Limited,3885439,16377,01/05/2018,443.4,0,MVA,18-64,4507,Domiciliary Care,Adult & Families
Blackpool Council,1055947,Cherish Uk Limited,3885443,16381,01/05/2018,2163.8,0,MVA,18-64,4507,Domiciliary Care,Adult & Families
Blackpool Council,1055947,Cherish Uk Limited,3885444,16382,01/05/2018,1126.8,0,MSA,18-64,4507,Domiciliary Care,Adult & Families
Blackpool Council,1055947,Cherish Uk Limited,3885445,16383,01/05/2018,387.1,0,MVD,85+,4507,Domiciliary Care,Adult & Families
Blackpool Council,1055947,Cherish Uk Limited,3885446,16384,01/05/2018,518.75,0,MVA,18-64,4507,Domiciliary Care,Adult & Families
Blackpool Council,1083072,Carewatch Care Services Ltd,3885448,145039,01/05/2018,575.4,0,MVA,18-64,4507,Domiciliary Care,Adult & Families
Blackpool Council,1083072,Carewatch Care Services Ltd,3885449,145072,01/05/2018,287.72,0,MVB,65-74,4507,Domiciliary Care,Adult & Families
Blackpool Council,1087253,Routes Healthcare North Limited,3885452,40311,01/05/2018,276.9,0,MVA,18-64,4507,Domiciliary Care,Adult & Families
Blackpool Council,1087253,Routes Healthcare North Limited,3885467,40307,01/05/2018,596.4,0,MVA,18-64,4507,Domiciliary Care,Adult & Families
Blackpool Council,1098376,The Disabilities Trust,3885470,CES020211,01/05/2018,4332.4,0,MGA,Adults Under 65 With Mh Needs,4507,Domiciliary Care,Adult & Families
Blackpool Council,1098376,The Disabilities Trust,3885471,CES020212,01/05/2018,5015.07,0,MGA,Adults Under 65 With Mh Needs,4507,Domiciliary Care,Adult & Families
Blackpool Council,1098376,The Disabilities Trust,3885472,CES020213,01/05/2018,6574.4,0,MSA,18-64,4507,Domiciliary Care,Adult & Families
Blackpool Council,1098376,The Disabilities Trust,3885473,CES020214,01/05/2018,947.8,0,MGA,Adults Under 65 With Mh Needs,4507,Domiciliary Care,Adult & Families
Blackpool Council,1098376,The Disabilities Trust,3885474,CES020210,01/05/2018,5385.17,0,MVA,18-64,4507,Domiciliary Care,Adult & Families
Blackpool Council,1106278,Comfort Call Limited,3885475,4101470,01/05/2018,383.6,0,MSD,85+,4507,Domiciliary Care,Adult & Families
Blackpool Council,1106278,Comfort Call Limited,3885478,4101475,01/05/2018,438.4,0,MRC,75-84,4507,Domiciliary Care,Adult & Families
Blackpool Council,1106278,Comfort Call Limited,3885479,4101400,01/05/2018,739.8,0,MVD,85+,4507,Domiciliary Care,Adult & Families
Blackpool Council,1106278,Comfort Call Limited,3885480,4101401,01/05/2018,1876.9,0,MVB,65-74,4507,Domiciliary Care,Adult & Families
Blackpool Council,1106278,Comfort Call Limited,3885483,4101404,01/05/2018,602.8,0,MVC,75-84,4507,Domiciliary Care,Adult & Families
Blackpool Council,1106278,Comfort Call Limited,3885491,4101413,01/05/2018,767.2,0,MVD,85+,4507,Domiciliary Care,Adult & Families
Blackpool Council,1106278,Comfort Call Limited,3885498,4101420,01/05/2018,630.2,0,MVA,18-64,4507,Domiciliary Care,Adult & Families
Blackpool Council,1106278,Comfort Call Limited,3885501,4101423,01/05/2018,1527.55,0,MVC,75-84,4507,Domiciliary Care,Adult & Families
Blackpool Council,1106278,Comfort Call Limited,3885502,4101424,01/05/2018,363.05,0,MVD,85+,4507,Domiciliary Care,Adult & Families
Blackpool Council,1106278,Comfort Call Limited,3885503,4101425,01/05/2018,630.2,0,MVC,75-84,4507,Domiciliary Care,Adult & Families
Blackpool Council,1106278,Comfort Call Limited,3885505,4101427,01/05/2018,390.45,0,MGC,75-84,4507,Domiciliary Care,Adult & Families
Blackpool Council,1106278,Comfort Call Limited,3885509,4101433,01/05/2018,760.35,0,MVB,65-74,4507,Domiciliary Care,Adult & Families
Blackpool Council,1106278,Comfort Call Limited,3885510,4101434,01/05/2018,623.35,0,MVD,85+,4507,Domiciliary Care,Adult & Families
Blackpool Council,1106278,Comfort Call Limited,3885512,4101436,01/05/2018,561.7,0,MXA,18-64,4507,Domiciliary Care,Adult & Families
Blackpool Council,1106278,Comfort Call Limited,3885516,4101440,01/05/2018,1692.23,0,MSA,18-64,4507,Domiciliary Care,Adult & Families
Blackpool Council,1106278,Comfort Call Limited,3885519,4101443,01/05/2018,500.05,0,MFB,65-74,4507,Domiciliary Care,Adult & Families
Blackpool Council,1106278,Comfort Call Limited,3885521,4101445,01/05/2018,383.6,0,MVD,85+,4507,Domiciliary Care,Adult & Families
Blackpool Council,1106278,Comfort Call Limited,3885523,4101447,01/05/2018,376.75,0,MVC,75-84,4507,Domiciliary Care,Adult & Families
Blackpool Council,1106278,Comfort Call Limited,3885526,4101450,01/05/2018,383.6,0,MFD,85+,4507,Domiciliary Care,Adult & Families
Blackpool Council,1106278,Comfort Call Limited,3885527,4101452,01/05/2018,2900.93,0,MSA,18-64,4507,Domiciliary Care,Adult & Families
Blackpool Council,1106278,Comfort Call Limited,3885528,4101454,01/05/2018,349.35,0,MVD,85+,4507,Domiciliary Care,Adult & Families
Blackpool Council,1106278,Comfort Call Limited,3885529,4101455,01/05/2018,397.3,0,MVA,18-64,4507,Domiciliary Care,Adult & Families
Blackpool Council,1106278,Comfort Call Limited,3885531,4101457,01/05/2018,253.45,0,MVC,75-84,4507,Domiciliary Care,Adult & Families
Blackpool Council,1106278,Comfort Call Limited,3885532,4101458,01/05/2018,431.55,0,MVA,18-64,4507,Domiciliary Care,Adult & Families
Blackpool Council,1106278,Comfort Call Limited,3885533,4101459,01/05/2018,267.15,0,MVA,18-64,4507,Domiciliary Care,Adult & Families
Blackpool Council,1106278,Comfort Call Limited,3885540,4101468,01/05/2018,356.2,0,MVA,18-64,4507,Domiciliary Care,Adult & Families
Blackpool Council,1109958,Arc Community Care Ltd - The Owls Care Home,3885546,IN/1040978,01/05/2018,390.6,0,MSA,18-64,4507,Domiciliary Care,Adult & Families
Blackpool Council,1109958,Arc Community Care Ltd - The Owls Care Home,3885547,IN/1040977,01/05/2018,405.3,0,MVA,18-64,4507,Domiciliary Care,Adult & Families
Blackpool Council,1113974,Micah Care Ltd T/A Micah Community Care,3885549,3157,01/05/2018,397.6,0,MVD,85+,4507,Domiciliary Care,Adult & Families
Blackpool Council,1113974,Micah Care Ltd T/A Micah Community Care,3885550,3159,01/05/2018,433.1,0,MDA,18-64,4507,Domiciliary Care,Adult & Families
Blackpool Council,1113974,Micah Care Ltd T/A Micah Community Care,3885552,3161,01/05/2018,944.57,0,MVD,85+,4507,Domiciliary Care,Adult & Families
Blackpool Council,1113974,Micah Care Ltd T/A Micah Community Care,3885553,3162,01/05/2018,951.4,0,MSC,75-84,4507,Domiciliary Care,Adult & Families
Blackpool Council,1113974,Micah Care Ltd T/A Micah Community Care,3885555,3164,01/05/2018,404.7,0,MPC,75-84,4507,Domiciliary Care,Adult & Families
Blackpool Council,1113974,Micah Care Ltd T/A Micah Community Care,3885557,3167,01/05/2018,397.6,0,MRC,75-84,4507,Domiciliary Care,Adult & Families
Blackpool Council,1113974,Micah Care Ltd T/A Micah Community Care,3885559,3152,01/05/2018,319.5,0,MGC,75-84,4507,Domiciliary Care,Adult & Families
Blackpool Council,1113974,Micah Care Ltd T/A Micah Community Care,3885560,3150,01/05/2018,759.7,0,MVC,75-84,4507,Domiciliary Care,Adult & Families
Blackpool Council,1113974,Micah Care Ltd T/A Micah Community Care,3885562,3148,01/05/2018,326.6,0,MDA,18-64,4507,Domiciliary Care,Adult & Families
Blackpool Council,1113974,Micah Care Ltd T/A Micah Community Care,3885563,3146,01/05/2018,326.6,0,MVC,75-84,4507,Domiciliary Care,Adult & Families
Blackpool Council,1005266,REDACTED PERSONAL DATA,3885566,172067,01/05/2018,633.28,0,JEA,Senior Management,4809,Special Guardianship,Children'S Services
Blackpool Council,1005947,REDACTED PERSONAL DATA,3885567,172133,01/05/2018,726.28,0,JEA,Senior Management,4809,Special Guardianship,Children'S Services
Blackpool Council,1005947,REDACTED PERSONAL DATA,3885568,172132,01/05/2018,726.28,0,JEA,Senior Management,4809,Special Guardianship,Children'S Services
Blackpool Council,1005947,REDACTED PERSONAL DATA,3885569,172032,01/05/2018,726.28,0,JEA,Senior Management,4809,Special Guardianship,Children'S Services
Blackpool Council,1005947,REDACTED PERSONAL DATA,3885570,172033,01/05/2018,845.85,0,JEA,Senior Management,4809,Special Guardianship,Children'S Services
Blackpool Council,1005947,REDACTED PERSONAL DATA,3885571,172034,01/05/2018,633.28,0,JEA,Senior Management,4809,Special Guardianship,Children'S Services
Blackpool Council,1006685,REDACTED PERSONAL DATA,3885572,172138,01/05/2018,766.49,0,JEA,Senior Management,4809,Special Guardianship,Children'S Services
Blackpool Council,1006685,REDACTED PERSONAL DATA,3885573,172035,01/05/2018,766.49,0,JEA,Senior Management,4809,Special Guardianship,Children'S Services
Blackpool Council,1006685,REDACTED PERSONAL DATA,3885574,172137,01/05/2018,766.49,0,JEA,Senior Management,4809,Special Guardianship,Children'S Services
Blackpool Council,1007093,REDACTED PERSONAL DATA,3885575,172028,01/05/2018,1302,0,JEA,Senior Management,4809,Special Guardianship,Children'S Services
Blackpool Council,1007093,REDACTED PERSONAL DATA,3885576,172027,01/05/2018,1209,0,JEA,Senior Management,4809,Special Guardianship,Children'S Services
Blackpool Council,1007093,REDACTED PERSONAL DATA,3885577,172130,01/05/2018,1209,0,JEA,Senior Management,4809,Special Guardianship,Children'S Services
Blackpool Council,1007513,REDACTED PERSONAL DATA,3885578,172030,01/05/2018,715.93,0,JBR,Lac - Placements,4814,Adoption Allowances,Children'S Services
Blackpool Council,1010522,REDACTED PERSONAL DATA,3885579,171937,01/05/2018,726.28,0,JEA,Senior Management,4809,Special Guardianship,Children'S Services
Blackpool Council,1010522,REDACTED PERSONAL DATA,3885580,172069,01/05/2018,633.28,0,JEA,Senior Management,4809,Special Guardianship,Children'S Services
Blackpool Council,1010597,REDACTED PERSONAL DATA,3885581,171929,01/05/2018,845.85,0,JEA,Senior Management,4811,Residence Orders,Children'S Services
Blackpool Council,1018980,REDACTED PERSONAL DATA,3885582,171997,01/05/2018,1302,0,JBR,Lac - Placements,4814,Adoption Allowances,Children'S Services
Blackpool Council,1023504,REDACTED PERSONAL DATA,3885583,171883,01/05/2018,726.28,0,JEA,Senior Management,4809,Special Guardianship,Children'S Services
Blackpool Council,1025390,REDACTED PERSONAL DATA,3885584,172057,01/05/2018,726.28,0,JEA,Senior Management,4811,Residence Orders,Children'S Services
Blackpool Council,1029378,REDACTED PERSONAL DATA,3885585,172059,01/05/2018,845.85,0,JEA,Senior Management,4811,Residence Orders,Children'S Services
Blackpool Council,1029378,REDACTED PERSONAL DATA,3885586,172153,01/05/2018,845.85,0,JEA,Senior Management,4811,Residence Orders,Children'S Services
Blackpool Council,1032584,REDACTED PERSONAL DATA,3885587,171865,01/05/2018,726.28,0,JBR,Lac - Placements,4814,Adoption Allowances,Children'S Services
Blackpool Council,1038672,REDACTED PERSONAL DATA,3885588,172143,01/05/2018,562.43,0,JBR,Lac - Placements,4814,Adoption Allowances,Children'S Services
Blackpool Council,1038672,REDACTED PERSONAL DATA,3885589,171861,01/05/2018,562.43,0,JBR,Lac - Placements,4814,Adoption Allowances,Children'S Services
Blackpool Council,1039147,REDACTED PERSONAL DATA,3885590,172058,01/05/2018,845.85,0,JEA,Senior Management,4811,Residence Orders,Children'S Services
Blackpool Council,1041065,REDACTED PERSONAL DATA,3885591,171909,01/05/2018,562.43,0,JEA,Senior Management,4809,Special Guardianship,Children'S Services
Blackpool Council,1042600,REDACTED PERSONAL DATA,3885592,171930,01/05/2018,726.28,0,JEA,Senior Management,4811,Residence Orders,Children'S Services
Blackpool Council,1043459,REDACTED PERSONAL DATA,3885593,171867,01/05/2018,952.15,0,JBR,Lac - Placements,4814,Adoption Allowances,Children'S Services
Blackpool Council,1043651,REDACTED PERSONAL DATA,3885594,171863,01/05/2018,562.43,0,JBR,Lac - Placements,4814,Adoption Allowances,Children'S Services
Blackpool Council,1043651,REDACTED PERSONAL DATA,3885595,171969,01/05/2018,562.43,0,JBR,Lac - Placements,4814,Adoption Allowances,Children'S Services
Blackpool Council,1043651,REDACTED PERSONAL DATA,3885596,172051,01/05/2018,575.72,0,JBR,Lac - Placements,4814,Adoption Allowances,Children'S Services
Blackpool Council,1043955,REDACTED PERSONAL DATA,3885597,172191,01/05/2018,845.85,0,JEA,Senior Management,4809,Special Guardianship,Children'S Services
Blackpool Council,1043955,REDACTED PERSONAL DATA,3885598,171962,01/05/2018,726.28,0,JEA,Senior Management,4809,Special Guardianship,Children'S Services
Blackpool Council,1044018,REDACTED PERSONAL DATA,3885599,171920,01/05/2018,562.43,0,JBR,Lac - Placements,4814,Adoption Allowances,Children'S Services
Blackpool Council,1048741,REDACTED PERSONAL DATA,3885600,172229,01/05/2018,726.28,0,JEA,Senior Management,4809,Special Guardianship,Children'S Services
Blackpool Council,1048947,REDACTED PERSONAL DATA,3885601,171871,01/05/2018,726.28,0,JEA,Senior Management,4811,Residence Orders,Children'S Services
Blackpool Council,1049626,REDACTED PERSONAL DATA,3885602,172187,01/05/2018,633.28,0,JEA,Senior Management,4809,Special Guardianship,Children'S Services
Blackpool Council,1049626,REDACTED PERSONAL DATA,3885603,171996,01/05/2018,633.28,0,JEA,Senior Management,4809,Special Guardianship,Children'S Services
Blackpool Council,1049626,REDACTED PERSONAL DATA,3885604,171995,01/05/2018,726.28,0,JEA,Senior Management,4809,Special Guardianship,Children'S Services
Blackpool Council,1049626,REDACTED PERSONAL DATA,3885605,172216,01/05/2018,633.28,0,JEA,Senior Management,4809,Special Guardianship,Children'S Services
Blackpool Council,1052328,REDACTED PERSONAL DATA,3885606,172154,01/05/2018,726.28,0,JEA,Senior Management,4811,Residence Orders,Children'S Services
Blackpool Council,1054536,REDACTED PERSONAL DATA,3885607,172202,01/05/2018,726.28,0,JEA,Senior Management,4811,Residence Orders,Children'S Services
Blackpool Council,1054614,REDACTED PERSONAL DATA,3885608,171990,01/05/2018,726.28,0,JEA,Senior Management,4809,Special Guardianship,Children'S Services
Blackpool Council,1055795,REDACTED PERSONAL DATA,3885609,171872,01/05/2018,845.85,0,JEA,Senior Management,4811,Residence Orders,Children'S Services
Blackpool Council,1057277,REDACTED PERSONAL DATA,3885610,172048,01/05/2018,633.28,0,JBR,Lac - Placements,4814,Adoption Allowances,Children'S Services
Blackpool Council,1058573,REDACTED PERSONAL DATA,3885611,172008,01/05/2018,726.28,0,JEA,Senior Management,4809,Special Guardianship,Children'S Services
Blackpool Council,1059285,REDACTED PERSONAL DATA,3885612,171926,01/05/2018,1058.43,0,JBR,Lac - Placements,4814,Adoption Allowances,Children'S Services
Blackpool Council,1059285,REDACTED PERSONAL DATA,3885613,171868,01/05/2018,1009.71,0,JBR,Lac - Placements,4814,Adoption Allowances,Children'S Services
Blackpool Council,1059285,REDACTED PERSONAL DATA,3885614,172005,01/05/2018,1058.43,0,JBR,Lac - Placements,4814,Adoption Allowances,Children'S Services
Blackpool Council,1061307,REDACTED PERSONAL DATA,3885615,171933,01/05/2018,562.43,0,JEA,Senior Management,4809,Special Guardianship,Children'S Services
Blackpool Council,1062123,REDACTED PERSONAL DATA,3885616,172150,01/05/2018,633.28,0,JBR,Lac - Placements,4814,Adoption Allowances,Children'S Services
Blackpool Council,1063757,REDACTED PERSONAL DATA,3885617,172075,01/05/2018,726.28,0,JEA,Senior Management,4809,Special Guardianship,Children'S Services
Blackpool Council,1063757,REDACTED PERSONAL DATA,3885618,172074,01/05/2018,845.85,0,JEA,Senior Management,4809,Special Guardianship,Children'S Services
Blackpool Council,1064011,REDACTED PERSONAL DATA,3885619,172062,01/05/2018,562.43,0,JEA,Senior Management,4809,Special Guardianship,Children'S Services
Blackpool Council,1066475,REDACTED PERSONAL DATA,3885620,172144,01/05/2018,562.43,0,JBR,Lac - Placements,4814,Adoption Allowances,Children'S Services
Blackpool Council,1068480,REDACTED PERSONAL DATA,3885621,172156,01/05/2018,562.43,0,JEA,Senior Management,4809,Special Guardianship,Children'S Services
Blackpool Council,1068524,REDACTED PERSONAL DATA,3885622,172063,01/05/2018,562.43,0,JEA,Senior Management,4809,Special Guardianship,Children'S Services
Blackpool Council,1068906,REDACTED PERSONAL DATA,3885623,172043,01/05/2018,562.43,0,JBR,Lac - Placements,4814,Adoption Allowances,Children'S Services
Blackpool Council,1068906,REDACTED PERSONAL DATA,3885624,172042,01/05/2018,562.43,0,JBR,Lac - Placements,4814,Adoption Allowances,Children'S Services
Blackpool Council,1068906,REDACTED PERSONAL DATA,3885625,172041,01/05/2018,562.43,0,JBR,Lac - Placements,4814,Adoption Allowances,Children'S Services
Blackpool Council,1068968,REDACTED PERSONAL DATA,3885626,171862,01/05/2018,562.43,0,JBR,Lac - Placements,4814,Adoption Allowances,Children'S Services
Blackpool Council,1069176,REDACTED PERSONAL DATA,3885627,172155,01/05/2018,562.43,0,JEA,Senior Management,4809,Special Guardianship,Children'S Services
Blackpool Council,1069176,REDACTED PERSONAL DATA,3885628,172061,01/05/2018,562.43,0,JEA,Senior Management,4809,Special Guardianship,Children'S Services
Blackpool Council,1070512,REDACTED PERSONAL DATA,3885629,172089,01/05/2018,575.72,0,JEA,Senior Management,4809,Special Guardianship,Children'S Services
Blackpool Council,1070602,REDACTED PERSONAL DATA,3885630,172157,01/05/2018,562.43,0,JEA,Senior Management,4809,Special Guardianship,Children'S Services
Blackpool Council,1071018,REDACTED PERSONAL DATA,3885631,172044,01/05/2018,562.43,0,JBR,Lac - Placements,4814,Adoption Allowances,Children'S Services
Blackpool Council,1071018,REDACTED PERSONAL DATA,3885632,172145,01/05/2018,562.43,0,JBR,Lac - Placements,4814,Adoption Allowances,Children'S Services
Blackpool Council,1071018,REDACTED PERSONAL DATA,3885633,171921,01/05/2018,562.43,0,JBR,Lac - Placements,4814,Adoption Allowances,Children'S Services
Blackpool Council,1071683,REDACTED PERSONAL DATA,3885634,171875,01/05/2018,562.43,0,JEA,Senior Management,4809,Special Guardianship,Children'S Services
Blackpool Council,1071683,REDACTED PERSONAL DATA,3885635,172160,01/05/2018,562.43,0,JEA,Senior Management,4809,Special Guardianship,Children'S Services
Blackpool Council,1072770,REDACTED PERSONAL DATA,3885636,172158,01/05/2018,562.43,0,JEA,Senior Management,4809,Special Guardianship,Children'S Services
Blackpool Council,1074231,REDACTED PERSONAL DATA,3885637,172203,01/05/2018,562.43,0,JEA,Senior Management,4811,Residence Orders,Children'S Services
Blackpool Council,1076446,REDACTED PERSONAL DATA,3885638,171932,01/05/2018,562.43,0,JEA,Senior Management,4811,Residence Orders,Children'S Services
Blackpool Council,1076446,REDACTED PERSONAL DATA,3885639,171873,01/05/2018,562.43,0,JEA,Senior Management,4811,Residence Orders,Children'S Services
Blackpool Council,1077446,REDACTED PERSONAL DATA,3885640,172146,01/05/2018,562.43,0,JBR,Lac - Placements,4814,Adoption Allowances,Children'S Services
Blackpool Council,1077610,REDACTED PERSONAL DATA,3885641,171874,01/05/2018,562.43,0,JEA,Senior Management,4809,Special Guardianship,Children'S Services
Blackpool Council,1078284,REDACTED PERSONAL DATA,3885642,171935,01/05/2018,562.43,0,JEA,Senior Management,4809,Special Guardianship,Children'S Services
Blackpool Council,1079501,REDACTED PERSONAL DATA,3885643,172023,01/05/2018,562.43,0,JEA,Senior Management,4809,Special Guardianship,Children'S Services
Blackpool Council,1079745,REDACTED PERSONAL DATA,3885644,172159,01/05/2018,562.43,0,JEA,Senior Management,4809,Special Guardianship,Children'S Services
Blackpool Council,1080101,REDACTED PERSONAL DATA,3885645,171934,01/05/2018,562.43,0,JEA,Senior Management,4809,Special Guardianship,Children'S Services
Blackpool Council,1080411,REDACTED PERSONAL DATA,3885646,171922,01/05/2018,562.43,0,JBR,Lac - Placements,4814,Adoption Allowances,Children'S Services
Blackpool Council,1081971,REDACTED PERSONAL DATA,3885647,171882,01/05/2018,1009.71,0,JEA,Senior Management,4809,Special Guardianship,Children'S Services
Blackpool Council,1081971,REDACTED PERSONAL DATA,3885648,171942,01/05/2018,1009.71,0,JEA,Senior Management,4809,Special Guardianship,Children'S Services
Blackpool Council,1082124,REDACTED PERSONAL DATA,3885649,171955,01/05/2018,562.43,0,JEA,Senior Management,4809,Special Guardianship,Children'S Services
Blackpool Council,1082476,REDACTED PERSONAL DATA,3885650,172092,01/05/2018,1009.71,0,JEA,Senior Management,4809,Special Guardianship,Children'S Services
Blackpool Council,1082476,REDACTED PERSONAL DATA,3885651,171897,01/05/2018,1009.71,0,JEA,Senior Management,4809,Special Guardianship,Children'S Services
Blackpool Council,1082476,REDACTED PERSONAL DATA,3885652,172179,01/05/2018,1009.71,0,JEA,Senior Management,4809,Special Guardianship,Children'S Services
Blackpool Council,1082803,REDACTED PERSONAL DATA,3885653,172225,01/05/2018,633.28,0,JEA,Senior Management,4811,Residence Orders,Children'S Services
Blackpool Council,1082803,REDACTED PERSONAL DATA,3885654,172003,01/05/2018,562.43,0,JEA,Senior Management,4811,Residence Orders,Children'S Services
Blackpool Council,1083419,REDACTED PERSONAL DATA,3885655,172025,01/05/2018,633.28,0,JEA,Senior Management,4809,Special Guardianship,Children'S Services
Blackpool Council,1083907,REDACTED PERSONAL DATA,3885656,171993,01/05/2018,562.43,0,JEA,Senior Management,4809,Special Guardianship,Children'S Services
Blackpool Council,1083907,REDACTED PERSONAL DATA,3885657,171994,01/05/2018,562.43,0,JEA,Senior Management,4809,Special Guardianship,Children'S Services
Blackpool Council,1083907,REDACTED PERSONAL DATA,3885658,172220,01/05/2018,562.43,0,JEA,Senior Management,4809,Special Guardianship,Children'S Services
Blackpool Council,1085922,REDACTED PERSONAL DATA,3885659,172064,01/05/2018,562.43,0,JEA,Senior Management,4809,Special Guardianship,Children'S Services
Blackpool Council,1085923,REDACTED PERSONAL DATA,3885660,171924,01/05/2018,575.72,0,JBR,Lac - Placements,4814,Adoption Allowances,Children'S Services
Blackpool Council,1085923,REDACTED PERSONAL DATA,3885661,172219,01/05/2018,1102.71,0,JBR,Lac - Placements,4814,Adoption Allowances,Children'S Services
Blackpool Council,1085923,REDACTED PERSONAL DATA,3885662,171971,01/05/2018,1009.71,0,JBR,Lac - Placements,4814,Adoption Allowances,Children'S Services
Blackpool Council,1085923,REDACTED PERSONAL DATA,3885663,172134,01/05/2018,965.43,0,JEA,Senior Management,4809,Special Guardianship,Children'S Services
Blackpool Council,1085928,REDACTED PERSONAL DATA,3885664,172065,01/05/2018,562.43,0,JEA,Senior Management,4809,Special Guardianship,Children'S Services
Blackpool Council,1085928,REDACTED PERSONAL DATA,3885665,171940,01/05/2018,633.28,0,JEA,Senior Management,4809,Special Guardianship,Children'S Services
Blackpool Council,1085931,REDACTED PERSONAL DATA,3885666,171878,01/05/2018,726.28,0,JEA,Senior Management,4809,Special Guardianship,Children'S Services
Blackpool Council,1085931,REDACTED PERSONAL DATA,3885667,172163,01/05/2018,726.28,0,JEA,Senior Management,4809,Special Guardianship,Children'S Services
Blackpool Council,1086638,REDACTED PERSONAL DATA,3885668,172046,01/05/2018,562.43,0,JBR,Lac - Placements,4814,Adoption Allowances,Children'S Services
Blackpool Council,1087223,REDACTED PERSONAL DATA,3885669,172045,01/05/2018,562.43,0,JBR,Lac - Placements,4814,Adoption Allowances,Children'S Services
Blackpool Council,1087223,REDACTED PERSONAL DATA,3885670,171970,01/05/2018,562.43,0,JBR,Lac - Placements,4814,Adoption Allowances,Children'S Services
Blackpool Council,1088072,REDACTED PERSONAL DATA,3885671,171896,01/05/2018,575.72,0,JEA,Senior Management,4809,Special Guardianship,Children'S Services
Blackpool Council,1088081,REDACTED PERSONAL DATA,3885672,171987,01/05/2018,633.28,0,JEA,Senior Management,4809,Special Guardianship,Children'S Services
Blackpool Council,1088106,REDACTED PERSONAL DATA,3885673,172071,01/05/2018,633.28,0,JEA,Senior Management,4809,Special Guardianship,Children'S Services
Blackpool Council,1088246,REDACTED PERSONAL DATA,3885674,172148,01/05/2018,633.28,0,JBR,Lac - Placements,4814,Adoption Allowances,Children'S Services
Blackpool Council,1088614,REDACTED PERSONAL DATA,3885675,172047,01/05/2018,562.43,0,JBR,Lac - Placements,4814,Adoption Allowances,Children'S Services
Blackpool Council,1088741,REDACTED PERSONAL DATA,3885676,171864,01/05/2018,633.28,0,JBR,Lac - Placements,4814,Adoption Allowances,Children'S Services
Blackpool Council,1088744,REDACTED PERSONAL DATA,3885677,172006,01/05/2018,633.28,0,JEA,Senior Management,4809,Special Guardianship,Children'S Services
Blackpool Council,1089503,REDACTED PERSONAL DATA,3885678,172082,01/05/2018,633.28,0,JEA,Senior Management,4809,Special Guardianship,Children'S Services
Blackpool Council,1089504,REDACTED PERSONAL DATA,3885679,171936,01/05/2018,633.28,0,JEA,Senior Management,4809,Special Guardianship,Children'S Services
Blackpool Council,1089505,REDACTED PERSONAL DATA,3885680,172068,01/05/2018,633.28,0,JEA,Senior Management,4809,Special Guardianship,Children'S Services
Blackpool Council,1089980,REDACTED PERSONAL DATA,3885681,172167,01/05/2018,633.28,0,JEA,Senior Management,4809,Special Guardianship,Children'S Services
Blackpool Council,1090278,REDACTED PERSONAL DATA,3885682,171923,01/05/2018,633.28,0,JBR,Lac - Placements,4814,Adoption Allowances,Children'S Services
Blackpool Council,1090507,REDACTED PERSONAL DATA,3885683,172147,01/05/2018,562.43,0,JBR,Lac - Placements,4814,Adoption Allowances,Children'S Services
Blackpool Council,1090553,REDACTED PERSONAL DATA,3885684,172004,01/05/2018,562.43,0,JEA,Senior Management,4811,Residence Orders,Children'S Services
Blackpool Council,1090574,REDACTED PERSONAL DATA,3885685,172200,01/05/2018,1151.44,0,JEA,Senior Management,4809,Special Guardianship,Children'S Services
Blackpool Council,1090574,REDACTED PERSONAL DATA,3885686,171919,01/05/2018,1209,0,JEA,Senior Management,4809,Special Guardianship,Children'S Services
Blackpool Council,1090630,REDACTED PERSONAL DATA,3885687,171877,01/05/2018,633.28,0,JEA,Senior Management,4809,Special Guardianship,Children'S Services
